FILE,Service Area Categorisation,Service Division Categorisation,Responsible Unit,Unit Code,Expenses Type,Expenses Sub Type,Expense  Code,Detailed Expenses Type,Transaction No.,Amount,Invoice Date,Capital/Revenue,Supplier Name
2012-DEC,Central Services,Fully rechargeable Overheads,Local Involvement Network               ,A01039,Third Party Payments          ,Private Contractors           ,EH10,Contract Payments,1,"8,342.91",12/4/2012,R,MERTON VOLUNTARY SERV COUNCIL 
2012-DEC,Cultural Env Reg&Plan Services,Comm. Safety (Crime Reduction),CCTV                                    ,A01200,Supplies & Services           ,Equip Furniture/Materials     ,DA01,Equipment - R & M,2,"10,146.65",12/7/2012,R,EUROVIA INFRASTRUCTURE LTD    
2012-DEC,Cultural Env Reg&Plan Services,Comm. Safety (Crime Reduction),Anti-Social Behaviour                   ,A01202,Supplies & Services           ,Comms and Computing           ,DG02,Software Licences,3,"3,400.00",10/9/2012,R,VANTAGE TECHNOLOGIES LIMITED  
2012-DEC,Adult Social Care,Other Adult Services,Retention in Drug Treatmt Srvs          ,A01303,Third Party Payments          ,Private Contractors           ,EH02,Miscellaneous Hired Services,4,"5,400.00",12/15/2012,R,CIDARIS CONSULTING LIMITED    
2012-DEC,Central Services,Fully rechargeable Overheads,NON-STATUTORY MARKETING & COMM ,A02019,Supplies & Services           ,Services                      ,DF02,Misc Advertising/Publicity,5,537.5,11/26/2012,R,JCDECAUX UNITED KINGDOM       
2012-DEC,Central Services,Fully rechargeable Overheads,NON-STATUTORY MARKETING & COMM ,A02019,Supplies & Services           ,Services                      ,DF02,Misc Advertising/Publicity,6,555.56,10/18/2012,R,NEWSQUEST (LONDON)LTD         
2012-DEC,Central Services,Fully rechargeable Overheads,NON-STATUTORY MARKETING & COMM ,A02019,Supplies & Services           ,Services                      ,DF35,Graphic Design,7,697.5,3/21/2012,R,MERTON DESIGN LTD             
2012-DEC,Central Services,Fully rechargeable Overheads,NON-STATUTORY MARKETING & COMM ,A02019,Supplies & Services           ,Services                      ,DF35,Graphic Design,8,"2,835.00",12/20/2012,R,THE BIG IDEA 
2012-DEC,Central Services,Fully rechargeable Overheads,Press and Public Relations.             ,A02026,Employees                     ,Direct Employee Expenses      ,AA17,Agency Staff & Casual Paymts,9,565,11/23/2012,R,HAYS RECRUITING EXPERTS       
2012-DEC,Central Services,Fully rechargeable Overheads,Press and Public Relations.             ,A02026,Employees                     ,Direct Employee Expenses      ,AA17,Agency Staff & Casual Paymts,10,565,12/11/2012,R,HAYS RECRUITING EXPERTS       
2012-DEC,Central Services,Fully rechargeable Overheads,Press and Public Relations.             ,A02026,Employees                     ,Direct Employee Expenses      ,AA17,Agency Staff & Casual Paymts,11,565,12/4/2012,R,HAYS RECRUITING EXPERTS       
2012-DEC,Central Services,Fully rechargeable Overheads,Press and Public Relations.             ,A02026,Supplies & Services           ,Prntng Stnry Gen Off Exp      ,DE20,Council Magazine,12,"19,171.00",11/23/2012,R,ENGAGE GROUP LTD              
2012-DEC,Central Services,Fully rechargeable Overheads,Press and Public Relations.             ,A02026,Supplies & Services           ,Grants and Subscriptions      ,DJ04,Subscriptions,13,600,11/30/2012,R,FLAME LIMITED                 
2012-DEC,CS -Oth Operating Inc & Expend,Trading A/c Surpluses/Deficits,Prtng Jobs - Ext Agncy                  ,A03041,Supplies & Services           ,Prntng Stnry Gen Off Exp      ,DE01,External Printing,14,"5,253.60",11/30/2012,R,AMEY COMMUNITY LIMITED        
2012-DEC,CS -Oth Operating Inc & Expend,Trading A/c Surpluses/Deficits,Prtng Jobs - Ext Agncy                  ,A03041,Supplies & Services           ,Prntng Stnry Gen Off Exp      ,DE01,External Printing,15,895,11/30/2012,R,AMEY COMMUNITY LIMITED        
2012-DEC,CS -Oth Operating Inc & Expend,Trading A/c Surpluses/Deficits,Prtng Jobs - Ext Agncy                  ,A03041,Supplies & Services           ,Prntng Stnry Gen Off Exp      ,DE01,External Printing,16,934,12/11/2012,R,CLIFFE ENTERPRISE             
2012-DEC,CS -Oth Operating Inc & Expend,Trading A/c Surpluses/Deficits,Prtng Jobs - Ext Agncy                  ,A03041,Supplies & Services           ,Prntng Stnry Gen Off Exp      ,DE01,External Printing,17,670,12/13/2012,R,ENNISFIELD                    
2012-DEC,CS -Oth Operating Inc & Expend,Trading A/c Surpluses/Deficits,Prtng Jobs - Ext Agncy                  ,A03041,Supplies & Services           ,Prntng Stnry Gen Off Exp      ,DE01,External Printing,18,670,12/13/2012,R,ENNISFIELD                    
2012-DEC,CS -Oth Operating Inc & Expend,Trading A/c Surpluses/Deficits,Prtng Jobs - Ext Agncy                  ,A03041,Supplies & Services           ,Prntng Stnry Gen Off Exp      ,DE01,External Printing,19,520,12/18/2012,R,COMMERCIAL COLOUR PRESS       
2012-DEC,CS -Oth Operating Inc & Expend,Trading A/c Surpluses/Deficits,PrintUnit-HighVolPhtcopying             ,A03042,Supplies & Services           ,Equip Furniture/Materials     ,DA06,Paper-Internal Print Jobs,20,"7,500.00",11/30/2012,R,RAINBOW OFFICE SUPPLIES LTD   
2012-DEC,CS -Oth Operating Inc & Expend,Trading A/c Surpluses/Deficits,Translation Services                    ,A04060,Supplies & Services           ,Services                      ,DF45,Payment of Sessional workers,21,648,12/3/2012,R,REDACTED
2012-DEC,Central Services,Fully rechargeable Overheads,PROGRAMME OFFICE                        ,A04068,Employees                     ,Indirect Employee Expenses    ,AB02,Recruitment Adverts,22,640,12/18/2012,R,PENNA COMMUNICATIONS (NO 2 A/C
2012-DEC,Central Services,Fully rechargeable Overheads,Merton Link                             ,A04070,Supplies & Services           ,Comms and Computing           ,DG15,Network Maintenance,23,"1,071.85",12/3/2012,R,NORTHGATE  INFORMATION SOLUT. 
2012-DEC,Central Services,Fully rechargeable Overheads,COMMERICIAL SERVICES                    ,A04085,Employees                     ,Direct Employee Expenses      ,AA17,Agency Staff & Casual Paymts,24,678,10/16/2012,R,HAYS RECRUITING EXPERTS       
2012-DEC,Central Services,Fully rechargeable Overheads,COMMERICIAL SERVICES                    ,A04085,Employees                     ,Direct Employee Expenses      ,AA17,Agency Staff & Casual Paymts,25,"3,390.00",11/15/2012,R,HAYS RECRUITING EXPERTS       
2012-DEC,Central Services,Fully rechargeable Overheads,COMMERICIAL SERVICES                    ,A04085,Employees                     ,Direct Employee Expenses      ,AA17,Agency Staff & Casual Paymts,26,"3,390.00",11/22/2012,R,HAYS RECRUITING EXPERTS       
2012-DEC,Central Services,Fully rechargeable Overheads,COMMERICIAL SERVICES                    ,A04085,Employees                     ,Direct Employee Expenses      ,AA17,Agency Staff & Casual Paymts,27,"3,390.00",11/29/2012,R,HAYS RECRUITING EXPERTS       
2012-DEC,Central Services,Fully rechargeable Overheads,COMMERICIAL SERVICES                    ,A04085,Employees                     ,Direct Employee Expenses      ,AA17,Agency Staff & Casual Paymts,28,"3,390.00",12/6/2012,R,HAYS RECRUITING EXPERTS       
2012-DEC,Central Services,Registr'n Birth/Death/Marriage,Reg of B. Deaths & Ms                   ,B06143,Supplies & Services           ,Services                      ,DF03,Consultants,29,"5,400.00",9/26/2012,R,REDQUADRANT LTD               
2012-DEC,CS -Oth Operating Inc & Expend,Trading A/c Surpluses/Deficits,CHAS Scheme                             ,B06150,Supplies & Services           ,Prntng Stnry Gen Off Exp      ,DE03,Stationery,30,"2,933.28",12/20/2012,R,OVENDEN PAPERS LTD            
2012-DEC,CS -Oth Operating Inc & Expend,Trading A/c Surpluses/Deficits,CHAS Scheme                             ,B06150,Supplies & Services           ,Services                      ,DF11,Counsel's fees,31,"1,440.50",10/29/2012,R,WEIGHTMANS LLP                
2012-DEC,CS -Oth Operating Inc & Expend,Trading A/c Surpluses/Deficits,CHAS Scheme                             ,B06150,Supplies & Services           ,Services                      ,DF88,Assessor Fees,32,548,11/27/2012,R,REDACTED
2012-DEC,CS -Oth Operating Inc & Expend,Trading A/c Surpluses/Deficits,CHAS Scheme                             ,B06150,Supplies & Services           ,Services                      ,DF88,Assessor Fees,33,"1,658.00",11/30/2012,R,2ND NATURE SAFETY SOLUTIONS UK
2012-DEC,CS -Oth Operating Inc & Expend,Trading A/c Surpluses/Deficits,CHAS Scheme                             ,B06150,Supplies & Services           ,Services                      ,DF88,Assessor Fees,34,"1,571.00",11/30/2012,R,REDACTED
2012-DEC,CS -Oth Operating Inc & Expend,Trading A/c Surpluses/Deficits,CHAS Scheme                             ,B06150,Supplies & Services           ,Services                      ,DF88,Assessor Fees,35,"1,827.00",11/30/2012,R,REDACTED
2012-DEC,CS -Oth Operating Inc & Expend,Trading A/c Surpluses/Deficits,CHAS Scheme                             ,B06150,Supplies & Services           ,Services                      ,DF88,Assessor Fees,36,889,11/30/2012,R,REDACTED
2012-DEC,CS -Oth Operating Inc & Expend,Trading A/c Surpluses/Deficits,CHAS Scheme                             ,B06150,Supplies & Services           ,Services                      ,DF88,Assessor Fees,37,"2,508.00",10/31/2012,R,REDACTED
2012-DEC,CS -Oth Operating Inc & Expend,Trading A/c Surpluses/Deficits,CHAS Scheme                             ,B06150,Supplies & Services           ,Services                      ,DF88,Assessor Fees,38,"1,371.00",11/28/2012,R,REDACTED
2012-DEC,CS -Oth Operating Inc & Expend,Trading A/c Surpluses/Deficits,CHAS Scheme                             ,B06150,Supplies & Services           ,Services                      ,DF88,Assessor Fees,39,"1,705.00",11/30/2012,R,REDACTED
2012-DEC,CS -Oth Operating Inc & Expend,Trading A/c Surpluses/Deficits,CHAS Scheme                             ,B06150,Supplies & Services           ,Services                      ,DF88,Assessor Fees,40,"2,194.00",11/29/2012,R,HOLLYGLADE LTD T/A BEACONRISK 
2012-DEC,CS -Oth Operating Inc & Expend,Trading A/c Surpluses/Deficits,CHAS Scheme                             ,B06150,Supplies & Services           ,Services                      ,DF88,Assessor Fees,41,"2,046.00",11/27/2012,R,REDACTED
2012-DEC,CS -Oth Operating Inc & Expend,Trading A/c Surpluses/Deficits,CHAS Scheme                             ,B06150,Supplies & Services           ,Services                      ,DF88,Assessor Fees,42,"3,951.00",12/1/2012,R,ARC ASSOCIATES (UK)           
2012-DEC,CS -Oth Operating Inc & Expend,Trading A/c Surpluses/Deficits,CHAS Scheme                             ,B06150,Supplies & Services           ,Services                      ,DF88,Assessor Fees,43,548,12/3/2012,R,REDACTED
2012-DEC,CS -Oth Operating Inc & Expend,Trading A/c Surpluses/Deficits,CHAS Scheme                             ,B06150,Supplies & Services           ,Services                      ,DF88,Assessor Fees,44,"1,023.00",11/30/2012,R,REDACTED
2012-DEC,CS -Oth Operating Inc & Expend,Trading A/c Surpluses/Deficits,CHAS Scheme                             ,B06150,Supplies & Services           ,Services                      ,DF88,Assessor Fees,45,"2,514.00",11/30/2012,R,REDACTED
2012-DEC,CS -Oth Operating Inc & Expend,Trading A/c Surpluses/Deficits,CHAS Scheme                             ,B06150,Supplies & Services           ,Services                      ,DF88,Assessor Fees,46,"1,204.00",11/30/2012,R,REDACTED
2012-DEC,CS -Oth Operating Inc & Expend,Trading A/c Surpluses/Deficits,CHAS Scheme                             ,B06150,Supplies & Services           ,Services                      ,DF88,Assessor Fees,47,602,12/2/2012,R,REDACTED
2012-DEC,CS -Oth Operating Inc & Expend,Trading A/c Surpluses/Deficits,CHAS Scheme                             ,B06150,Supplies & Services           ,Services                      ,DF88,Assessor Fees,48,642,11/30/2012,R,REDACTED
2012-DEC,CS -Oth Operating Inc & Expend,Trading A/c Surpluses/Deficits,CHAS Scheme                             ,B06150,Supplies & Services           ,Services                      ,DF88,Assessor Fees,49,"3,008.00",11/30/2012,R,SOUTH EAST HEALTH & SAFETY LTD
2012-DEC,CS -Oth Operating Inc & Expend,Trading A/c Surpluses/Deficits,CHAS Scheme                             ,B06150,Supplies & Services           ,Services                      ,DF88,Assessor Fees,50,"1,397.00",11/30/2012,R,REDACTED
2012-DEC,CS -Oth Operating Inc & Expend,Trading A/c Surpluses/Deficits,CHAS Scheme                             ,B06150,Supplies & Services           ,Services                      ,DF88,Assessor Fees,51,"2,213.00",12/1/2012,R,MGW SAFETY SERVICES           
2012-DEC,CS -Oth Operating Inc & Expend,Trading A/c Surpluses/Deficits,CHAS Scheme                             ,B06150,Supplies & Services           ,Services                      ,DF88,Assessor Fees,52,769,12/4/2012,R,REDACTED
2012-DEC,CS -Oth Operating Inc & Expend,Trading A/c Surpluses/Deficits,CHAS Scheme                             ,B06150,Supplies & Services           ,Services                      ,DF88,Assessor Fees,53,642,11/30/2012,R,REDACTED
2012-DEC,CS -Oth Operating Inc & Expend,Trading A/c Surpluses/Deficits,CHAS Scheme                             ,B06150,Supplies & Services           ,Services                      ,DF88,Assessor Fees,54,682,11/30/2012,R,REDACTED
2012-DEC,CS -Oth Operating Inc & Expend,Trading A/c Surpluses/Deficits,CHAS Scheme                             ,B06150,Supplies & Services           ,Services                      ,DF88,Assessor Fees,55,"5,503.00",12/2/2012,R,REDACTED
2012-DEC,CS -Oth Operating Inc & Expend,Trading A/c Surpluses/Deficits,CHAS Scheme                             ,B06150,Supplies & Services           ,Services                      ,DF88,Assessor Fees,56,809,11/30/2012,R,REDACTED
2012-DEC,CS -Oth Operating Inc & Expend,Trading A/c Surpluses/Deficits,CHAS Scheme                             ,B06150,Supplies & Services           ,Services                      ,DF88,Assessor Fees,57,"1,872.00",11/30/2012,R,REDACTED
2012-DEC,CS -Oth Operating Inc & Expend,Trading A/c Surpluses/Deficits,CHAS Scheme                             ,B06150,Supplies & Services           ,Services                      ,DF88,Assessor Fees,58,"1,190.00",11/29/2012,R,WOODS CONSULTANCY SERVICES LTD
2012-DEC,CS -Oth Operating Inc & Expend,Trading A/c Surpluses/Deficits,CHAS Scheme                             ,B06150,Supplies & Services           ,Services                      ,DF88,Assessor Fees,59,"1,875.00",11/30/2012,R,STALLARD KANE ASSOCIATES LTD  
2012-DEC,CS -Oth Operating Inc & Expend,Trading A/c Surpluses/Deficits,CHAS Scheme                             ,B06150,Supplies & Services           ,Services                      ,DF88,Assessor Fees,60,"2,083.30",11/30/2012,R,ALIMOR SAFETY LTD             
2012-DEC,CS -Oth Operating Inc & Expend,Trading A/c Surpluses/Deficits,CHAS Scheme                             ,B06150,Supplies & Services           ,Services                      ,DF88,Assessor Fees,61,"1,545.00",12/4/2012,R,REDACTED
2012-DEC,CS -Oth Operating Inc & Expend,Trading A/c Surpluses/Deficits,CHAS Scheme                             ,B06150,Supplies & Services           ,Services                      ,DF88,Assessor Fees,62,762,12/7/2012,R,REDACTED
2012-DEC,CS -Oth Operating Inc & Expend,Trading A/c Surpluses/Deficits,CHAS Scheme                             ,B06150,Supplies & Services           ,Services                      ,DF88,Assessor Fees,63,"2,133.00",12/3/2012,R,REDACTED
2012-DEC,CS -Oth Operating Inc & Expend,Trading A/c Surpluses/Deficits,CHAS Scheme                             ,B06150,Supplies & Services           ,Services                      ,DF88,Assessor Fees,64,602,11/30/2012,R,REDACTED
2012-DEC,CS -Oth Operating Inc & Expend,Trading A/c Surpluses/Deficits,CHAS Scheme                             ,B06150,Supplies & Services           ,Services                      ,DF88,Assessor Fees,65,922,12/6/2012,R,REDACTED
2012-DEC,CS -Oth Operating Inc & Expend,Trading A/c Surpluses/Deficits,CHAS Scheme                             ,B06150,Supplies & Services           ,Services                      ,DF88,Assessor Fees,66,"1,999.00",11/30/2012,R,REDACTED
2012-DEC,CS -Oth Operating Inc & Expend,Trading A/c Surpluses/Deficits,CHAS Scheme                             ,B06150,Supplies & Services           ,Services                      ,DF88,Assessor Fees,67,"1,947.00",12/5/2012,R,REDACTED
2012-DEC,CS -Oth Operating Inc & Expend,Trading A/c Surpluses/Deficits,CHAS Scheme                             ,B06150,Supplies & Services           ,Services                      ,DF88,Assessor Fees,68,"1,190.00",12/3/2012,R,REDACTED
2012-DEC,CS -Oth Operating Inc & Expend,Trading A/c Surpluses/Deficits,CHAS Scheme                             ,B06150,Supplies & Services           ,Services                      ,DF88,Assessor Fees,69,515,10/31/2012,R,REDACTED
2012-DEC,CS -Oth Operating Inc & Expend,Trading A/c Surpluses/Deficits,CHAS Scheme                             ,B06150,Supplies & Services           ,Services                      ,DF88,Assessor Fees,70,642,11/30/2012,R,REDACTED
2012-DEC,CS -Oth Operating Inc & Expend,Trading A/c Surpluses/Deficits,CHAS Scheme                             ,B06150,Supplies & Services           ,Services                      ,DF88,Assessor Fees,71,"1,618.00",12/16/2012,R,REDACTED
2012-DEC,CS -Oth Operating Inc & Expend,Trading A/c Surpluses/Deficits,CHAS Scheme                             ,B06150,Supplies & Services           ,Services                      ,DF88,Assessor Fees,72,755,12/12/2012,R,REDACTED
2012-DEC,CS -Oth Operating Inc & Expend,Trading A/c Surpluses/Deficits,CHAS Scheme                             ,B06150,Supplies & Services           ,Services                      ,DF88,Assessor Fees,73,"1,277.00",12/12/2012,R,REDACTED
2012-DEC,CS -Oth Operating Inc & Expend,Trading A/c Surpluses/Deficits,CHAS Scheme                             ,B06150,Supplies & Services           ,Services                      ,DF88,Assessor Fees,74,769,12/1/2012,R,REDACTED
2012-DEC,CS -Oth Operating Inc & Expend,Trading A/c Surpluses/Deficits,CHAS Scheme                             ,B06150,Supplies & Services           ,Services                      ,DF88,Assessor Fees,75,"1,925.00",11/30/2012,R,REDACTED
2012-DEC,CS -Oth Operating Inc & Expend,Trading A/c Surpluses/Deficits,CHAS Scheme                             ,B06150,Supplies & Services           ,Services                      ,DF88,Assessor Fees,76,"1,839.00",12/17/2012,R,REDACTED
2012-DEC,CS -Oth Operating Inc & Expend,Trading A/c Surpluses/Deficits,CHAS Scheme                             ,B06150,Supplies & Services           ,Services                      ,DF88,Assessor Fees,77,"1,418.00",12/10/2012,R,REDACTED
2012-DEC,CS -Oth Operating Inc & Expend,Trading A/c Surpluses/Deficits,CHAS Scheme                             ,B06150,Supplies & Services           ,Services                      ,DF88,Assessor Fees,78,"1,070.00",11/25/2012,R,SELECT SAFETY LIMITED         
2012-DEC,CS -Oth Operating Inc & Expend,Trading A/c Surpluses/Deficits,CHAS Scheme                             ,B06150,Supplies & Services           ,Services                      ,DF88,Assessor Fees,79,"1,736.00",12/11/2012,R,REDACTED
2012-DEC,CS -Oth Operating Inc & Expend,Trading A/c Surpluses/Deficits,CHAS Scheme                             ,B06150,Supplies & Services           ,Services                      ,DF88,Assessor Fees,80,"2,394.00",11/30/2012,R,REDACTED
2012-DEC,CS -Oth Operating Inc & Expend,Trading A/c Surpluses/Deficits,CHAS Scheme                             ,B06150,Supplies & Services           ,Services                      ,DF88,Assessor Fees,81,555,12/11/2012,R,REDACTED
2012-DEC,CS -Oth Operating Inc & Expend,Trading A/c Surpluses/Deficits,CHAS Scheme                             ,B06150,Supplies & Services           ,Services                      ,DF88,Assessor Fees,82,983,11/30/2012,R,REDACTED
2012-DEC,CS -Oth Operating Inc & Expend,Trading A/c Surpluses/Deficits,CHAS Scheme                             ,B06150,Supplies & Services           ,Services                      ,DF88,Assessor Fees,83,"1,009.00",11/30/2012,R,REDACTED
2012-DEC,CS -Oth Operating Inc & Expend,Trading A/c Surpluses/Deficits,CHAS Scheme                             ,B06150,Supplies & Services           ,Services                      ,DF88,Assessor Fees,84,"1,126.00",12/12/2012,R,REDACTED
2012-DEC,CS -Oth Operating Inc & Expend,Trading A/c Surpluses/Deficits,CHAS Scheme                             ,B06150,Supplies & Services           ,Services                      ,DF88,Assessor Fees,85,896,12/18/2012,R,TERN ASSOCIATES LTD           
2012-DEC,CS -Oth Operating Inc & Expend,Trading A/c Surpluses/Deficits,CHAS Scheme                             ,B06150,Supplies & Services           ,Services                      ,DF88,Assessor Fees,86,809,11/30/2012,R,REDACTED
2012-DEC,CS -Oth Operating Inc & Expend,Trading A/c Surpluses/Deficits,CHAS Scheme                             ,B06150,Supplies & Services           ,Services                      ,DF88,Assessor Fees,87,508,12/18/2012,R,REDACTED
2012-DEC,CS -Oth Operating Inc & Expend,Trading A/c Surpluses/Deficits,CHAS Scheme                             ,B06150,Supplies & Services           ,Services                      ,DF88,Assessor Fees,88,689,12/20/2012,R,REDACTED
2012-DEC,CS -Oth Operating Inc & Expend,Trading A/c Surpluses/Deficits,CHAS Scheme                             ,B06150,Supplies & Services           ,Services                      ,DF88,Assessor Fees,89,501,12/10/2012,R,MCG HEALTH & SAFETY LTD       
2012-DEC,CS -Oth Operating Inc & Expend,Trading A/c Surpluses/Deficits,CHAS Scheme                             ,B06150,Supplies & Services           ,Services                      ,DF88,Assessor Fees,90,"2,053.00",12/20/2012,R,HOLLYGLADE LTD T/A BEACONRISK 
2012-DEC,CS -Oth Operating Inc & Expend,Trading A/c Surpluses/Deficits,CHAS Scheme                             ,B06150,Supplies & Services           ,Services                      ,DF88,Assessor Fees,91,515,12/19/2012,R,REDACTED
2012-DEC,,,CCTV (match funding)                    ,CE002EA,Vehicles Plant Equipment and Machinery,0,D3,Equipment,92,"8,418.88",9/20/2012,C,EUROVIA INFRASTRUCTURE LTD    
2012-DEC,,,CCTV (match funding)                    ,CE002EA,Vehicles Plant Equipment and Machinery,0,D3,Equipment,93,"8,706.91",9/20/2012,C,EUROVIA INFRASTRUCTURE LTD    
2012-DEC,,,Disabled Facilities Grant DCLG          ,CE004RA,Other Capital Expenditure,0,E1,Grants,94,"1,428.00",12/11/2012,C,ABLE 2 OCCUP.THERAPY SERV.LTD 
2012-DEC,,,Disabled Facilities Grant DCLG          ,CE004RA,Other Capital Expenditure,0,E1,Grants,95,"1,887.32",12/11/2012,C,ABLE 2 OCCUP.THERAPY SERV.LTD 
2012-DEC,,,Disabled Facilities Grant DCLG          ,CE004RA,Other Capital Expenditure,0,E1,Grants,96,859.1,12/11/2012,C,ABLE 2 OCCUP.THERAPY SERV.LTD 
2012-DEC,,,Disabled Facilities Grant DCLG          ,CE004RA,Other Capital Expenditure,0,E1,Grants,97,"9,024.61",12/11/2012,C,REDACTED
2012-DEC,,,Disabled Facilities Grant DCLG          ,CE004RA,Other Capital Expenditure,0,E1,Grants,98,"18,417.09",12/11/2012,C,REDACTED
2012-DEC,,,Disabled Facilities Grant DCLG          ,CE004RA,Other Capital Expenditure,0,E1,Grants,99,"1,488.00",12/11/2012,C,TLC STAIRLIFTS                
2012-DEC,,,Disabled Facilities Grant DCLG          ,CE004RA,Other Capital Expenditure,0,E1,Grants,100,598.66,12/11/2012,C,CBS ADAPTATION                
2012-DEC,,,Disabled Facilities Grant DCLG          ,CE004RA,Other Capital Expenditure,0,E1,Grants,101,"5,520.00",12/11/2012,C,VIVA VIE LTD                  
2012-DEC,,,Disabled Facilities Grant DCLG          ,CE004RA,Other Capital Expenditure,0,E1,Grants,102,535.84,12/11/2012,C,CBS ADAPTATION                
2012-DEC,,,Disabled Facilities Grant DCLG          ,CE004RA,Other Capital Expenditure,0,E1,Grants,103,"3,255.04",12/11/2012,C,CBS ADAPTATION                
2012-DEC,,,Disabled Facilities Grant DCLG          ,CE004RA,Other Capital Expenditure,0,E1,Grants,104,"6,044.00",12/11/2012,C,TBS ADAPTATIONS LTD           
2012-DEC,,,Disabled Facilities Grant DCLG          ,CE004RA,Other Capital Expenditure,0,E1,Grants,105,"1,691.92",12/11/2012,C,CBS ADAPTATION                
2012-DEC,,,Disabled Facilities Grant DCLG          ,CE004RA,Other Capital Expenditure,0,E1,Grants,106,"4,377.00",12/13/2012,C,TLC STAIRLIFTS                
2012-DEC,,,Disabled Facilities Grant DCLG          ,CE004RA,Other Capital Expenditure,0,E1,Grants,107,"1,063.05",12/12/2012,C,CBS ADAPTATION                
2012-DEC,,,Disabled Facilities Grant DCLG          ,CE004RA,Other Capital Expenditure,0,E1,Grants,108,"3,078.80",12/19/2012,C,ABLE 2 OCCUP.THERAPY SERV.LTD 
2012-DEC,,,Disabled Facilities Grant DCLG          ,CE004RA,Other Capital Expenditure,0,E1,Grants,109,"1,562.04",12/19/2012,C,REDACTED                
2012-DEC,,,Disabled Facilities Grant DCLG          ,CE004RA,Other Capital Expenditure,0,E1,Grants,110,738.93,12/19/2012,C,SUTTON STAYING PUT            
2012-DEC,,,Disabled Facilities Grant DCLG          ,CE004RA,Other Capital Expenditure,0,E1,Grants,111,"13,017.00",12/19/2012,C,TBS ADAPTATIONS LTD           
2012-DEC,,,Disabled Facilities Grant DCLG          ,CE004RA,Other Capital Expenditure,0,E1,Grants,112,"7,500.00",12/20/2012,C,PREMIER ADAPTATIONS LTD       
2012-DEC,,,Disabled Facilities Grant DCLG          ,CE004RA,Other Capital Expenditure,0,E1,Grants,113,"2,031.04",12/20/2012,C,REDACTED
2012-DEC,,,Wim Pk Tennis Crt re-surfacing          ,CE009BA,New Construction Conversion and Renovation,0,B4,Site Works - Contractor,114,"48,938.21",12/3/2012,C,THOMAS SINDEN CONSTRUCTION LTD
2012-DEC,,,B487 Landscape Ravensbury Park          ,CE009CA,New Construction Conversion and Renovation,0,B4,Site Works - Contractor,115,"6,000.00",12/14/2012,C,REDDINGTON & SONS             
2012-DEC,,,B487 Landscape Ravensbury Park          ,CE009CA,New Construction Conversion and Renovation,0,B4,Site Works - Contractor,116,"2,990.00",12/14/2012,C,REDDINGTON & SONS             
2012-DEC,,,B487 Landscape Ravensbury Park          ,CE009CA,New Construction Conversion and Renovation,0,B4,Site Works - Contractor,117,"9,500.00",12/14/2012,C,REDDINGTON & SONS             
2012-DEC,,,Enhancement of Investment Prop          ,CE010BA,New Construction Conversion and Renovation,0,B4,Site Works - Contractor,118,"2,350.00",11/26/2012,C,REDACTED
2012-DEC,,,Enhancement of Investment Prop          ,CE010BA,New Construction Conversion and Renovation,0,B4,Site Works - Contractor,119,"6,250.00",11/6/2012,C,TAYLOR BUILDING COMPANY LTD   
2012-DEC,,,Enhancement of Investment Prop          ,CE010BA,New Construction Conversion and Renovation,0,B4,Site Works - Contractor,120,"1,330.00",11/30/2012,C,JUST METAL UK LTD             
2012-DEC,,,Parks Investment                        ,CE013SA,New Construction Conversion and Renovation,0,B4,Site Works - Contractor,121,"1,888.00",11/16/2012,C,THE CRESCENT FENCING CO.      
2012-DEC,,,Surface Water Drainage                  ,CE024FA,New Construction Conversion and Renovation,0,B4,Site Works - Contractor,122,"1,766.45",12/7/2012,C,FM CONWAY LTD                 
2012-DEC,,,Highways bridges & structures           ,CE025FA,New Construction Conversion and Renovation,0,B4,Site Works - Contractor,123,"2,636.04",9/28/2012,C,FM CONWAY LTD                 
2012-DEC,,,Highways bridges & structures           ,CE025FA,New Construction Conversion and Renovation,0,B4,Site Works - Contractor,124,"23,921.44",9/28/2012,C,FM CONWAY LTD                 
2012-DEC,,,Highways bridges & structures           ,CE025FA,New Construction Conversion and Renovation,0,B4,Site Works - Contractor,125,"15,750.00",10/30/2012,C,FM CONWAY LTD                 
2012-DEC,,,Borough Roads Maintenance               ,CE026FA,New Construction Conversion and Renovation,0,B4,Site Works - Contractor,126,"40,000.00",12/3/2012,C,FM CONWAY LTD                 
2012-DEC,,,Borough Roads Maintenance               ,CE026FA,New Construction Conversion and Renovation,0,B4,Site Works - Contractor,127,"3,080.28",12/3/2012,C,FM CONWAY LTD                 
2012-DEC,,,Borough Roads Maintenance               ,CE026FA,New Construction Conversion and Renovation,0,B4,Site Works - Contractor,128,"14,097.78",12/3/2012,C,FM CONWAY LTD                 
2012-DEC,,,Borough Roads Maintenance               ,CE026FA,New Construction Conversion and Renovation,0,B4,Site Works - Contractor,129,"5,000.00",11/30/2012,C,FM CONWAY LTD                 
2012-DEC,,,Borough Roads Maintenance               ,CE026FA,New Construction Conversion and Renovation,0,B4,Site Works - Contractor,130,"27,000.00",12/7/2012,C,FM CONWAY LTD                 
2012-DEC,,,Borough Roads Maintenance               ,CE026FA,New Construction Conversion and Renovation,0,B4,Site Works - Contractor,131,"13,511.44",12/7/2012,C,FM CONWAY LTD                 
2012-DEC,,,Borough Roads Maintenance               ,CE026FA,New Construction Conversion and Renovation,0,B4,Site Works - Contractor,132,"11,636.54",12/7/2012,C,FM CONWAY LTD                 
2012-DEC,,,Borough Roads Maintenance               ,CE026FA,New Construction Conversion and Renovation,0,B4,Site Works - Contractor,133,841.83,12/18/2012,C,FM CONWAY LTD                 
2012-DEC,,,Repairs to Footways                     ,CE029FA,New Construction Conversion and Renovation,0,B4,Site Works - Contractor,134,"13,000.00",12/3/2012,C,FM CONWAY LTD                 
2012-DEC,,,Repairs to Footways                     ,CE029FA,New Construction Conversion and Renovation,0,B4,Site Works - Contractor,135,"20,124.30",12/3/2012,C,FM CONWAY LTD                 
2012-DEC,,,Repairs to Footways                     ,CE029FA,New Construction Conversion and Renovation,0,B4,Site Works - Contractor,136,"12,052.27",11/30/2012,C,FM CONWAY LTD                 
2012-DEC,,,Repairs to Footways                     ,CE029FA,New Construction Conversion and Renovation,0,B4,Site Works - Contractor,137,"5,000.00",11/30/2012,C,FM CONWAY LTD                 
2012-DEC,,,Repairs to Footways                     ,CE029FA,New Construction Conversion and Renovation,0,B4,Site Works - Contractor,138,"25,000.00",12/7/2012,C,FM CONWAY LTD                 
2012-DEC,,,Repairs to Footways                     ,CE029FA,New Construction Conversion and Renovation,0,B4,Site Works - Contractor,139,"35,791.47",12/7/2012,C,FM CONWAY LTD                 
2012-DEC,,,Repairs to Footways                     ,CE029FA,New Construction Conversion and Renovation,0,B4,Site Works - Contractor,140,"25,000.00",12/18/2012,C,FM CONWAY LTD                 
2012-DEC,,,Leisure Centre Plant & Machine          ,CE038MA,New Construction Conversion and Renovation,0,B1,Design and Supervision - Consultants Fee,141,700,12/15/2012,C,MATERIALS SCIENCE CONS. LTD   
2012-DEC,,,Leisure Centre Plant & Machine          ,CE038MA,New Construction Conversion and Renovation,0,B4,Site Works - Contractor,142,"3,750.00",11/20/2012,C,GREENWICH LEISURE LTD         
2012-DEC,,,Leisure Centre Plant & Machine          ,CE038MA,New Construction Conversion and Renovation,0,B4,Site Works - Contractor,143,"19,445.00",12/4/2012,C,GREENWICH LEISURE LTD         
2012-DEC,,,Ryns Pk & Wim ftpath/cyclepath          ,CE050FD,New Construction Conversion and Renovation,0,B4,Site Works - Contractor,144,"12,050.00",12/18/2012,C,FM CONWAY LTD                 
2012-DEC,,,Improve markings & road signs           ,CE066EA,New Construction Conversion and Renovation,0,B6,Site Works - Other Costs,145,"1,054.00",11/13/2012,C,UK POWER NETWORKS (OPERATIONS)
2012-DEC,,,Street scene enhancements               ,CE066FE,New Construction Conversion and Renovation,0,B1,Design and Supervision - Consultants Fee,146,"1,250.00",11/30/2012,C,MARCUS BEALE ARCHITECTS       
2012-DEC,,,Street scene enhancements               ,CE066FE,New Construction Conversion and Renovation,0,B4,Site Works - Contractor,147,"1,469.00",11/30/2012,C,NCI SERVICES LTD              
2012-DEC,,,Street Lighting Replacement Pr          ,CE068FA,New Construction Conversion and Renovation,0,B4,Site Works - Contractor,148,816.52,11/30/2012,C,MAY GURNEY LTD T/A CARTLEDGE  
2012-DEC,,,Street Lighting Replacement Pr          ,CE068FA,New Construction Conversion and Renovation,0,B4,Site Works - Contractor,149,"8,235.39",11/30/2012,C,MAY GURNEY LTD T/A CARTLEDGE  
2012-DEC,,,Street Lighting Replacement Pr          ,CE068FA,New Construction Conversion and Renovation,0,B4,Site Works - Contractor,150,"13,727.36",11/30/2012,C,MAY GURNEY LTD T/A CARTLEDGE  
2012-DEC,,,Street Lighting Replacement Pr          ,CE068FA,New Construction Conversion and Renovation,0,B4,Site Works - Contractor,151,"14,624.89",11/30/2012,C,MAY GURNEY LTD T/A CARTLEDGE  
2012-DEC,,,Traffic surveys & Safety Measu          ,CE075FA,New Construction Conversion and Renovation,0,B4,Site Works - Contractor,152,600.4,12/18/2012,C,FM CONWAY LTD                 
2012-DEC,,,Wimbledon Area Traffic Study            ,CE077FA,New Construction Conversion and Renovation,0,B2,Design and Supervision - Site Surveys,153,"2,670.00",11/29/2012,C,AXIOM TRAFFIC LTD             
2012-DEC,,,B453 Haydons Road                       ,CE098FA,New Construction Conversion and Renovation,0,B4,Site Works - Contractor,154,"3,820.00",11/29/2012,C,TAYLOR BUILDING COMPANY LTD   
2012-DEC,,,B453 Haydons Road                       ,CE098FA,New Construction Conversion and Renovation,0,B4,Site Works - Contractor,155,"9,999.00",11/29/2012,C,TAYLOR BUILDING COMPANY LTD   
2012-DEC,,,Strategic corridor Mitcham              ,CE104FB,New Construction Conversion and Renovation,0,B1,Design and Supervision - Consultants Fee,156,"12,148.00",12/14/2012,C,HYDER CONSULTING (UK) LTD     
2012-DEC,,,Strategic corridor Mitcham              ,CE104FB,Other Capital Expenditure,0,E4,TFL Other,157,"11,545.00",11/30/2012,C,TRANSPORT & TRAVEL RESEARCH   
2012-DEC,,,Kingston/Hartfield Rd StratCor          ,CE104FC,New Construction Conversion and Renovation,0,B4,Site Works - Contractor,158,"100,000.00",11/30/2012,C,FM CONWAY LTD                 
2012-DEC,,,Accesibility Programme                  ,CE104FD,New Construction Conversion and Renovation,0,B4,Site Works - Contractor,159,613.14,11/30/2012,C,FM CONWAY LTD                 
2012-DEC,,,Accesibility Programme                  ,CE104FD,New Construction Conversion and Renovation,0,B4,Site Works - Contractor,160,"1,319.99",12/18/2012,C,FM CONWAY LTD                 
2012-DEC,,,School & Road Safety Campaigns          ,CE104RC,Other Capital Expenditure,0,E4,TFL Other,161,"1,100.00",12/5/2012,C,BLAKES DRIVER TRAINING        
2012-DEC,,,School & Road Safety Campaigns          ,CE104RC,Other Capital Expenditure,0,E4,TFL Other,162,600,12/19/2012,C,BLAKES DRIVER TRAINING        
2012-DEC,,,Wim TC Accessibility & Streets          ,CE106FA,New Construction Conversion and Renovation,0,B1,Design and Supervision - Consultants Fee,163,"3,578.00",12/5/2012,C,JACOBS UK LIMITED             
2012-DEC,,,Wim TC Accessibility & Streets          ,CE106FA,New Construction Conversion and Renovation,0,B4,Site Works - Contractor,164,"3,578.40",10/30/2012,C,FM CONWAY LTD                 
2012-DEC,,,Lower Downs Rd walking/cycling          ,CE106FB,New Construction Conversion and Renovation,0,B4,Site Works - Contractor,165,"7,950.00",12/18/2012,C,FM CONWAY LTD                 
2012-DEC,,,Universal Cold Busters                  ,CE120RA,Other Capital Expenditure,0,E1,Grants,166,"1,755.60",12/19/2012,C,GLOWARM CENTRAL HEATING LTD   
2012-DEC,,,Universal Cold Busters                  ,CE120RA,Other Capital Expenditure,0,E1,Grants,167,"3,747.45",12/20/2012,C,CLIMATE ENERGY SOLUTIONS LTD  
2012-DEC,,,Universal Cold Busters                  ,CE120RA,Other Capital Expenditure,0,E1,Grants,168,587.4,12/20/2012,C,CLIMATE ENERGY LTD            
2012-DEC,,,Biking Borough Project                  ,CE128FA,New Construction Conversion and Renovation,0,B4,Site Works - Contractor,169,920.72,12/18/2012,C,FM CONWAY LTD                 
2012-DEC,,,Biking Borough Programme                ,CE128RA,Other Capital Expenditure,0,E4,TFL Other,170,"5,000.00",12/12/2012,C,REDACTED
2012-DEC,,,Schools Programme for Cycling           ,CE139RA,Other Capital Expenditure,0,E1,Grants,171,"3,000.00",12/15/2012,C,EAGLE HOUSE SCHOOL            
2012-DEC,,,Civic C-Fire Alarm Panel                ,CF001AF,New Construction Conversion and Renovation,0,B4,Site Works - Contractor,172,"3,390.00",10/31/2012,C,FIRST CHOICE FACILITIES PLC   
2012-DEC,,,Civic C-Fire Alarm Panel                ,CF001AF,New Construction Conversion and Renovation,0,B4,Site Works - Contractor,173,"3,801.50",10/31/2012,C,FIRST CHOICE FACILITIES PLC   
2012-DEC,,,Civic C-Fire Alarm Panel                ,CF001AF,New Construction Conversion and Renovation,0,B4,Site Works - Contractor,174,"2,019.50",10/31/2012,C,FIRST CHOICE FACILITIES PLC   
2012-DEC,,,Civic Centre Windows                    ,CF001AK,New Construction Conversion and Renovation,0,B1,Design and Supervision - Consultants Fee,175,960,9/7/2012,C,REDACTED
2012-DEC,,,Civic Centre Windows                    ,CF001AK,New Construction Conversion and Renovation,0,B1,Design and Supervision - Consultants Fee,176,960,9/15/2012,C,REDACTED
2012-DEC,,,Civic Centre Windows                    ,CF001AK,New Construction Conversion and Renovation,0,B4,Site Works - Contractor,177,"4,650.00",11/5/2012,C,JAYS CASH & CARRY GLASS       
2012-DEC,,,Civic Centre Windows                    ,CF001AK,New Construction Conversion and Renovation,0,B4,Site Works - Contractor,178,"1,689.00",11/5/2012,C,JAYS CASH & CARRY GLASS       
2012-DEC,,,Fixed Electrical Remedial Work          ,CF004SE,New Construction Conversion and Renovation,0,B4,Site Works - Contractor,179,"1,518.30",9/27/2012,C,COFELY LIMITED                
2012-DEC,,,Fixed Electrical Remedial Work          ,CF004SE,New Construction Conversion and Renovation,0,B4,Site Works - Contractor,180,"1,575.00",7/24/2012,C,COFELY LIMITED                
2012-DEC,,,Aragon expansion                        ,CS008AA,New Construction Conversion and Renovation,0,B4,Site Works - Contractor,181,"140,454.55",11/22/2012,C,THOMAS SINDEN CONSTRUCTION LTD
2012-DEC,,,All Saints/ South Wim YCC exp           ,CS008SB,New Construction Conversion and Renovation,0,B1,Design and Supervision - Consultants Fee,182,"6,407.92",11/12/2012,C,ATKINS LIMITED                
2012-DEC,,,All Saints/ South Wim YCC exp           ,CS008SB,New Construction Conversion and Renovation,0,B1,Design and Supervision - Consultants Fee,183,"9,804.59",11/12/2012,C,ATKINS LIMITED                
2012-DEC,,,All Saints/ South Wim YCC exp           ,CS008SB,New Construction Conversion and Renovation,0,B3,Design and Supervision - Other Expenses,184,"22,222.00",11/9/2012,C,SOUTHWARK DIOCESAN BOARD OF ED
2012-DEC,,,Benedict expansion                      ,CS009AA,Vehicles Plant Equipment and Machinery,0,D3,Equipment,185,"3,116.00",12/11/2012,C,ATOMWIDE LTD                  
2012-DEC,,,Temp classroom for 5 schools            ,CS009EA,New Construction Conversion and Renovation,0,B4,Site Works - Contractor,186,"16,302.20",12/13/2012,C,THE MCAVOY GROUP              
2012-DEC,,,Cranmer expansion                       ,CS010AA,New Construction Conversion and Renovation,0,B1,Design and Supervision - Consultants Fee,187,"90,309.68",12/7/2012,C,ATKINS LIMITED                
2012-DEC,,,Hollymount Permanent Expansion          ,CS011AA,New Construction Conversion and Renovation,0,B1,Design and Supervision - Consultants Fee,188,"11,417.00",11/21/2012,C,HAVERSTOCK ASSOCIATES LLP     
2012-DEC,,,Hollymount Permanent Expansion          ,CS011AA,New Construction Conversion and Renovation,0,B4,Site Works - Contractor,189,"179,000.00",12/14/2012,C,GEE CONSTRUCTION LTD          
2012-DEC,,,Hollymount Permanent Expansion          ,CS011AA,Vehicles Plant Equipment and Machinery,0,D3,Equipment,190,793,12/18/2012,C,SCHOOL BUSINESS SERVICES LTD  
2012-DEC,,,Joseph Hood Permanent Expansn           ,CS012AA,New Construction Conversion and Renovation,0,B4,Site Works - Contractor,191,"1,374.00",12/6/2012,C,SSD LIMITED                   
2012-DEC,,,Garden PCP                              ,CS013AA,New Construction Conversion and Renovation,0,B4,Site Works - Contractor,192,"107,052.39",12/13/2012,C,R DURTNELL & SONS LTD         
2012-DEC,,,Links - Security&Lighting&Heat          ,CS014AB,New Construction Conversion and Renovation,0,B1,Design and Supervision - Consultants Fee,193,"1,796.50",10/23/2012,C,EC HARRIS LLP                 
2012-DEC,,,Gorringe Park expansion                 ,CS018AB,New Construction Conversion and Renovation,0,B5,Site Works - Suppliers,194,"1,500.00",11/19/2012,C,IZZYTEA LTD                   
2012-DEC,,,Hillcross School Expansion              ,CS020AC,New Construction Conversion and Renovation,0,B1,Design and Supervision - Consultants Fee,195,"17,378.90",11/29/2012,C,CURL LA TOURELLE ARCHITECTS   
2012-DEC,,,Lonesome - Window Replacement           ,CS021AC,New Construction Conversion and Renovation,0,B1,Design and Supervision - Consultants Fee,196,"3,430.74",11/26/2012,C,EC HARRIS LLP                 
2012-DEC,,,Pelham - Window Replacement             ,CS023AD,New Construction Conversion and Renovation,0,B1,Design and Supervision - Consultants Fee,197,541.5,11/26/2012,C,EC HARRIS LLP                 
2012-DEC,,,Cricket Gn-Imprved site access          ,CS026AB,New Construction Conversion and Renovation,0,B4,Site Works - Contractor,198,"28,039.00",12/10/2012,C,GEE CONSTRUCTION LTD          
2012-DEC,,,Cricket Grn Exp-Chapel Orchard          ,CS026AC,New Construction Conversion and Renovation,0,B2,Design and Supervision - Site Surveys,199,995,11/27/2012,C,AOC ARCHAEOLOGY GROUP         
2012-DEC,,,Cricket Grn Exp-Chapel Orchard          ,CS026AC,New Construction Conversion and Renovation,0,B2,Design and Supervision - Site Surveys,200,"1,150.00",11/29/2012,C,BARRELL TREECARE LTD          
2012-DEC,,,Cricket Grn Exp-Chapel Orchard          ,CS026AC,New Construction Conversion and Renovation,0,B4,Site Works - Contractor,201,"25,184.36",11/26/2012,C,GEE CONSTRUCTION LTD          
2012-DEC,,,Cricket Grn Exp-Chapel Orchard          ,CS026AC,New Construction Conversion and Renovation,0,B4,Site Works - Contractor,202,"44,327.26",12/10/2012,C,GEE CONSTRUCTION LTD          
2012-DEC,,,St Ann's Primary Phase                  ,CS032AA,Vehicles Plant Equipment and Machinery,0,D3,Equipment,203,"12,531.00",10/2/2012,C,"CLARITY IN SND, LIGHT & VISION"
2012-DEC,,,St Anns - Primary                       ,CS032AB,New Construction Conversion and Renovation,0,B4,Site Works - Contractor,204,680.34,12/1/2012,C,PORTAKABIN LIMITED            
2012-DEC,,,Poplar Permanent Expansion              ,CS034AB,New Construction Conversion and Renovation,0,B4,Site Works - Contractor,205,"12,710.88",12/13/2012,C,THE MCAVOY GROUP              
2012-DEC,,,Liberty expansion                       ,CS036AB,New Construction Conversion and Renovation,0,B1,Design and Supervision - Consultants Fee,206,"39,035.06",12/3/2012,C,ATKINS LIMITED                
2012-DEC,,,Liberty expansion                       ,CS036AB,New Construction Conversion and Renovation,0,B4,Site Works - Contractor,207,"5,120.00",12/20/2012,C,MOY CONSTRUCTION CO LTD       
2012-DEC,,,Liberty expansion                       ,CS036AB,New Construction Conversion and Renovation,0,B4,Site Works - Contractor,208,"174,695.25",12/5/2012,C,R DURTNELL & SONS LTD         
2012-DEC,,,Targeted Capital Fund (TCF)             ,CS047SA,New Construction Conversion and Renovation,0,B4,Site Works - Contractor,209,"1,901.47",11/27/2012,C,EXTRASPACE (NI) LTD           
2012-DEC,,,Wimbledon Park expansion                ,CS050AA,New Construction Conversion and Renovation,0,B1,Design and Supervision - Consultants Fee,210,"2,400.00",11/30/2012,C,SYNERGY CPC LLP               
2012-DEC,,,Wimbledon Park expansion                ,CS050AA,New Construction Conversion and Renovation,0,B1,Design and Supervision - Consultants Fee,211,"24,815.73",12/10/2012,C,CURL LA TOURELLE ARCHITECTS   
2012-DEC,,,Wimbledon Park expansion                ,CS050AA,New Construction Conversion and Renovation,0,B2,Design and Supervision - Site Surveys,212,"3,200.00",11/29/2012,C,MIDDLEMARCH ENVIRONMENTAL LTD 
2012-DEC,,,Wimbledon Park expansion                ,CS050AA,New Construction Conversion and Renovation,0,B2,Design and Supervision - Site Surveys,213,"1,020.00",12/7/2012,C,HALCROW GROUP LTD             
2012-DEC,,,Wimbledon Park expansion                ,CS050AA,New Construction Conversion and Renovation,0,B2,Design and Supervision - Site Surveys,214,"3,500.00",12/7/2012,C,HALCROW GROUP LTD             
2012-DEC,,,Wimbledon Park expansion                ,CS050AA,New Construction Conversion and Renovation,0,B4,Site Works - Contractor,215,"166,187.02",5/5/2012,C,GEE CONSTRUCTION LTD          
2012-DEC,,,Wimbledon Park expansion                ,CS050AA,New Construction Conversion and Renovation,0,B4,Site Works - Contractor,216,"5,386.29",10/19/2012,C,PORTAKABIN LIMITED            
2012-DEC,,,Wimbledon Park expansion                ,CS050AA,New Construction Conversion and Renovation,0,B4,Site Works - Contractor,217,"166,187.02",12/5/2012,C,GEE CONSTRUCTION LTD          
2012-DEC,,,The Sherwood - Roof repairs             ,CS053AB,New Construction Conversion and Renovation,0,B1,Design and Supervision - Consultants Fee,218,"1,238.56",10/23/2012,C,EC HARRIS LLP                 
2012-DEC,,,IT Equipment                            ,CT006EA,Vehicles Plant Equipment and Machinery,0,D3,Equipment,219,"33,560.00",11/16/2012,C,COMPUTERLAND                  
2012-DEC,,,IT Equipment                            ,CT006EA,Vehicles Plant Equipment and Machinery,0,D3,Equipment,220,"1,780.00",11/16/2012,C,COMPUTERLAND                  
2012-DEC,,,IT Equipment                            ,CT006EA,Vehicles Plant Equipment and Machinery,0,D3,Equipment,221,"1,815.00",11/5/2012,C,SPECIALIST COMPUTER CENT. PLC 
2012-DEC,,,IT Equipment                            ,CT006EA,Vehicles Plant Equipment and Machinery,0,D3,Equipment,222,"11,124.80",11/20/2012,C,COMPUTERLAND                  
2012-DEC,,,IT Equipment                            ,CT006EA,Vehicles Plant Equipment and Machinery,0,D3,Equipment,223,843.04,11/20/2012,C,COMPUTERLAND                  
2012-DEC,,,IT Equipment                            ,CT006EA,Vehicles Plant Equipment and Machinery,0,D3,Equipment,224,"6,666.00",12/13/2012,C,VIGLEN LIMITED                
2012-DEC,,,IT Equipment                            ,CT006EA,Other Capital Expenditure,0,E3,Miscellaneous Capital Expenditure,225,"2,040.00",11/20/2012,C,COMPUTERLAND                  
2012-DEC,,,IT Equipment                            ,CT006EA,Other Capital Expenditure,0,E3,Miscellaneous Capital Expenditure,226,"1,900.00",10/31/2012,C,HORNBILL SERVICE MGMENT LTD   
2012-DEC,,,IT Strategy - unallocated               ,CT007EW,New Construction Conversion and Renovation,0,B4,Site Works - Contractor,227,"37,577.42",9/26/2012,C,DATA TECHNIQUES               
2012-DEC,,,IT Strategy - unallocated               ,CT007EW,New Construction Conversion and Renovation,0,B4,Site Works - Contractor,228,582.5,11/9/2012,C,KH FLOORING LTD               
2012-DEC,,,IT Strategy - unallocated               ,CT007EW,Vehicles Plant Equipment and Machinery,0,D3,Equipment,229,"13,230.00",12/12/2012,C,INCOM TELECOMMUNICATIONS      
2012-DEC,,,IT Strategy - unallocated               ,CT007EW,Other Capital Expenditure,0,E3,Miscellaneous Capital Expenditure,230,"1,890.00",11/12/2012,C,NETWORK SOLUTIONS INC         
2012-DEC,,,IT Strategy - unallocated               ,CT007EW,Other Capital Expenditure,0,E3,Miscellaneous Capital Expenditure,231,580,11/30/2012,C,NETWORK SOLUTIONS INC         
2012-DEC,,,IT Strategy - unallocated               ,CT007EW,Other Capital Expenditure,0,E3,Miscellaneous Capital Expenditure,232,880,11/30/2012,C,NETWORK SOLUTIONS INC         
2012-DEC,,,PABX                                    ,CT009EA,Other Capital Expenditure,0,E3,Miscellaneous Capital Expenditure,233,"2,752.10",11/16/2012,C,NEC (UK) LTD                  
2012-DEC,,,PABX                                    ,CT009EA,Other Capital Expenditure,0,E3,Miscellaneous Capital Expenditure,234,"3,021.58",11/16/2012,C,NEC (UK) LTD                  
2012-DEC,,,PABX                                    ,CT009EA,Other Capital Expenditure,0,E3,Miscellaneous Capital Expenditure,235,540.44,11/16/2012,C,NEC (UK) LTD                  
2012-DEC,,,PABX                                    ,CT009EA,Other Capital Expenditure,0,E3,Miscellaneous Capital Expenditure,236,"1,945.58",11/16/2012,C,NEC (UK) LTD                  
2012-DEC,,,PABX                                    ,CT009EA,Other Capital Expenditure,0,E3,Miscellaneous Capital Expenditure,237,"3,125.00",11/16/2012,C,NEC (UK) LTD                  
2012-DEC,,,PABX                                    ,CT009EA,Other Capital Expenditure,0,E3,Miscellaneous Capital Expenditure,238,625,11/16/2012,C,NEC (UK) LTD                  
2012-DEC,,,PABX                                    ,CT009EA,Other Capital Expenditure,0,E3,Miscellaneous Capital Expenditure,239,"1,250.00",11/16/2012,C,NEC (UK) LTD                  
2012-DEC,,,PABX                                    ,CT009EA,Other Capital Expenditure,0,E3,Miscellaneous Capital Expenditure,240,"1,180.38",11/16/2012,C,NEC (UK) LTD                  
2012-DEC,,,PABX                                    ,CT009EA,Other Capital Expenditure,0,E3,Miscellaneous Capital Expenditure,241,"2,037.78",11/16/2012,C,NEC (UK) LTD                  
2012-DEC,,,PABX                                    ,CT009EA,Other Capital Expenditure,0,E3,Miscellaneous Capital Expenditure,242,"1,227.97",11/16/2012,C,NEC (UK) LTD                  
2012-DEC,,,PABX                                    ,CT009EA,Other Capital Expenditure,0,E3,Miscellaneous Capital Expenditure,243,"1,390.00",11/16/2012,C,NEC (UK) LTD                  
2012-DEC,,,Stability Networks                      ,CT012ED,Other Capital Expenditure,0,E3,Miscellaneous Capital Expenditure,244,949.9,7/31/2012,C,HORNBILL SERVICE MGMENT LTD   
2012-DEC,,,Stability Networks                      ,CT012ED,Other Capital Expenditure,0,E3,Miscellaneous Capital Expenditure,245,950,7/31/2012,C,HORNBILL SERVICE MGMENT LTD   
2012-DEC,,,Proactis to Carefirst link              ,CT012EJ,Vehicles Plant Equipment and Machinery,0,D5,Software,246,"8,800.00",12/2/2012,C,UNISERVE CONSULTING LIMITED   
2012-DEC,,,Cloud Computing - Cap Ambition          ,CT013EA,Vehicles Plant Equipment and Machinery,0,D3,Equipment,247,"12,296.37",11/28/2012,C,LONDON BOROUGH OF SUTTON      
2012-DEC,,,Cloud Computing - Cap Ambition          ,CT013EA,Other Capital Expenditure,0,E3,Miscellaneous Capital Expenditure,248,"19,905.00",12/6/2012,C,LONDON GRID FOR LEARNING TRUST
2012-DEC,,,Cloud Computing - Cap Ambition          ,CT013EA,Other Capital Expenditure,0,E3,Miscellaneous Capital Expenditure,249,"19,905.00",12/6/2012,C,LONDON GRID FOR LEARNING TRUST
2012-DEC,,,Cloud Computing - Cap Ambition          ,CT013EA,Other Capital Expenditure,0,E3,Miscellaneous Capital Expenditure,250,"19,905.00",12/6/2012,C,LONDON GRID FOR LEARNING TRUST
2012-DEC,,,Cloud Computing - Cap Ambition          ,CT013EA,Other Capital Expenditure,0,E3,Miscellaneous Capital Expenditure,251,"19,905.00",12/6/2012,C,LONDON GRID FOR LEARNING TRUST
2012-DEC,,,Cloud Computing - Cap Ambition          ,CT013EA,Other Capital Expenditure,0,E3,Miscellaneous Capital Expenditure,252,"19,905.00",12/6/2012,C,LONDON GRID FOR LEARNING TRUST
2012-DEC,,,Cloud Computing - Cap Ambition          ,CT013EA,Other Capital Expenditure,0,E3,Miscellaneous Capital Expenditure,253,"30,321.00",12/6/2012,C,LONDON GRID FOR LEARNING TRUST
2012-DEC,,,Cloud Computing - Cap Ambition          ,CT013EA,Other Capital Expenditure,0,E3,Miscellaneous Capital Expenditure,254,"30,321.00",12/6/2012,C,LONDON GRID FOR LEARNING TRUST
2012-DEC,,,Cloud Computing - Cap Ambition          ,CT013EA,Other Capital Expenditure,0,E3,Miscellaneous Capital Expenditure,255,"12,890.00",12/6/2012,C,LONDON GRID FOR LEARNING TRUST
2012-DEC,,,Cloud Computing - Cap Ambition          ,CT013EA,Other Capital Expenditure,0,E3,Miscellaneous Capital Expenditure,256,"12,890.00",12/6/2012,C,LONDON GRID FOR LEARNING TRUST
2012-DEC,Central Services,Local Tax Collection,Local Taxation Services                 ,E02100,Supplies & Services           ,Services                      ,DF95,Services from Provider,257,"1,508.00",11/30/2012,R,DATATANK                      
2012-DEC,Central Services,Local Tax Collection,Local Taxation Services                 ,E02100,Support Services,Corporate Services,GB16,Legal,258,920,11/21/2012,R,WELBECK LAW LLP               
2012-DEC,Central Services,Local Tax Collection,Local Taxation Services                 ,E02100,Support Services,Corporate Services,GB16,Legal,259,975,8/18/2012,R,PARKER KANJI LTD              
2012-DEC,Central Services,Local Tax Collection,Local Taxation Services                 ,E02100,Support Services,Corporate Services,GB16,Legal,260,"1,050.00",11/13/2012,R,PARKER KANJI LTD              
2012-DEC,Central Services,Local Tax Collection,Local Taxation Services                 ,E02100,Support Services,Corporate Services,GB16,Legal,261,920,11/21/2012,R,WELBECK LAW LLP               
2012-DEC,Central Services,Local Tax Collection,Local Taxation Services                 ,E02100,Support Services,Corporate Services,GB16,Legal,262,"1,260.00",12/7/2012,R,WELBECK LAW LLP               
2012-DEC,Central Services,Local Tax Collection,Local Taxation Services                 ,E02100,Support Services,Corporate Services,GB16,Legal,263,"2,137.50",12/7/2012,R,WELBECK LAW LLP               
2012-DEC,Central Services,Local Tax Collection,Local Taxation Services                 ,E02100,Support Services,Corporate Services,GB16,Legal,264,920,12/11/2012,R,WELBECK LAW LLP               
2012-DEC,Central Services,Local Tax Collection,Local Taxation Services                 ,E02100,Support Services,Corporate Services,GB16,Legal,265,920,11/21/2012,R,WELBECK LAW LLP               
2012-DEC,Housing Services,Housing Benefit Administration,Benefits Administration                 ,E02120,Supplies & Services           ,Comms and Computing           ,DG09,Computer Purchases - Misc,266,"1,800.00",11/29/2012,R,CIVICA UK LIMITED             
2012-DEC,Central Services,Fully rechargeable Overheads,Payroll                                 ,E02140,Supplies & Services           ,Comms and Computing           ,DG02,Software Licences,267,715,11/30/2012,R,TMP WORLDWIDE LTD             
2012-DEC,Central Services,Fully rechargeable Overheads,Payroll                                 ,E02140,Supplies & Services           ,Comms and Computing           ,DG02,Software Licences,268,715,12/21/2012,R,TMP WORLDWIDE LTD             
2012-DEC,Central Services,Fully rechargeable Overheads,AD Customer Services                    ,E02180,Employees                     ,Indirect Employee Expenses    ,AB57,External Training Costs,269,595,11/28/2012,R,THE CONSULTATION INSTITUTE    
2012-DEC,Central Services,Fully rechargeable Overheads,AD Customer Services                    ,E02180,Supplies & Services           ,Grants and Subscriptions      ,DJ04,Subscriptions,270,"2,400.00",9/10/2012,R,CIPFA BUSINESS LTD            
2012-DEC,Central Services,Fully rechargeable Overheads,Post Room                               ,E02220,Supplies & Services           ,Prntng Stnry Gen Off Exp      ,DE30,General Office Expense        ,271,500,11/28/2012,R,TRAVELCARE                    
2012-DEC,Central Services,Fully rechargeable Overheads,Civic Centre                            ,E02222,Premises Related Expenditure  ,RepairsAlterations&MtceOfBldgs,BA29,Build Maint Mgt Fees,272,"4,055.50",11/24/2012,R,KH FLOORING LTD               
2012-DEC,Central Services,Fully rechargeable Overheads,Civic Centre                            ,E02222,Premises Related Expenditure  ,RepairsAlterations&MtceOfBldgs,BA29,Build Maint Mgt Fees,273,"15,000.00",10/18/2012,R,SALTASH ENTERPRISES LTD       
2012-DEC,Central Services,Fully rechargeable Overheads,Civic Centre                            ,E02222,Premises Related Expenditure  ,RepairsAlterations&MtceOfBldgs,BA29,Build Maint Mgt Fees,274,"3,000.00",10/18/2012,R,SALTASH ENTERPRISES LTD       
2012-DEC,Central Services,Fully rechargeable Overheads,Civic Centre                            ,E02222,Premises Related Expenditure  ,RepairsAlterations&MtceOfBldgs,BA29,Build Maint Mgt Fees,275,"2,095.00",12/9/2012,R,KH FLOORING LTD               
2012-DEC,Central Services,Fully rechargeable Overheads,Civic Centre                            ,E02222,Premises Related Expenditure  ,Cleaning and Domestic Supplies,BH01,Cleaning Materials,276,510.6,11/21/2012,R,GREENHAM                      
2012-DEC,Central Services,Fully rechargeable Overheads,Civic Centre                            ,E02222,Premises Related Expenditure  ,Cleaning and Domestic Supplies,BH01,Cleaning Materials,277,510.6,12/4/2012,R,GREENHAM                      
2012-DEC,Central Services,Fully rechargeable Overheads,Civic Centre                            ,E02222,Premises Related Expenditure  ,Cleaning and Domestic Supplies,BH01,Cleaning Materials,278,680.8,12/17/2012,R,GREENHAM TRADING LTD          
2012-DEC,Central Services,Fully rechargeable Overheads,Civic Centre                            ,E02222,Premises Related Expenditure  ,Cleaning and Domestic Supplies,BH03,Cleaning Services,279,"3,035.93",12/1/2012,R,BIRKIN CLEANING SERVICES LTD  
2012-DEC,Central Services,Fully rechargeable Overheads,Civic Centre                            ,E02222,Premises Related Expenditure  ,Cleaning and Domestic Supplies,BH03,Cleaning Services,280,819.47,11/1/2012,R,BIRKIN CLEANING SERVICES LTD  
2012-DEC,Central Services,Fully rechargeable Overheads,Civic Centre                            ,E02222,Premises Related Expenditure  ,Cleaning and Domestic Supplies,BH03,Cleaning Services,281,"1,464.69",11/1/2012,R,BIRKIN CLEANING SERVICES LTD  
2012-DEC,Central Services,Fully rechargeable Overheads,Civic Centre                            ,E02222,Premises Related Expenditure  ,Cleaning and Domestic Supplies,BH03,Cleaning Services,282,"1,511.31",11/1/2012,R,BIRKIN CLEANING SERVICES LTD  
2012-DEC,Central Services,Fully rechargeable Overheads,Civic Centre                            ,E02222,Premises Related Expenditure  ,Cleaning and Domestic Supplies,BH03,Cleaning Services,283,"6,473.18",11/1/2012,R,BIRKIN CLEANING SERVICES LTD  
2012-DEC,Central Services,Fully rechargeable Overheads,Civic Centre                            ,E02222,Premises Related Expenditure  ,Cleaning and Domestic Supplies,BH03,Cleaning Services,284,"1,395.29",11/1/2012,R,BIRKIN CLEANING SERVICES LTD  
2012-DEC,Central Services,Fully rechargeable Overheads,Civic Centre                            ,E02222,Premises Related Expenditure  ,Cleaning and Domestic Supplies,BH03,Cleaning Services,285,"1,642.40",11/1/2012,R,BIRKIN CLEANING SERVICES LTD  
2012-DEC,Central Services,Fully rechargeable Overheads,Civic Centre                            ,E02222,Premises Related Expenditure  ,Cleaning and Domestic Supplies,BH03,Cleaning Services,286,"1,199.41",11/1/2012,R,BIRKIN CLEANING SERVICES LTD  
2012-DEC,Central Services,Fully rechargeable Overheads,Civic Centre                            ,E02222,Premises Related Expenditure  ,Cleaning and Domestic Supplies,BH03,Cleaning Services,287,"1,215.98",11/1/2012,R,BIRKIN CLEANING SERVICES LTD  
2012-DEC,Central Services,Fully rechargeable Overheads,Civic Centre                            ,E02222,Third Party Payments          ,Private Contractors           ,EH02,Miscellaneous Hired Services,288,616.2,12/28/2012,R,GREENWORKS                    
2012-DEC,Central Services,Fully rechargeable Overheads,Civic Centre                            ,E02222,Third Party Payments          ,Private Contractors           ,EH10,Contract Payments,289,"3,568.93",11/29/2012,R,ISS COLLECTIONS LTD           
2012-DEC,Central Services,Fully rechargeable Overheads,Civic Centre                            ,E02222,Third Party Payments          ,Private Contractors           ,EH10,Contract Payments,290,"2,993.28",11/23/2012,R,ISS COLLECTIONS LTD           
2012-DEC,Central Services,Fully rechargeable Overheads,Facilities                              ,E02231,Premises Related Expenditure  ,RepairsAlterations&MtceOfBldgs,BA89,Fire Safety Risk Assessment,291,572,9/30/2012,R,FIRST CHOICE FACILITIES PLC   
2012-DEC,Central Services,Fully rechargeable Overheads,Facilities                              ,E02231,Premises Related Expenditure  ,RepairsAlterations&MtceOfBldgs,BA89,Fire Safety Risk Assessment,292,"6,231.00",9/30/2012,R,FIRST CHOICE FACILITIES PLC   
2012-DEC,Central Services,Fully rechargeable Overheads,Facilities                              ,E02231,Premises Related Expenditure  ,RepairsAlterations&MtceOfBldgs,BA89,Fire Safety Risk Assessment,293,"5,065.00",9/30/2012,R,FIRST CHOICE FACILITIES PLC   
2012-DEC,Central Services,Fully rechargeable Overheads,Facilities                              ,E02231,Premises Related Expenditure  ,RepairsAlterations&MtceOfBldgs,BA89,Fire Safety Risk Assessment,294,"6,326.00",9/30/2012,R,FIRST CHOICE FACILITIES PLC   
2012-DEC,Central Services,Fully rechargeable Overheads,Facilities                              ,E02231,Premises Related Expenditure  ,RepairsAlterations&MtceOfBldgs,BA89,Fire Safety Risk Assessment,295,572,9/30/2012,R,FIRST CHOICE FACILITIES PLC   
2012-DEC,Central Services,Fully rechargeable Overheads,Facilities                              ,E02231,Premises Related Expenditure  ,RepairsAlterations&MtceOfBldgs,BA89,Fire Safety Risk Assessment,296,"12,475.00",9/30/2012,R,FIRST CHOICE FACILITIES PLC   
2012-DEC,Central Services,Fully rechargeable Overheads,Facilities                              ,E02231,Supplies & Services           ,Prntng Stnry Gen Off Exp      ,DE03,Stationery,297,762.6,12/12/2012,R,OFFICE DEPOT UK LTD           
2012-DEC,Central Services,Fully rechargeable Overheads,Corporate Services Buildings            ,E02240,Premises Related Expenditure  ,RepairsAlterations&MtceOfBldgs,BA01,DDM - General Building,298,"1,480.00",12/4/2012,R,AVON BARRIER COMPANY LTD      
2012-DEC,Central Services,Fully rechargeable Overheads,Corporate Services Buildings            ,E02240,Premises Related Expenditure  ,RepairsAlterations&MtceOfBldgs,BA01,DDM - General Building,299,"2,172.00",10/22/2012,R,STATUTORY SUPPORT SERV(UK) LTD
2012-DEC,Central Services,Fully rechargeable Overheads,Corporate Services Buildings            ,E02240,Premises Related Expenditure  ,RepairsAlterations&MtceOfBldgs,BA01,DDM - General Building,300,"2,527.09",10/18/2012,R,SALTASH ENTERPRISES LTD       
2012-DEC,Central Services,Fully rechargeable Overheads,Corporate Services Buildings            ,E02240,Premises Related Expenditure  ,RepairsAlterations&MtceOfBldgs,BA01,DDM - General Building,301,"1,376.00",10/18/2012,R,SALTASH ENTERPRISES LTD       
2012-DEC,Central Services,Fully rechargeable Overheads,Corporate Services Buildings            ,E02240,Premises Related Expenditure  ,RepairsAlterations&MtceOfBldgs,BA03,DDM - Mechanical,302,"4,098.21",11/22/2012,R,COFELY LIMITED                
2012-DEC,Central Services,Fully rechargeable Overheads,Corporate Services Buildings            ,E02240,Premises Related Expenditure  ,RepairsAlterations&MtceOfBldgs,BA03,DDM - Mechanical,303,560,11/19/2012,R,COFELY LIMITED                
2012-DEC,Central Services,Fully rechargeable Overheads,Corporate Services Buildings            ,E02240,Premises Related Expenditure  ,RepairsAlterations&MtceOfBldgs,BA03,DDM - Mechanical,304,"2,001.00",11/21/2012,R,COFELY LIMITED                
2012-DEC,Central Services,Fully rechargeable Overheads,Corporate Services Buildings            ,E02240,Premises Related Expenditure  ,RepairsAlterations&MtceOfBldgs,BA05,DDM - Electrical,305,"1,066.00",6/30/2012,R,FIRST CHOICE FACILITIES PLC   
2012-DEC,Central Services,Fully rechargeable Overheads,Corporate Services Buildings            ,E02240,Premises Related Expenditure  ,Water Services                ,BE01,Use of Water (Metered),306,"1,101.21",11/26/2012,R,SUTTON AND EAST SURREY WATER  
2012-DEC,Childrens & Education Services,Service Strategy,CSF Buildings                           ,E02256,Premises Related Expenditure  ,RepairsAlterations&MtceOfBldgs,BA01,DDM - General Building,307,"1,997.00",11/28/2012,R,COBSEN-DAVIES ROOFING (LOND)LT
2012-DEC,Cultural Env Reg&Plan Services,Open Spaces,E & R Buildings                         ,E02344,Premises Related Expenditure  ,RepairsAlterations&MtceOfBldgs,BA03,DDM - Mechanical,308,569.45,11/22/2012,R,COFELY LIMITED                
2012-DEC,Adult Social Care,Adult u65 Phys/Sensory Impair,C & H Buildings                         ,E02345,Premises Related Expenditure  ,RepairsAlterations&MtceOfBldgs,BA03,DDM - Mechanical,309,"3,481.41",9/27/2012,R,COFELY LIMITED                
2012-DEC,Adult Social Care,Adult u65 Phys/Sensory Impair,C & H Buildings                         ,E02345,Premises Related Expenditure  ,RepairsAlterations&MtceOfBldgs,BA03,DDM - Mechanical,310,694.4,11/22/2012,R,COFELY LIMITED                
2012-DEC,Cultural Env Reg&Plan Services,Open Spaces,Leisure Buildings                       ,E02350,Premises Related Expenditure  ,RepairsAlterations&MtceOfBldgs,BA03,DDM - Mechanical,311,668.48,11/22/2012,R,COFELY LIMITED                
2012-DEC,Central Services,Fully rechargeable Overheads,BUSINESS PARTNERS                       ,E04059,Employees                     ,Direct Employee Expenses      ,AA17,Agency Staff & Casual Paymts,312,"10,075.00",12/1/2012,R,REDACTED
2012-DEC,Central Services,Fully rechargeable Overheads,Director of Corporate Services          ,E04060,Employees                     ,Indirect Employee Expenses    ,AB57,External Training Costs,313,"1,755.00",10/12/2012,R,CIPFA                         
2012-DEC,Central Services,Fully rechargeable Overheads,Director of Corporate Services          ,E04060,Employees                     ,Indirect Employee Expenses    ,AB57,External Training Costs,314,"1,755.00",10/12/2012,R,CIPFA                         
2012-DEC,Central Services,Fully rechargeable Overheads,AD RESOURCES                            ,E04061,Employees                     ,Direct Employee Expenses      ,AA17,Agency Staff & Casual Paymts,315,"14,250.00",11/23/2012,R,REDACTED
2012-DEC,Central Services,Fully rechargeable Overheads,AD RESOURCES                            ,E04061,Employees                     ,Direct Employee Expenses      ,AA17,Agency Staff & Casual Paymts,316,"15,000.00",12/7/2012,R,REDACTED
2012-DEC,Central Services,Fully rechargeable Overheads,AD RESOURCES                            ,E04061,Supplies & Services           ,Services                      ,DF03,Consultants,317,"1,200.00",12/2/2012,R,UNISERVE CONSULTING LIMITED   
2012-DEC,Central Services,Fully rechargeable Overheads,AD RESOURCES                            ,E04061,Supplies & Services           ,Services                      ,DF03,Consultants,318,"1,000.00",12/2/2012,R,UNISERVE CONSULTING LIMITED   
2012-DEC,Central Services,Fully rechargeable Overheads,Insurance Premiums & Funding            ,E05161,Supplies & Services           ,Services                      ,DF74,Insurance Premiums,319,"5,000.00",10/5/2012,R,JLT SPECIALTY LIMITED         
2012-DEC,Central Services,Fully rechargeable Overheads,Corporate Accountancy                   ,E06209,Supplies & Services           ,Prntng Stnry Gen Off Exp      ,DE02,General Publications,320,780,11/19/2012,R,CIPFA                         
2012-DEC,Central Services,Fully rechargeable Overheads,Corporate Accountancy                   ,E06209,Supplies & Services           ,Grants and Subscriptions      ,DJ04,Subscriptions,321,"1,250.00",11/28/2012,R,PRICEWATERHOUSE COOPERS       
2012-DEC,Central Services,Fully rechargeable Overheads,Corporate Accountancy                   ,E06209,Supplies & Services           ,Grants and Subscriptions      ,DJ04,Subscriptions,322,"2,500.00",12/3/2012,R,PRICEWATERHOUSE COOPERS       
2012-DEC,Central Services,Fully rechargeable Overheads,Treasury & Insurance                    ,E06222,Employees                     ,Direct Employee Expenses      ,AA17,Agency Staff & Casual Paymts,323,"7,050.00",11/6/2012,R,RANDSTAD FIN & PROF LTD.      
2012-DEC,Central Services,Fully rechargeable Overheads,Treasury & Insurance                    ,E06222,Employees                     ,Direct Employee Expenses      ,AA17,Agency Staff & Casual Paymts,324,"2,350.00",12/17/2012,R,RANDSTAD FIN & PROF LTD.      
2012-DEC,Central Services,Fully rechargeable Overheads,Parking Cash Collect'n Contrct          ,E06225,Third Party Payments          ,Private Contractors           ,EH02,Miscellaneous Hired Services,325,"1,450.00",11/30/2012,R,BANKING AUTOMATION LTD        
2012-DEC,Central Services,Fully rechargeable Overheads,Establishments' Cash Collect'n          ,E06226,Third Party Payments          ,Private Contractors           ,EH02,Miscellaneous Hired Services,326,"3,176.87",11/15/2012,R,LOOMIS UK LTD                 
2012-DEC,Central Services,Fully rechargeable Overheads,Establishments' Cash Collect'n          ,E06226,Third Party Payments          ,Private Contractors           ,EH02,Miscellaneous Hired Services,327,657.15,11/30/2012,R,LOOMIS UK LTD                 
2012-DEC,Central Services,Fully rechargeable Overheads,Establishments' Cash Collect'n          ,E06226,Third Party Payments          ,Private Contractors           ,EH02,Miscellaneous Hired Services,328,"3,176.87",12/14/2012,R,LOOMIS UK LTD                 
2012-DEC,Central Services,Fully rechargeable Overheads,Service Accountancy                     ,E06227,Employees                     ,Direct Employee Expenses      ,AA17,Agency Staff & Casual Paymts,329,"4,600.00",12/4/2012,R,RANDSTAD FIN & PROF LTD.      
2012-DEC,Central Services,Fully rechargeable Overheads,Service Accountancy                     ,E06227,Employees                     ,Direct Employee Expenses      ,AA17,Agency Staff & Casual Paymts,330,"6,900.00",11/6/2012,R,RANDSTAD FIN & PROF LTD.      
2012-DEC,Central Services,Fully rechargeable Overheads,Service Accountancy                     ,E06227,Employees                     ,Direct Employee Expenses      ,AA17,Agency Staff & Casual Paymts,331,"1,840.00",11/13/2012,R,RANDSTAD FIN & PROF LTD.      
2012-DEC,Central Services,Fully rechargeable Overheads,AD CORPORATE GOVERNANCE               ,E10279,Employees                     ,Indirect Employee Expenses    ,AB56,Internal Training Costs,332,500,11/8/2012,R,HOEY AINSCOUGHT ASSOCIATES    
2012-DEC,Central Services,Fully rechargeable Overheads,AD CORPORATE GOVERNANCE               ,E10279,Supplies & Services           ,Equip Furniture/Materials     ,DA09,Equip-Purchases,333,"1,861.10",12/5/2012,R,CIRRUS RESEARCH PLC           
2012-DEC,Central Services,Fully rechargeable Overheads,Legal Services                          ,E10282,Supplies & Services           ,Services                      ,DF28,Court Fees,334,"1,900.00",12/14/2012,R,REDACTED
2012-DEC,Central Services,Fully rechargeable Overheads,Legal Services                          ,E10282,Supplies & Services           ,Services                      ,DF28,Court Fees,335,"2,100.00",12/14/2012,R,REDACTED
2012-DEC,Central Services,Fully rechargeable Overheads,Legal Services                          ,E10282,Supplies & Services           ,Services                      ,DF28,Court Fees,336,700,12/14/2012,R,REDACTED
2012-DEC,Central Services,Fully rechargeable Overheads,Legal Services                          ,E10282,Supplies & Services           ,Services                      ,DF28,Court Fees,337,"2,625.00",12/14/2012,R,REDACTED
2012-DEC,Central Services,Fully rechargeable Overheads,Legal Services                          ,E10282,Supplies & Services           ,Services                      ,DF28,Court Fees,338,"2,225.00",12/18/2012,R,REDACTED
2012-DEC,Central Services,Elections,Electoral Registration                  ,E10285,Supplies & Services           ,Comms and Computing           ,DG04,Postage - General,339,642.08,11/19/2012,R,ROYAL MAIL GROUP LTD          
2012-DEC,Central Services,Elections,Electoral Registration                  ,E10285,Supplies & Services           ,Comms and Computing           ,DG04,Postage - General,340,"1,167.36",12/12/2012,R,HALAROSE LIMITED              
2012-DEC,Central Services,Fully rechargeable Overheads,Shared Legal Service                    ,E10288,Supplies & Services           ,Comms and Computing           ,DG50,Other IT Expenditure,341,"-5,166.55",12/4/2012,R,LEXIS NEXIS                   
2012-DEC,Central Services,Fully rechargeable Overheads,Shared Legal Service                    ,E10288,Supplies & Services           ,Comms and Computing           ,DG50,Other IT Expenditure,342,"-2,640.00",12/4/2012,R,LEXIS NEXIS                   
2012-DEC,Central Services,Fully rechargeable Overheads,Shared Legal Service                    ,E10288,Supplies & Services           ,Grants and Subscriptions      ,DJ04,Subscriptions,343,"9,732.00",11/22/2012,R,THE LAW SOCIETY               
2012-DEC,Central Services,Fully rechargeable Overheads,Shared Legal Service                    ,E10288,Supplies & Services           ,Grants and Subscriptions      ,DJ04,Subscriptions,344,"1,579.20",12/13/2012,R,SGS                           
2012-DEC,Central Services,Fully rechargeable Overheads,Richmond Legal                          ,E10289,Supplies & Services           ,Services                      ,DF11,Counsel's fees,345,"2,475.00",11/12/2012,R,REDACTED
2012-DEC,Central Services,Fully rechargeable Overheads,Richmond Legal                          ,E10289,Supplies & Services           ,Services                      ,DF11,Counsel's fees,346,"1,360.00",11/23/2012,R,REDACTED
2012-DEC,Central Services,Fully rechargeable Overheads,Richmond Legal                          ,E10289,Supplies & Services           ,Services                      ,DF11,Counsel's fees,347,500,11/28/2012,R,REDACTED
2012-DEC,Central Services,Fully rechargeable Overheads,Richmond Legal                          ,E10289,Supplies & Services           ,Services                      ,DF11,Counsel's fees,348,"1,000.00",11/28/2012,R,REDACTED
2012-DEC,Central Services,Fully rechargeable Overheads,Richmond Legal                          ,E10289,Supplies & Services           ,Services                      ,DF11,Counsel's fees,349,"2,900.00",11/14/2012,R,REDACTED
2012-DEC,Central Services,Fully rechargeable Overheads,Richmond Legal                          ,E10289,Supplies & Services           ,Services                      ,DF11,Counsel's fees,350,550,11/26/2012,R,REDACTED
2012-DEC,Central Services,Fully rechargeable Overheads,Richmond Legal                          ,E10289,Supplies & Services           ,Services                      ,DF11,Counsel's fees,351,650,11/29/2012,R,REDACTED
2012-DEC,Central Services,Fully rechargeable Overheads,Richmond Legal                          ,E10289,Supplies & Services           ,Services                      ,DF11,Counsel's fees,352,"1,500.00",10/26/2012,R,REDACTED
2012-DEC,Central Services,Fully rechargeable Overheads,Richmond Legal                          ,E10289,Supplies & Services           ,Services                      ,DF11,Counsel's fees,353,875,11/7/2012,R,REDACTED
2012-DEC,Central Services,Fully rechargeable Overheads,Richmond Legal                          ,E10289,Supplies & Services           ,Services                      ,DF11,Counsel's fees,354,650,11/29/2012,R,REDACTED
2012-DEC,Central Services,Fully rechargeable Overheads,Richmond Legal                          ,E10289,Supplies & Services           ,Services                      ,DF11,Counsel's fees,355,568.75,11/20/2012,R,REDACTED
2012-DEC,Central Services,Fully rechargeable Overheads,Richmond Legal                          ,E10289,Supplies & Services           ,Services                      ,DF95,Services from Provider,356,"1,500.00",9/27/2012,R,SHOOSMITHS SOLICITORS         
2012-DEC,Central Services,Fully rechargeable Overheads,Richmond Legal                          ,E10289,Supplies & Services           ,Services                      ,DF95,Services from Provider,357,"1,417.00",9/30/2012,R,SHARPE PRITCHARD SOLICITORS   
2012-DEC,Central Services,Fully rechargeable Overheads,Richmond Legal                          ,E10289,Supplies & Services           ,Services                      ,DF95,Services from Provider,358,"3,500.00",12/5/2012,R,REDACTED
2012-DEC,Central Services,Fully rechargeable Overheads,AD Business Improvement                 ,E14358,Employees                     ,Direct Employee Expenses      ,AA17,Agency Staff & Casual Paymts,359,"2,260.00",11/22/2012,R,HAYS RECRUITING EXPERTS       
2012-DEC,Central Services,Fully rechargeable Overheads,AD Business Improvement                 ,E14358,Employees                     ,Direct Employee Expenses      ,AA17,Agency Staff & Casual Paymts,360,"1,356.00",11/12/2012,R,HAYS RECRUITING EXPERTS       
2012-DEC,Central Services,Fully rechargeable Overheads,AD Business Improvement                 ,E14358,Employees                     ,Direct Employee Expenses      ,AA17,Agency Staff & Casual Paymts,361,"2,260.00",11/30/2012,R,HAYS RECRUITING EXPERTS       
2012-DEC,Central Services,Fully rechargeable Overheads,AD Business Improvement                 ,E14358,Employees                     ,Direct Employee Expenses      ,AA17,Agency Staff & Casual Paymts,362,"1,808.00",12/6/2012,R,HAYS RECRUITING EXPERTS       
2012-DEC,Central Services,Fully rechargeable Overheads,BI IT Projects                          ,E14360,Supplies & Services           ,Comms and Computing           ,DG07,Computer Software,363,850,11/30/2012,R,ALIGNED ASSETS                
2012-DEC,Central Services,Fully rechargeable Overheads,Systems & Projects                      ,E14366,Supplies & Services           ,Services                      ,DF03,Consultants,364,"1,250.00",11/14/2012,R,CASHFRIDAY                    
2012-DEC,Central Services,Fully rechargeable Overheads,Systems & Projects                      ,E14366,Supplies & Services           ,Services                      ,DF03,Consultants,365,"1,750.00",11/21/2012,R,CASHFRIDAY                    
2012-DEC,Central Services,Fully rechargeable Overheads,Operations & Telecomms                  ,E14367,Supplies & Services           ,Comms and Computing           ,DG54,Corporate Telephones,366,"1,035.00",10/29/2012,R,O2 (UK) LIMITED               
2012-DEC,Central Services,Fully rechargeable Overheads,Operations & Telecomms                  ,E14367,Supplies & Services           ,Comms and Computing           ,DG54,Corporate Telephones,367,"3,497.12",11/2/2012,R,COLT TELECOMMUNICATIONS       
2012-DEC,Central Services,Fully rechargeable Overheads,Operations & Telecomms                  ,E14367,Supplies & Services           ,Comms and Computing           ,DG54,Corporate Telephones,368,"10,128.06",11/4/2012,R,T MOBILE (UK)                 
2012-DEC,Central Services,Fully rechargeable Overheads,Operations & Telecomms                  ,E14367,Supplies & Services           ,Comms and Computing           ,DG54,Corporate Telephones,369,"3,000.00",9/20/2012,R,SYNETRIX LIMITED              
2012-DEC,Central Services,Fully rechargeable Overheads,Operations & Telecomms                  ,E14367,Supplies & Services           ,Comms and Computing           ,DG54,Corporate Telephones,370,500,9/20/2012,R,SYNETRIX LIMITED              
2012-DEC,Central Services,Fully rechargeable Overheads,Operations & Telecomms                  ,E14367,Supplies & Services           ,Comms and Computing           ,DG54,Corporate Telephones,371,"4,995.00",9/20/2012,R,SYNETRIX LIMITED              
2012-DEC,Central Services,Fully rechargeable Overheads,Operations & Telecomms                  ,E14367,Supplies & Services           ,Comms and Computing           ,DG54,Corporate Telephones,372,"6,811.93",12/4/2012,R,T MOBILE (UK)                 
2012-DEC,Central Services,Fully rechargeable Overheads,Operations & Telecomms                  ,E14367,Supplies & Services           ,Comms and Computing           ,DG54,Corporate Telephones,373,"4,903.56",12/3/2012,R,BRITISH TELECOM PLC           
2012-DEC,Central Services,Fully rechargeable Overheads,Operations & Telecomms                  ,E14367,Supplies & Services           ,Comms and Computing           ,DG54,Corporate Telephones,374,"17,452.75",11/27/2012,R,BRITISH TELECOMMUNICATIONS PLC
2012-DEC,Central Services,Fully rechargeable Overheads,Operations & Telecomms                  ,E14367,Supplies & Services           ,Comms and Computing           ,DG54,Corporate Telephones,375,"1,035.00",11/29/2012,R,O2 (UK) LIMITED               
2012-DEC,Central Services,Fully rechargeable Overheads,Operations & Telecomms                  ,E14367,Supplies & Services           ,Comms and Computing           ,DG54,Corporate Telephones,376,"7,522.52",12/16/2012,R,COLT TELECOMMUNICATIONS       
2012-DEC,Central Services,Fully rechargeable Overheads,Operations & Telecomms                  ,E14367,Supplies & Services           ,Comms and Computing           ,DG54,Corporate Telephones,377,"8,885.87",9/4/2012,R,T MOBILE (UK)                 
2012-DEC,Central Services,Fully rechargeable Overheads,Distributed Services                    ,E14368,Supplies & Services           ,Comms and Computing           ,DG63,Software Licences - Data,378,"68,105.40",11/16/2012,R,COMPUTERLAND                  
2012-DEC,Central Services,Fully rechargeable Overheads,Distributed Services                    ,E14368,Supplies & Services           ,Comms and Computing           ,DG63,Software Licences - Data,379,"2,868.00",10/12/2012,R,NETWORK TECHNOLOGY SOLUTIONS  
2012-DEC,Central Services,Fully rechargeable Overheads,Distributed Services                    ,E14368,Supplies & Services           ,Comms and Computing           ,DG63,Software Licences - Data,380,860,12/5/2012,R,DOTTED EYES LTD               
2012-DEC,Central Services,Fully rechargeable Overheads,Distributed Services                    ,E14368,Supplies & Services           ,Comms and Computing           ,DG63,Software Licences - Data,381,"14,494.41",12/10/2012,R,OPEN TEXT UK LTD              
2012-DEC,Central Services,Fully rechargeable Overheads,Distributed Services                    ,E14368,Supplies & Services           ,Comms and Computing           ,DG65,Application Licences,382,"1,308.82",11/15/2012,R,CIVICA UK LIMITED             
2012-DEC,Central Services,Fully rechargeable Overheads,Distributed Services                    ,E14368,Supplies & Services           ,Comms and Computing           ,DG65,Application Licences,383,"6,620.11",11/19/2012,R,CIVICA UK LIMITED             
2012-DEC,Central Services,Fully rechargeable Overheads,Distributed Services                    ,E14368,Supplies & Services           ,Comms and Computing           ,DG65,Application Licences,384,906.71,11/19/2012,R,CIVICA UK LIMITED             
2012-DEC,Central Services,Fully rechargeable Overheads,Facilities Magt Cptal Works             ,E14370,Premises Related Expenditure  ,RepairsAlterations&MtceOfBldgs,BA01,DDM - General Building,385,"3,006.25",11/9/2012,R,COBSEN-DAVIES ROOFING (LOND)LT
2012-DEC,Central Services,Fully rechargeable Overheads,Facilities Magt Cptal Works             ,E14370,Premises Related Expenditure  ,RepairsAlterations&MtceOfBldgs,BA29,Build Maint Mgt Fees,386,"1,149.50",11/28/2012,R,EDE'S (U.K.) LTD              
2012-DEC,Central Services,Fully rechargeable Overheads,Facilities Magt Cptal Works             ,E14370,Premises Related Expenditure  ,RepairsAlterations&MtceOfBldgs,BA29,Build Maint Mgt Fees,387,826.5,11/28/2012,R,EDE'S (U.K.) LTD              
2012-DEC,Central Services,Fully rechargeable Overheads,Facilities Magt Cptal Works             ,E14370,Premises Related Expenditure  ,RepairsAlterations&MtceOfBldgs,BA29,Build Maint Mgt Fees,388,893,10/31/2012,R,EDE'S (U.K.) LTD              
2012-DEC,Central Services,Fully rechargeable Overheads,Facilities Magt Cptal Works             ,E14370,Premises Related Expenditure  ,RepairsAlterations&MtceOfBldgs,BA29,Build Maint Mgt Fees,389,650.75,11/28/2012,R,EDE'S (U.K.) LTD              
2012-DEC,Central Services,Fully rechargeable Overheads,Facilities Magt Cptal Works             ,E14370,Premises Related Expenditure  ,RepairsAlterations&MtceOfBldgs,BA29,Build Maint Mgt Fees,390,"1,159.00",11/28/2012,R,EDE'S (U.K.) LTD              
2012-DEC,Central Services,Fully rechargeable Overheads,Facilities Magt Cptal Works             ,E14370,Premises Related Expenditure  ,RepairsAlterations&MtceOfBldgs,BA29,Build Maint Mgt Fees,391,"1,311.00",10/31/2012,R,EDE'S (U.K.) LTD              
2012-DEC,Central Services,Fully rechargeable Overheads,Facilities Magt Cptal Works             ,E14370,Premises Related Expenditure  ,RepairsAlterations&MtceOfBldgs,BA29,Build Maint Mgt Fees,392,712.5,11/28/2012,R,EDE'S (U.K.) LTD              
2012-DEC,Central Services,Fully rechargeable Overheads,Facilities Magt Cptal Works             ,E14370,Premises Related Expenditure  ,RepairsAlterations&MtceOfBldgs,BA29,Build Maint Mgt Fees,393,791.23,12/11/2012,R,UNIQUE OFFICE SOLUTIONS LTD   
2012-DEC,Central Services,Fully rechargeable Overheads,Facilities Magt Cptal Works             ,E14370,Premises Related Expenditure  ,RepairsAlterations&MtceOfBldgs,BA29,Build Maint Mgt Fees,394,"1,433.70",12/11/2012,R,UNIQUE OFFICE SOLUTIONS LTD   
2012-DEC,Central Services,Fully rechargeable Overheads,Facilities Magt Cptal Works             ,E14370,Premises Related Expenditure  ,RepairsAlterations&MtceOfBldgs,BA29,Build Maint Mgt Fees,395,"2,209.12",12/11/2012,R,UNIQUE OFFICE SOLUTIONS LTD   
2012-DEC,Central Services,Fully rechargeable Overheads,Facilities Magt Cptal Works             ,E14370,Premises Related Expenditure  ,RepairsAlterations&MtceOfBldgs,BA29,Build Maint Mgt Fees,396,"1,536.48",12/11/2012,R,UNIQUE OFFICE SOLUTIONS LTD   
2012-DEC,Central Services,Fully rechargeable Overheads,Facilities Magt Cptal Works             ,E14370,Premises Related Expenditure  ,RepairsAlterations&MtceOfBldgs,BA29,Build Maint Mgt Fees,397,"1,536.48",12/11/2012,R,UNIQUE OFFICE SOLUTIONS LTD   
2012-DEC,Central Services,Fully rechargeable Overheads,Facilities Magt Cptal Works             ,E14370,Premises Related Expenditure  ,RepairsAlterations&MtceOfBldgs,BA29,Build Maint Mgt Fees,398,"1,517.16",12/11/2012,R,UNIQUE OFFICE SOLUTIONS LTD   
2012-DEC,Central Services,Fully rechargeable Overheads,Facilities Magt Cptal Works             ,E14370,Premises Related Expenditure  ,RepairsAlterations&MtceOfBldgs,BA29,Build Maint Mgt Fees,399,"8,038.80",12/11/2012,R,UNIQUE OFFICE SOLUTIONS LTD   
2012-DEC,Central Services,Fully rechargeable Overheads,Facilities Magt Cptal Works             ,E14370,Premises Related Expenditure  ,RepairsAlterations&MtceOfBldgs,BA29,Build Maint Mgt Fees,400,"5,009.17",12/11/2012,R,UNIQUE OFFICE SOLUTIONS LTD   
2012-DEC,Central Services,Fully rechargeable Overheads,Facilities Magt Cptal Works             ,E14370,Premises Related Expenditure  ,RepairsAlterations&MtceOfBldgs,BA29,Build Maint Mgt Fees,401,"9,591.75",12/11/2012,R,UNIQUE OFFICE SOLUTIONS LTD   
2012-DEC,Central Services,Fully rechargeable Overheads,Facilities Magt Cptal Works             ,E14370,Premises Related Expenditure  ,RepairsAlterations&MtceOfBldgs,BA29,Build Maint Mgt Fees,402,"2,869.04",12/11/2012,R,UNIQUE OFFICE SOLUTIONS LTD   
2012-DEC,Central Services,Fully rechargeable Overheads,Facilities Magt Cptal Works             ,E14370,Premises Related Expenditure  ,RepairsAlterations&MtceOfBldgs,BA29,Build Maint Mgt Fees,403,"2,869.04",12/11/2012,R,UNIQUE OFFICE SOLUTIONS LTD   
2012-DEC,Central Services,Fully rechargeable Overheads,Facilities Magt Cptal Works             ,E14370,Premises Related Expenditure  ,RepairsAlterations&MtceOfBldgs,BA29,Build Maint Mgt Fees,404,"1,150.88",12/11/2012,R,UNIQUE OFFICE SOLUTIONS LTD   
2012-DEC,Central Services,Fully rechargeable Overheads,Facilities Magt Cptal Works             ,E14370,Premises Related Expenditure  ,RepairsAlterations&MtceOfBldgs,BA29,Build Maint Mgt Fees,405,949.28,12/11/2012,R,UNIQUE OFFICE SOLUTIONS LTD   
2012-DEC,Central Services,Fully rechargeable Overheads,Facilities Magt Cptal Works             ,E14370,Premises Related Expenditure  ,RepairsAlterations&MtceOfBldgs,BA29,Build Maint Mgt Fees,406,"1,216.80",12/11/2012,R,UNIQUE OFFICE SOLUTIONS LTD   
2012-DEC,Central Services,Fully rechargeable Overheads,Facilities Magt Cptal Works             ,E14370,Premises Related Expenditure  ,RepairsAlterations&MtceOfBldgs,BA29,Build Maint Mgt Fees,407,"2,130.18",12/11/2012,R,UNIQUE OFFICE SOLUTIONS LTD   
2012-DEC,Cultural Env Reg&Plan Services,SMSS (Env),Senior Mgt. - E.S.C.                    ,G00100,Supplies & Services           ,Services                      ,DF03,Consultants,408,"13,333.33",10/31/2012,R,REDQUADRANT LTD               
2012-DEC,Cultural Env Reg&Plan Services,SMSS (Env),Senior Mgt. - E.S.C.                    ,G00100,Supplies & Services           ,Services                      ,DF03,Consultants,409,"13,333.33",11/29/2012,R,REDQUADRANT LTD               
2012-DEC,Highways & Transport Services,Structural Maintenance,Surf Water Drainage                     ,G00123,Third Party Payments          ,Private Contractors           ,EH56,Carriageway/Fway Maint,410,"1,832.79",12/7/2012,R,FM CONWAY LTD                 
2012-DEC,Highways & Transport Services,Structural Maintenance,Surf Water Drainage                     ,G00123,Third Party Payments          ,Private Contractors           ,EH56,Carriageway/Fway Maint,411,513.48,12/7/2012,R,FM CONWAY LTD                 
2012-DEC,Highways & Transport Services,Env Safety&Routine Maintenance,Walk Sheets                             ,G00127,Third Party Payments          ,Private Contractors           ,EH56,Carriageway/Fway Maint,412,"6,873.22",11/30/2012,R,FM CONWAY LTD                 
2012-DEC,Highways & Transport Services,Env Safety&Routine Maintenance,Walk Sheets                             ,G00127,Third Party Payments          ,Private Contractors           ,EH56,Carriageway/Fway Maint,413,592.23,12/7/2012,R,FM CONWAY LTD                 
2012-DEC,Highways & Transport Services,Env Safety&Routine Maintenance,Walk Sheets                             ,G00127,Third Party Payments          ,Private Contractors           ,EH56,Carriageway/Fway Maint,414,"17,573.24",12/7/2012,R,FM CONWAY LTD                 
2012-DEC,Highways & Transport Services,Env Safety&Routine Maintenance,Walk Sheets                             ,G00127,Third Party Payments          ,Private Contractors           ,EH56,Carriageway/Fway Maint,415,"9,350.48",12/18/2012,R,FM CONWAY LTD                 
2012-DEC,Highways & Transport Services,Env Safety&Routine Maintenance,Traffic Signs.                          ,G00160,Third Party Payments          ,Private Contractors           ,EH01,Miscellaneous Contrct Services,416,674.36,11/21/2012,R,MAY GURNEY LTD T/A CARTLEDGE  
2012-DEC,Highways & Transport Services,Env Safety&Routine Maintenance,Traffic Signs.                          ,G00160,Third Party Payments          ,Private Contractors           ,EH01,Miscellaneous Contrct Services,417,"2,207.43",11/30/2012,R,MAY GURNEY LTD T/A CARTLEDGE  
2012-DEC,Highways & Transport Services,Env Safety&Routine Maintenance,Traffic Signs.                          ,G00160,Third Party Payments          ,Private Contractors           ,EH02,Miscellaneous Hired Services,418,"3,625.14",12/7/2012,R,FM CONWAY LTD                 
2012-DEC,Highways & Transport Services,Env Safety&Routine Maintenance,Traffic Signs.                          ,G00160,Third Party Payments          ,Private Contractors           ,EH02,Miscellaneous Hired Services,419,"2,989.17",12/18/2012,R,FM CONWAY LTD                 
2012-DEC,Highways & Transport Services,Construction Projects,TRAF & HWYS CAPITAL PROJECTS         ,G00210,Supplies & Services           ,Services                      ,DF04,Miscellaneous Expenses,420,"1,400.00",10/12/2012,R,TRAFFICWATCH (UK) LTD.        
2012-DEC,Highways & Transport Services,Tr'sport Plg / Policy / Str'gy,CPZ implementation & Consultat          ,G00211,Third Party Payments          ,Private Contractors           ,EH56,Carriageway/Fway Maint,421,802.94,12/7/2012,R,FM CONWAY LTD                 
2012-DEC,Highways & Transport Services,Tr'sport Plg / Policy / Str'gy,CPZ implementation & Consultat          ,G00211,Third Party Payments          ,Private Contractors           ,EH56,Carriageway/Fway Maint,422,"5,002.77",12/18/2012,R,FM CONWAY LTD                 
2012-DEC,Highways & Transport Services,Tr'sport Plg / Policy / Str'gy,CPZ implementation & Consultat          ,G00211,Third Party Payments          ,Private Contractors           ,EH56,Carriageway/Fway Maint,423,"1,484.86",12/18/2012,R,FM CONWAY LTD                 
2012-DEC,Highways & Transport Services,Street Lights(Inc Energy Cost),Street Lighting .                       ,G00260,Third Party Payments          ,Private Contractors           ,EH01,Miscellaneous Contrct Services,424,"4,847.22",11/21/2012,R,MAY GURNEY LTD T/A CARTLEDGE  
2012-DEC,Highways & Transport Services,Street Lights(Inc Energy Cost),Street Lighting .                       ,G00260,Third Party Payments          ,Private Contractors           ,EH01,Miscellaneous Contrct Services,425,"13,947.98",11/30/2012,R,MAY GURNEY LTD T/A CARTLEDGE  
2012-DEC,Highways & Transport Services,Street Lights(Inc Energy Cost),Street Lighting .                       ,G00260,Third Party Payments          ,Private Contractors           ,EH01,Miscellaneous Contrct Services,426,"1,177.61",11/30/2012,R,MAY GURNEY LTD T/A CARTLEDGE  
2012-DEC,Highways & Transport Services,Street Lights(Inc Energy Cost),Street Lighting .                       ,G00260,Third Party Payments          ,Private Contractors           ,EH01,Miscellaneous Contrct Services,427,"1,197.22",11/30/2012,R,MAY GURNEY LTD T/A CARTLEDGE  
2012-DEC,Highways & Transport Services,Parking Services,Hartfield Road C P                      ,G00294,Premises Related Expenditure  ,RepairsAlterations&MtceOfBldgs,BA06,Repairs & Maintenance General,428,"1,922.19",12/7/2012,R,FM CONWAY LTD                 
2012-DEC,Highways & Transport Services,Parking Services,Queen's Road C P                        ,G00297,Premises Related Expenditure  ,RepairsAlterations&MtceOfBldgs,BA06,Repairs & Maintenance General,429,582.48,11/21/2012,R,MAY GURNEY LTD T/A CARTLEDGE  
2012-DEC,Highways & Transport Services,Parking Services,York Close CP                           ,G00298,Premises Related Expenditure  ,Rents                         ,BC01,Miscellaneous Rents,430,"30,460.50",11/30/2012,R,TRANSPORT TRADING LTD PROP A/C
2012-DEC,Highways & Transport Services,Parking Services,St. Georges Car Park EAST               ,G00300,Premises Related Expenditure  ,Rents                         ,BC01,Miscellaneous Rents,431,824.05,11/26/2012,R,LLOYDS BANK SF NOMINEES LTD   
2012-DEC,Highways & Transport Services,Parking Services,St. Georges Car Park WEST M/S           ,G00302,Premises Related Expenditure  ,Energy Costs                  ,BB02,Electricity,432,"1,179.59",12/6/2012,R,KENT COUNTY COUNCIL           
2012-DEC,Highways & Transport Services,Parking Services,St. Georges Car Park WEST M/S           ,G00302,Premises Related Expenditure  ,Rents                         ,BC01,Miscellaneous Rents,433,"2,118.86",11/24/2012,R,SACKVILLE SPF IV (GP) NO 1 LTD
2012-DEC,Highways & Transport Services,Parking Services,Peel Hse C P - Upper                    ,G00303,Premises Related Expenditure  ,Rents                         ,BC01,Miscellaneous Rents,434,"3,000.00",11/30/2012,R,TFL - PROPERTY                
2012-DEC,Highways & Transport Services,Parking Services,W'don Broadway C P                      ,G00305,Premises Related Expenditure  ,RepairsAlterations&MtceOfBldgs,BA06,Repairs & Maintenance General,435,"1,146.13",12/7/2012,R,FM CONWAY LTD                 
2012-DEC,Highways & Transport Services,Parking Services,Raleigh Gardens C P                     ,G00306,Premises Related Expenditure  ,RepairsAlterations&MtceOfBldgs,BA06,Repairs & Maintenance General,436,696.42,12/7/2012,R,FM CONWAY LTD                 
2012-DEC,Highways & Transport Services,Parking Services,Sibthorpe Road C P                      ,G00307,Premises Related Expenditure  ,RepairsAlterations&MtceOfBldgs,BA06,Repairs & Maintenance General,437,"1,078.92",12/7/2012,R,FM CONWAY LTD                 
2012-DEC,Highways & Transport Services,Parking Services,"St. Mks Rd, Multi Sty                   ",G00308,Premises Related Expenditure  ,RepairsAlterations&MtceOfBldgs,BA06,Repairs & Maintenance General,438,"1,755.00",12/1/2012,R,R.J.H.WELDING                 
2012-DEC,Highways & Transport Services,Parking Services,On Street Parking.                      ,G00311,Premises Related Expenditure  ,RepairsAlterations&MtceOfBldgs,BA06,Repairs & Maintenance General,439,"1,116.88",12/7/2012,R,FM CONWAY LTD                 
2012-DEC,Highways & Transport Services,Parking Services,On Street Parking.                      ,G00311,Premises Related Expenditure  ,RepairsAlterations&MtceOfBldgs,BA06,Repairs & Maintenance General,440,"1,372.15",12/7/2012,R,FM CONWAY LTD                 
2012-DEC,Highways & Transport Services,Traffic Mgt & Road Safety,CYCLECITIES - INTERREG IVC              ,G00324,Third Party Payments          ,Private Contractors           ,EH02,Miscellaneous Hired Services,441,"5,000.00",12/7/2012,R,PANDA HORSE                   
2012-DEC,Highways & Transport Services,Traffic Mgt & Road Safety,SMILES Project                          ,G00325,Supplies & Services           ,Equip Furniture/Materials     ,DA09,Equip-Purchases,442,"10,644.83",12/19/2012,R,FM CONWAY LTD                 
2012-DEC,Highways & Transport Services,Parking Services,Civil Enforcement Officers              ,G00330,Premises Related Expenditure  ,Rents                         ,BC01,Miscellaneous Rents,443,"4,377.50",12/10/2012,R,WOODCOCK BROTHERS (WIMBLEDON) 
2012-DEC,Highways & Transport Services,Parking Services,Civil Enforcement Officers              ,G00330,Supplies & Services           ,Equip Furniture/Materials     ,DA09,Equip-Purchases,444,840,11/28/2012,R,TEASDALE GROUP LTD            
2012-DEC,Highways & Transport Services,Parking Services,Civil Enforcement Officers              ,G00330,Supplies & Services           ,Equip Furniture/Materials     ,DA09,Equip-Purchases,445,877.5,12/3/2012,R,QUARTIX                       
2012-DEC,Highways & Transport Services,Parking Services,Operational Running Costs               ,G00331,Supplies & Services           ,Equip Furniture/Materials     ,DA09,Equip-Purchases,446,"2,983.00",11/28/2012,R,TEASDALE GROUP LTD            
2012-DEC,Highways & Transport Services,Parking Services,Operational Running Costs               ,G00331,Supplies & Services           ,Prntng Stnry Gen Off Exp      ,DE01,External Printing,447,"3,340.00",11/26/2012,R,LIBERTY SERVICES              
2012-DEC,Highways & Transport Services,Parking Services,Operational Running Costs               ,G00331,Supplies & Services           ,Prntng Stnry Gen Off Exp      ,DE01,External Printing,448,"3,470.00",12/7/2012,R,LIBERTY SERVICES              
2012-DEC,Highways & Transport Services,Parking Services,Operational Running Costs               ,G00331,Supplies & Services           ,Prntng Stnry Gen Off Exp      ,DE01,External Printing,449,"3,470.00",12/7/2012,R,LIBERTY SERVICES              
2012-DEC,Highways & Transport Services,Parking Services,Operational Running Costs               ,G00331,Supplies & Services           ,Comms and Computing           ,DG14,Telephones - Mobile,450,"1,334.50",9/25/2012,R,T MOBILE (UK)                 
2012-DEC,Highways & Transport Services,Structural Maintenance,Footpath Crossings.                     ,G00390,Third Party Payments          ,Private Contractors           ,EH56,Carriageway/Fway Maint,451,"5,599.07",11/30/2012,R,FM CONWAY LTD                 
2012-DEC,Highways & Transport Services,Structural Maintenance,Footpath Crossings.                     ,G00390,Third Party Payments          ,Private Contractors           ,EH56,Carriageway/Fway Maint,452,"1,133.64",12/7/2012,R,FM CONWAY LTD                 
2012-DEC,Highways & Transport Services,Structural Maintenance,Footpath Crossings.                     ,G00390,Third Party Payments          ,Private Contractors           ,EH56,Carriageway/Fway Maint,453,"8,384.44",12/7/2012,R,FM CONWAY LTD                 
2012-DEC,Highways & Transport Services,Structural Maintenance,Footpath Crossings.                     ,G00390,Third Party Payments          ,Private Contractors           ,EH56,Carriageway/Fway Maint,454,"4,255.72",12/18/2012,R,FM CONWAY LTD                 
2012-DEC,Highways & Transport Services,Structural Maintenance,Footpath Crossings.                     ,G00390,Third Party Payments          ,Private Contractors           ,EH56,Carriageway/Fway Maint,455,"1,172.57",12/18/2012,R,FM CONWAY LTD                 
2012-DEC,Cultural Env Reg&Plan Services,Street Cleaning - Not highways,Street Cleansing (Inc. Gully)           ,G00492,Transport Related Expenditure ,Direct Transport Costs        ,CA01,Petrol Derv & Oil,456,"1,009.32",9/25/2012,R,B P OIL UK LIMITED            
2012-DEC,Cultural Env Reg&Plan Services,Street Cleaning - Not highways,Street Cleansing (Inc. Gully)           ,G00492,Transport Related Expenditure ,Direct Transport Costs        ,CA01,Petrol Derv & Oil,457,987.61,9/25/2012,R,B P OIL UK LIMITED            
2012-DEC,Cultural Env Reg&Plan Services,Street Cleaning - Not highways,Street Cleansing (Inc. Gully)           ,G00492,Supplies & Services           ,Equip Furniture/Materials     ,DA01,Equipment - R & M,458,838.7,11/30/2012,R,N A BROWN LTD                 
2012-DEC,Cultural Env Reg&Plan Services,Street Cleaning - Not highways,Street Cleansing (Inc. Gully)           ,G00492,Supplies & Services           ,Equip Furniture/Materials     ,DA08,Tools-Purchase,459,"1,018.80",12/5/2012,R,BELL BRUSH                    
2012-DEC,Cultural Env Reg&Plan Services,Street Cleaning - Not highways,Street Cleansing (Inc. Gully)           ,G00492,Supplies & Services           ,Equip Furniture/Materials     ,DA08,Tools-Purchase,460,537.1,11/30/2012,R,BELL BRUSH                    
2012-DEC,Cultural Env Reg&Plan Services,Street Cleaning - Not highways,Street Cleansing (Inc. Gully)           ,G00492,Supplies & Services           ,Equip Furniture/Materials     ,DA31,Waste Sacks & Bags,461,"2,778.30",12/3/2012,R,POLARIS PLASTICS LTD          
2012-DEC,Cultural Env Reg&Plan Services,Street Cleaning - Not highways,Street Cleansing (Inc. Gully)           ,G00492,Supplies & Services           ,Equip Furniture/Materials     ,DA32,Wheeled Bins,462,"1,200.00",11/28/2012,R,UK CONTAINER MAINTENANCE LTD  
2012-DEC,Cultural Env Reg&Plan Services,Street Cleaning - Not highways,Street Cleansing (Inc. Gully)           ,G00492,Supplies & Services           ,Clothing Unfrms Laundry       ,DC02,Clothing & Uniforms,463,634.45,12/7/2012,R,SAFETY MANAGEMENT             
2012-DEC,Adult Social Care,Supp Employment incl sheltered,Shltd Placement Sch.                    ,G00520,Transport Related Expenditure ,Direct Transport Costs        ,CA01,Petrol Derv & Oil,464,690.73,9/25/2012,R,B P OIL UK LIMITED            
2012-DEC,Cultural Env Reg&Plan Services,Waste Disposal,Waste Disposal .                        ,G00550,Third Party Payments          ,Private Contractors           ,EH01,Miscellaneous Contrct Services,465,"5,015.34",8/31/2012,R,S.GRUNDON (WASTE) LTD.        
2012-DEC,Cultural Env Reg&Plan Services,Waste Disposal,Waste Disposal .                        ,G00550,Third Party Payments          ,Private Contractors           ,EH01,Miscellaneous Contrct Services,466,"3,506.86",11/30/2012,R,S.GRUNDON (WASTE) LTD.        
2012-DEC,Cultural Env Reg&Plan Services,Waste Disposal,Waste Disposal .                        ,G00550,Third Party Payments          ,Private Contractors           ,EH04,Accommodation Based Support,467,"311,430.35",12/11/2012,R,KINGSTON CORPORATION          
2012-DEC,Cultural Env Reg&Plan Services,Waste Disposal,Waste Disposal .                        ,G00550,Third Party Payments          ,Private Contractors           ,EH04,Accommodation Based Support,468,"408,905.90",12/11/2012,R,KINGSTON CORPORATION          
2012-DEC,Cultural Env Reg&Plan Services,Waste Disposal,Waste Disposal .                        ,G00550,Third Party Payments          ,Private Contractors           ,EH04,Accommodation Based Support,469,"403,653.77",12/11/2012,R,KINGSTON CORPORATION          
2012-DEC,Cultural Env Reg&Plan Services,Waste Disposal,Waste Disposal .                        ,G00550,Third Party Payments          ,Private Contractors           ,EH10,Contract Payments,470,"32,442.82",12/11/2012,R,KINGSTON CORPORATION          
2012-DEC,Cultural Env Reg&Plan Services,Waste Disposal,Waste Disposal .                        ,G00550,Third Party Payments          ,Private Contractors           ,EH10,Contract Payments,471,"35,430.84",12/11/2012,R,KINGSTON CORPORATION          
2012-DEC,Cultural Env Reg&Plan Services,Waste Disposal,Waste Disposal .                        ,G00550,Third Party Payments          ,Private Contractors           ,EH10,Contract Payments,472,"37,434.02",12/11/2012,R,KINGSTON CORPORATION          
2012-DEC,Cultural Env Reg&Plan Services,Waste Disposal,Waste Disposal .                        ,G00550,Third Party Payments          ,Private Contractors           ,EH66,Clinical Waste Disposal,473,993.98,11/30/2012,R,S.GRUNDON (WASTE) LTD.        
2012-DEC,Cultural Env Reg&Plan Services,Waste Disposal,Waste Disposal .                        ,G00550,Third Party Payments          ,Private Contractors           ,EH91,Disposal of Asbestos,474,720.78,11/13/2012,R,CITY OF LONDON CORPORATION    
2012-DEC,Cultural Env Reg&Plan Services,Waste Disposal,Waste Disposal .                        ,G00550,Third Party Payments          ,Private Contractors           ,EH91,Disposal of Asbestos,475,"1,499.61",11/13/2012,R,CITY OF LONDON CORPORATION    
2012-DEC,Cultural Env Reg&Plan Services,Waste Disposal,Waste Disposal .                        ,G00550,Third Party Payments          ,Private Contractors           ,EH96,Gen Waste - Alt.  Contractor  ,476,"2,563.63",11/30/2012,R,CORY ENVIRONMENTAL LIMITED    
2012-DEC,Cultural Env Reg&Plan Services,Waste Disposal,Garth Road Site                         ,G00580,Premises Related Expenditure  ,Energy Costs                  ,BB02,Electricity,477,908.56,11/2/2012,R,EDF ENERGY 1 LIMITED          
2012-DEC,Cultural Env Reg&Plan Services,Waste Disposal,Garth Road Site                         ,G00580,Premises Related Expenditure  ,Water Services                ,BE02,Use of Water (Unmetered),478,815.86,11/26/2012,R,SUTTON AND EAST SURREY WATER  
2012-DEC,Cultural Env Reg&Plan Services,Waste Disposal,Garth Road Site                         ,G00580,Supplies & Services           ,Equip Furniture/Materials     ,DA04,Materials,479,992.94,11/30/2012,R,S.GRUNDON (WASTE) LTD.        
2012-DEC,Cultural Env Reg&Plan Services,Waste Disposal,Garth Road Site                         ,G00580,Third Party Payments          ,Private Contractors           ,EH63,Paper Haulage,480,"8,065.82",12/11/2012,R,KINGSTON CORPORATION          
2012-DEC,Cultural Env Reg&Plan Services,Waste Disposal,Garth Road Site                         ,G00580,Third Party Payments          ,Private Contractors           ,EH63,Paper Haulage,481,"8,405.39",12/11/2012,R,KINGSTON CORPORATION          
2012-DEC,Highways & Transport Services,Structural Maintenance,Grass Cut/Tr Mtce                       ,G00600,Premises Related Expenditure  ,Ground Maintenance Costs      ,BL03,Maintenance of Grounds,482,"4,689.34",11/27/2012,R,VEOLIA ES (UK) LIMITED        
2012-DEC,Highways & Transport Services,Structural Maintenance,Grass Cut/Tr Mtce                       ,G00600,Premises Related Expenditure  ,Ground Maintenance Costs      ,BL03,Maintenance of Grounds,483,"13,490.38",11/27/2012,R,VEOLIA ES (UK) LIMITED        
2012-DEC,Cultural Env Reg&Plan Services,Environmental Health,Dog Control.                            ,G00620,Third Party Payments          ,Private Contractors           ,EH02,Miscellaneous Hired Services,484,"2,265.50",12/5/2012,R,NOAH'S ARK ENVIRONMENTAL SERV.
2012-DEC,Cultural Env Reg&Plan Services,Waste Collection,Recycling Activities                    ,G00640,Third Party Payments          ,Private Contractors           ,EH03,Term Contract,485,"46,709.67",12/11/2012,R,KINGSTON CORPORATION          
2012-DEC,Cultural Env Reg&Plan Services,Waste Collection,Recycling Activities                    ,G00640,Third Party Payments          ,Private Contractors           ,EH03,Term Contract,486,"53,022.91",12/14/2012,R,KINGSTON CORPORATION          
2012-DEC,Cultural Env Reg&Plan Services,Waste Collection,Recycling Activities                    ,G00640,Third Party Payments          ,Private Contractors           ,EH10,Contract Payments,487,"6,806.58",12/11/2012,R,KINGSTON CORPORATION          
2012-DEC,Cultural Env Reg&Plan Services,Waste Collection,Recycling Activities                    ,G00640,Third Party Payments          ,Private Contractors           ,EH10,Contract Payments,488,"6,806.54",12/11/2012,R,KINGSTON CORPORATION          
2012-DEC,Cultural Env Reg&Plan Services,Waste Collection,Recycling Activities                    ,G00640,Third Party Payments          ,Private Contractors           ,EH10,Contract Payments,489,"6,806.58",12/11/2012,R,KINGSTON CORPORATION          
2012-DEC,Cultural Env Reg&Plan Services,Waste Collection,Recycling Activities                    ,G00640,Third Party Payments          ,Private Contractors           ,EH18,Disposal of Kitchen Waste,490,"17,309.51",12/11/2012,R,KINGSTON CORPORATION          
2012-DEC,Cultural Env Reg&Plan Services,Waste Collection,Recycling Activities                    ,G00640,Third Party Payments          ,Private Contractors           ,EH18,Disposal of Kitchen Waste,491,"20,242.62",12/14/2012,R,KINGSTON CORPORATION          
2012-DEC,Cultural Env Reg&Plan Services,Waste Collection,Recycling Activities                    ,G00640,Third Party Payments          ,Private Contractors           ,EH19,Dano Drum Contract Sita Haulag,492,"2,106.14",12/11/2012,R,KINGSTON CORPORATION          
2012-DEC,Cultural Env Reg&Plan Services,Waste Collection,Recycling Activities                    ,G00640,Third Party Payments          ,Private Contractors           ,EH19,Dano Drum Contract Sita Haulag,493,"2,106.14",12/11/2012,R,KINGSTON CORPORATION          
2012-DEC,Cultural Env Reg&Plan Services,Waste Collection,Recycling Activities                    ,G00640,Third Party Payments          ,Private Contractors           ,EH19,Dano Drum Contract Sita Haulag,494,"2,106.14",12/11/2012,R,KINGSTON CORPORATION          
2012-DEC,Cultural Env Reg&Plan Services,Waste Collection,Recycling Activities                    ,G00640,Third Party Payments          ,Private Contractors           ,EH61,Green Waste Disposal,495,"11,420.24",11/30/2012,R,VIRIDOR WASTE KENT LTD        
2012-DEC,Cultural Env Reg&Plan Services,Waste Collection,Recycling Activities                    ,G00640,Third Party Payments          ,Private Contractors           ,EH63,Paper Haulage,496,"20,954.39",12/11/2012,R,KINGSTON CORPORATION          
2012-DEC,Cultural Env Reg&Plan Services,Waste Collection,Recycling Activities                    ,G00640,Third Party Payments          ,Private Contractors           ,EH63,Paper Haulage,497,"20,954.27",12/14/2012,R,KINGSTON CORPORATION          
2012-DEC,Cultural Env Reg&Plan Services,Waste Collection,Recycling Activities                    ,G00640,Third Party Payments          ,Private Contractors           ,EH90,Disposal of Waste from CA Site,498,"-1,885.98",12/11/2012,R,KINGSTON CORPORATION          
2012-DEC,Cultural Env Reg&Plan Services,Waste Collection,Recycling Activities                    ,G00640,Third Party Payments          ,Private Contractors           ,EH94,Waste Disposal - Alt. Site,499,"6,765.34",12/11/2012,R,KINGSTON CORPORATION          
2012-DEC,Cultural Env Reg&Plan Services,Waste Collection,Recycling Activities                    ,G00640,Third Party Payments          ,Private Contractors           ,EH94,Waste Disposal - Alt. Site,500,"7,388.45",12/11/2012,R,KINGSTON CORPORATION          
2012-DEC,Cultural Env Reg&Plan Services,Waste Collection,Recycling Activities                    ,G00640,Third Party Payments          ,Private Contractors           ,EH94,Waste Disposal - Alt. Site,501,"7,806.17",12/11/2012,R,KINGSTON CORPORATION          
2012-DEC,Cultural Env Reg&Plan Services,Waste Collection,BARROW AND BINS REPLACEMENT        ,G00641,Supplies & Services           ,Equip Furniture/Materials     ,DA32,Wheeled Bins,502,"7,452.00",12/12/2012,R,EGBERT H TAYLOR & CO LTD      
2012-DEC,Cultural Env Reg&Plan Services,Waste Collection,BARROW AND BINS REPLACEMENT        ,G00641,Supplies & Services           ,Equip Furniture/Materials     ,DA32,Wheeled Bins,503,"7,603.50",12/13/2012,R,EGBERT H TAYLOR & CO LTD      
2012-DEC,Cultural Env Reg&Plan Services,Waste Collection,Recycling Collection                    ,G00645,Transport Related Expenditure ,Direct Transport Costs        ,CA01,Petrol Derv & Oil,504,"1,492.58",9/25/2012,R,B P OIL UK LIMITED            
2012-DEC,Cultural Env Reg&Plan Services,Waste Collection,Recycling Collection                    ,G00645,Supplies & Services           ,Clothing Unfrms Laundry       ,DC02,Clothing & Uniforms,505,"1,324.05",12/11/2012,R,SAFETY MANAGEMENT             
2012-DEC,Cultural Env Reg&Plan Services,Waste Collection,Refuse Collection (Operations)          ,G00661,Transport Related Expenditure ,Direct Transport Costs        ,CA01,Petrol Derv & Oil,506,878.02,9/25/2012,R,B P OIL UK LIMITED            
2012-DEC,Cultural Env Reg&Plan Services,Waste Collection,Refuse Collection (Operations)          ,G00661,Transport Related Expenditure ,Direct Transport Costs        ,CA01,Petrol Derv & Oil,507,"4,584.62",9/25/2012,R,B P OIL UK LIMITED            
2012-DEC,Cultural Env Reg&Plan Services,Waste Collection,Refuse Collection (Operations)          ,G00661,Supplies & Services           ,Equip Furniture/Materials     ,DA08,Tools-Purchase,508,681.89,11/20/2012,R,BELL BRUSH                    
2012-DEC,Cultural Env Reg&Plan Services,Waste Collection,Refuse Collection (Operations)          ,G00661,Supplies & Services           ,Equip Furniture/Materials     ,DA32,Wheeled Bins,509,"1,200.00",11/28/2012,R,UK CONTAINER MAINTENANCE LTD  
2012-DEC,Cultural Env Reg&Plan Services,Waste Collection,Refuse Collection (Operations)          ,G00661,Supplies & Services           ,Equip Furniture/Materials     ,DA32,Wheeled Bins,510,"4,645.00",12/12/2012,R,EGBERT H TAYLOR & CO LTD      
2012-DEC,Cultural Env Reg&Plan Services,Waste Collection,Refuse Collection (Operations)          ,G00661,Supplies & Services           ,Services                      ,DF03,Consultants,511,"19,788.00",10/22/2012,R,EUNOMIA RESEARCH & CONSULTING 
2012-DEC,Cultural Env Reg&Plan Services,Waste Collection,Commercial Waste Collection             ,G00665,Supplies & Services           ,Equip Furniture/Materials     ,DA32,Wheeled Bins,512,810,11/28/2012,R,UK CONTAINER MAINTENANCE LTD  
2012-DEC,Cultural Env Reg&Plan Services,Street Cleaning - Not highways,Waste Enforcement                       ,G00680,Third Party Payments          ,Private Contractors           ,EH56,Carriageway/Fway Maint,513,740,11/26/2012,R,REDACTED
2012-DEC,Cultural Env Reg&Plan Services,Consumer Protection,Trading Standards                       ,G00690,Supplies & Services           ,Miscellaneous Expenses        ,DL32,Expert reports,514,"1,500.00",11/26/2012,R,REDACTED
2012-DEC,Cultural Env Reg&Plan Services,Environmental Health,Merton Winter Warmer Programme          ,G00696,Third Party Payments          ,Private Contractors           ,EH02,Miscellaneous Hired Services,515,"2,700.00",12/7/2012,R,CLIMATE CONSULTING            
2012-DEC,Cultural Env Reg&Plan Services,Environmental Health,Pest Control                            ,G00724,Employees                     ,Indirect Employee Expenses    ,AB57,External Training Costs,516,620,11/16/2012,R,KILLGERM CHEMICALS LIMITED    
2012-DEC,Cultural Env Reg&Plan Services,Environmental Health,Housing/Env                             ,G00730,Employees                     ,Direct Employee Expenses      ,AA17,Agency Staff & Casual Paymts,517,853.3,11/21/2012,R,REDACTED
2012-DEC,Cultural Env Reg&Plan Services,Environmental Health,Housing/Env                             ,G00730,Employees                     ,Direct Employee Expenses      ,AA17,Agency Staff & Casual Paymts,518,901.6,11/28/2012,R,REDACTED
2012-DEC,Cultural Env Reg&Plan Services,Environmental Health,Housing/Env                             ,G00730,Employees                     ,Direct Employee Expenses      ,AA17,Agency Staff & Casual Paymts,519,587.65,12/5/2012,R,REDACTED
2012-DEC,Cultural Env Reg&Plan Services,Environmental Health,Housing/Env                             ,G00730,Employees                     ,Direct Employee Expenses      ,AA17,Agency Staff & Casual Paymts,520,724.5,12/12/2012,R,REDACTED
2012-DEC,Cultural Env Reg&Plan Services,SMSS (Env),Waste Management                        ,G00900,Employees                     ,Indirect Employee Expenses    ,AB57,External Training Costs,521,656.6,12/13/2012,R,DISTANCE LEARNING COLLEGE     
2012-DEC,Central Services,Gen Grants Bequest & Donations,Vestry Hall                             ,G40314,Employees                     ,Direct Employee Expenses      ,AA17,Agency Staff & Casual Paymts,522,"4,486.95",12/10/2012,R,PCL SECURITY LTD              
2012-DEC,Central Services,Gen Grants Bequest & Donations,Vestry Hall                             ,G40314,Employees                     ,Direct Employee Expenses      ,AA17,Agency Staff & Casual Paymts,523,946.42,11/30/2012,R,PCL SECURITY LTD              
2012-DEC,Central Services,Gen Grants Bequest & Donations,Vestry Hall                             ,G40314,Premises Related Expenditure  ,RepairsAlterations&MtceOfBldgs,BA01,DDM - General Building,524,"2,350.00",12/3/2012,R,TAYLOR BUILDING COMPANY LTD   
2012-DEC,Central Services,Gen Grants Bequest & Donations,Vestry Hall                             ,G40314,Premises Related Expenditure  ,RepairsAlterations&MtceOfBldgs,BA01,DDM - General Building,525,"1,247.71",12/20/2012,R,MORTON FAIRVIEW ELEC SERVICES 
2012-DEC,Central Services,Gen Grants Bequest & Donations,Vestry Hall                             ,G40314,Premises Related Expenditure  ,Cleaning and Domestic Supplies,BH03,Cleaning Services,526,"1,338.15",11/1/2012,R,BIRKIN CLEANING SERVICES LTD  
2012-DEC,CS -Oth Operating Inc & Expend,INVESTMENT PROPERTIES,Edenvale Com Cntr (NE Mitcham)          ,G40316,Premises Related Expenditure  ,RepairsAlterations&MtceOfBldgs,BA05,DDM - Electrical,527,"2,974.25",11/26/2012,R,CROWN SECURITY SYSTEMS LTD    
2012-DEC,Cultural Env Reg&Plan Services,Development Control,Development Control                     ,H01130,Supplies & Services           ,Services                      ,DF11,Counsel's fees,528,"11,140.00",12/11/2012,R,REDACTED
2012-DEC,Cultural Env Reg&Plan Services,Development Control,Development Control                     ,H01130,Supplies & Services           ,Services                      ,DF11,Counsel's fees,529,"2,240.00",11/27/2012,R,VALUATION OFFICE AGENCY       
2012-DEC,Cultural Env Reg&Plan Services,Planning Policy,REGENERATION & INVESTMENT              ,H01174,Supplies & Services           ,Grants and Subscriptions      ,DJ01,Grants,530,-900,10/22/2012,R,REDACTED
2012-DEC,CS -Oth Operating Inc & Expend,INVESTMENT PROPERTIES,MILES RD GENERATOR                      ,H01203,Premises Related Expenditure  ,Rents                         ,BC01,Miscellaneous Rents,531,"4,419.32",11/29/2012,R,W&R BUXTON LTD PENSION FUND   
2012-DEC,CS -Oth Operating Inc & Expend,INVESTMENT PROPERTIES,MILES RD GENERATOR                      ,H01203,Third Party Payments          ,Private Contractors           ,EH02,Miscellaneous Hired Services,532,"28,875.00",12/10/2012,R,MERTON CHAMBER OF COMMERCE    
2012-DEC,Cultural Env Reg&Plan Services,Economic Development,BUSINESS SUPPORT                        ,H01210,Third Party Payments          ,Private Contractors           ,EH02,Miscellaneous Hired Services,533,"5,900.00",12/11/2012,R,MERTON CHAMBER OF COMMERCE    
2012-DEC,Cultural Env Reg&Plan Services,Economic Development,BUSINESS SUPPORT                        ,H01210,Third Party Payments          ,Private Contractors           ,EH02,Miscellaneous Hired Services,534,"8,950.00",12/11/2012,R,MERTON CHAMBER OF COMMERCE    
2012-DEC,Cultural Env Reg&Plan Services,Economic Development,GREENING BUSINESS                       ,H01225,Supplies & Services           ,Grants and Subscriptions      ,DJ04,Subscriptions,535,"2,722.40",11/27/2012,R,MERTON CHAMBER OF COMMERCE    
2012-DEC,CS -Oth Operating Inc & Expend,Trading A/c Surpluses/Deficits,Transport-Contract Hire                 ,J01374,Transport Related Expenditure ,Direct Transport Costs        ,CA01,Petrol Derv & Oil,536,"31,427.20",11/22/2012,R,EMO OILS LTD                  
2012-DEC,CS -Oth Operating Inc & Expend,Trading A/c Surpluses/Deficits,Transport-Contract Hire                 ,J01374,Transport Related Expenditure ,Direct Transport Costs        ,CA01,Petrol Derv & Oil,537,"39,393.50",12/7/2012,R,EMO OILS LTD                  
2012-DEC,CS -Oth Operating Inc & Expend,Trading A/c Surpluses/Deficits,Transport-Contract Hire                 ,J01374,Transport Related Expenditure ,Contract Hire and Op Leasing  ,CC53,Plant Hire for MRCS,538,525,11/25/2012,R,PHOENIX VEHICLE HIRE LTD      
2012-DEC,CS -Oth Operating Inc & Expend,Trading A/c Surpluses/Deficits,Transport-Contract Hire                 ,J01374,Transport Related Expenditure ,Contract Hire and Op Leasing  ,CC53,Plant Hire for MRCS,539,700,11/25/2012,R,PHOENIX VEHICLE HIRE LTD      
2012-DEC,CS -Oth Operating Inc & Expend,Trading A/c Surpluses/Deficits,Transport-Contract Hire                 ,J01374,Transport Related Expenditure ,Contract Hire and Op Leasing  ,CC53,Plant Hire for MRCS,540,"1,980.00",11/28/2012,R,GVS HIRE LTD                  
2012-DEC,CS -Oth Operating Inc & Expend,Trading A/c Surpluses/Deficits,Transport-Contract Hire                 ,J01374,Transport Related Expenditure ,Contract Hire and Op Leasing  ,CC53,Plant Hire for MRCS,541,"1,254.00",11/28/2012,R,GVS HIRE LTD                  
2012-DEC,CS -Oth Operating Inc & Expend,Trading A/c Surpluses/Deficits,Transport-Contract Hire                 ,J01374,Transport Related Expenditure ,Contract Hire and Op Leasing  ,CC53,Plant Hire for MRCS,542,700,12/2/2012,R,PHOENIX VEHICLE HIRE LTD      
2012-DEC,CS -Oth Operating Inc & Expend,Trading A/c Surpluses/Deficits,Transport-Contract Hire                 ,J01374,Transport Related Expenditure ,Contract Hire and Op Leasing  ,CC53,Plant Hire for MRCS,543,525,12/2/2012,R,PHOENIX VEHICLE HIRE LTD      
2012-DEC,CS -Oth Operating Inc & Expend,Trading A/c Surpluses/Deficits,Transport-Contract Hire                 ,J01374,Transport Related Expenditure ,Contract Hire and Op Leasing  ,CC53,Plant Hire for MRCS,544,"1,100.00",12/5/2012,R,COMPACT SWEEPERS LTD          
2012-DEC,CS -Oth Operating Inc & Expend,Trading A/c Surpluses/Deficits,Transport-Contract Hire                 ,J01374,Transport Related Expenditure ,Contract Hire and Op Leasing  ,CC53,Plant Hire for MRCS,545,"2,500.00",11/30/2012,R,NOBLET MUNICIPAL SERVICES LTD 
2012-DEC,CS -Oth Operating Inc & Expend,Trading A/c Surpluses/Deficits,Transport-Contract Hire                 ,J01374,Transport Related Expenditure ,Contract Hire and Op Leasing  ,CC53,Plant Hire for MRCS,546,814,11/30/2012,R,SHB HIRE LTD                  
2012-DEC,CS -Oth Operating Inc & Expend,Trading A/c Surpluses/Deficits,Transport-Contract Hire                 ,J01374,Transport Related Expenditure ,Contract Hire and Op Leasing  ,CC53,Plant Hire for MRCS,547,814,11/30/2012,R,SHB HIRE LTD                  
2012-DEC,CS -Oth Operating Inc & Expend,Trading A/c Surpluses/Deficits,Transport-Contract Hire                 ,J01374,Transport Related Expenditure ,Contract Hire and Op Leasing  ,CC53,Plant Hire for MRCS,548,720,10/31/2012,R,B&T PLANT HIRE LTD            
2012-DEC,CS -Oth Operating Inc & Expend,Trading A/c Surpluses/Deficits,Transport-Contract Hire                 ,J01374,Transport Related Expenditure ,Contract Hire and Op Leasing  ,CC53,Plant Hire for MRCS,549,814,11/30/2012,R,SHB HIRE LTD                  
2012-DEC,CS -Oth Operating Inc & Expend,Trading A/c Surpluses/Deficits,Transport-Contract Hire                 ,J01374,Transport Related Expenditure ,Contract Hire and Op Leasing  ,CC53,Plant Hire for MRCS,550,650,1/27/2012,R,GO PLANT                      
2012-DEC,CS -Oth Operating Inc & Expend,Trading A/c Surpluses/Deficits,Transport-Contract Hire                 ,J01374,Transport Related Expenditure ,Contract Hire and Op Leasing  ,CC53,Plant Hire for MRCS,551,700,12/9/2012,R,PHOENIX VEHICLE HIRE LTD      
2012-DEC,CS -Oth Operating Inc & Expend,Trading A/c Surpluses/Deficits,Transport-Contract Hire                 ,J01374,Transport Related Expenditure ,Contract Hire and Op Leasing  ,CC53,Plant Hire for MRCS,552,814,11/30/2012,R,B&T PLANT HIRE LTD            
2012-DEC,CS -Oth Operating Inc & Expend,Trading A/c Surpluses/Deficits,Transport-Contract Hire                 ,J01374,Transport Related Expenditure ,Contract Hire and Op Leasing  ,CC53,Plant Hire for MRCS,553,700,12/16/2012,R,PHOENIX VEHICLE HIRE LTD      
2012-DEC,CS -Oth Operating Inc & Expend,Trading A/c Surpluses/Deficits,Transport-Contract Hire                 ,J01374,Transport Related Expenditure ,Contract Hire and Op Leasing  ,CC57,Plant Hire for Housing,554,667,11/21/2012,R,KENT COUNTY COUNCIL           
2012-DEC,CS -Oth Operating Inc & Expend,Trading A/c Surpluses/Deficits,Transport-Contract Hire                 ,J01374,Transport Related Expenditure ,Contract Hire and Op Leasing  ,CC57,Plant Hire for Housing,555,940,11/30/2012,R,REDACTED
2012-DEC,CS -Oth Operating Inc & Expend,Trading A/c Surpluses/Deficits,Transport-Contract Hire                 ,J01374,Transport Related Expenditure ,Contract Hire and Op Leasing  ,CC59,Plant Hire - Non-Rechargeable ,556,"1,458.62",12/4/2012,R,DAWSON RENTALS BUS AND COACH  
2012-DEC,CS -Oth Operating Inc & Expend,Trading A/c Surpluses/Deficits,Transport-Contract Hire                 ,J01374,Transport Related Expenditure ,Contract Hire and Op Leasing  ,CC59,Plant Hire - Non-Rechargeable ,557,"1,458.62",12/4/2012,R,DAWSON RENTALS BUS AND COACH  
2012-DEC,CS -Oth Operating Inc & Expend,Trading A/c Surpluses/Deficits,Transport-Contract Hire                 ,J01374,Transport Related Expenditure ,Contract Hire and Op Leasing  ,CC59,Plant Hire - Non-Rechargeable ,558,"-1,458.62",12/5/2012,R,DAWSON RENTALS BUS AND COACH  
2012-DEC,CS -Oth Operating Inc & Expend,Trading A/c Surpluses/Deficits,Transport-Contract Hire                 ,J01374,Transport Related Expenditure ,Contract Hire and Op Leasing  ,CC59,Plant Hire - Non-Rechargeable ,559,"-1,458.62",12/5/2012,R,DAWSON RENTALS BUS AND COACH  
2012-DEC,CS -Oth Operating Inc & Expend,Trading A/c Surpluses/Deficits,Transport-Contract Hire                 ,J01374,Transport Related Expenditure ,Contract Hire and Op Leasing  ,CC59,Plant Hire - Non-Rechargeable ,560,"2,238.32",11/30/2012,R,REDACTED
2012-DEC,CS -Oth Operating Inc & Expend,Trading A/c Surpluses/Deficits,Transport-Contract Hire                 ,J01374,Transport Related Expenditure ,Contract Hire and Op Leasing  ,CC59,Plant Hire - Non-Rechargeable ,561,"7,536.00",12/10/2012,R,KENT COUNTY COUNCIL           
2012-DEC,CS -Oth Operating Inc & Expend,Trading A/c Surpluses/Deficits,Transport-Contract Hire                 ,J01374,Transport Related Expenditure ,Contract Hire and Op Leasing  ,CC64,Mini Cab Hire for Education,562,720,9/10/2012,R,CAREFIRST24                   
2012-DEC,CS -Oth Operating Inc & Expend,Trading A/c Surpluses/Deficits,Transport-Contract Hire                 ,J01374,Transport Related Expenditure ,Contract Hire and Op Leasing  ,CC64,Mini Cab Hire for Education,563,540,8/27/2012,R,CAREFIRST24                   
2012-DEC,CS -Oth Operating Inc & Expend,Trading A/c Surpluses/Deficits,Transport-Contract Hire                 ,J01374,Transport Related Expenditure ,Contract Hire and Op Leasing  ,CC64,Mini Cab Hire for Education,564,720,10/29/2012,R,CAREFIRST24                   
2012-DEC,CS -Oth Operating Inc & Expend,Trading A/c Surpluses/Deficits,Transport-Contract Hire                 ,J01374,Transport Related Expenditure ,Contract Hire and Op Leasing  ,CC64,Mini Cab Hire for Education,565,720,10/1/2012,R,CAREFIRST24                   
2012-DEC,CS -Oth Operating Inc & Expend,Trading A/c Surpluses/Deficits,Transport-Contract Hire                 ,J01374,Transport Related Expenditure ,Contract Hire and Op Leasing  ,CC64,Mini Cab Hire for Education,566,"11,917.96",12/2/2012,R,KINGSTON ACCESSIBILITY TRAN LT
2012-DEC,CS -Oth Operating Inc & Expend,Trading A/c Surpluses/Deficits,Transport-Contract Hire                 ,J01374,Transport Related Expenditure ,Contract Hire and Op Leasing  ,CC64,Mini Cab Hire for Education,567,900,9/17/2012,R,CAREFIRST24                   
2012-DEC,CS -Oth Operating Inc & Expend,Trading A/c Surpluses/Deficits,Transport-Contract Hire                 ,J01374,Transport Related Expenditure ,Contract Hire and Op Leasing  ,CC64,Mini Cab Hire for Education,568,800,10/22/2012,R,CAREFIRST24                   
2012-DEC,CS -Oth Operating Inc & Expend,Trading A/c Surpluses/Deficits,Transport-Contract Hire                 ,J01374,Transport Related Expenditure ,Contract Hire and Op Leasing  ,CC64,Mini Cab Hire for Education,569,900,10/8/2012,R,CAREFIRST24                   
2012-DEC,CS -Oth Operating Inc & Expend,Trading A/c Surpluses/Deficits,Transport-Contract Hire                 ,J01374,Transport Related Expenditure ,Contract Hire and Op Leasing  ,CC64,Mini Cab Hire for Education,570,900,9/24/2012,R,CAREFIRST24                   
2012-DEC,CS -Oth Operating Inc & Expend,Trading A/c Surpluses/Deficits,Transport-Contract Hire                 ,J01374,Transport Related Expenditure ,Contract Hire and Op Leasing  ,CC64,Mini Cab Hire for Education,571,570,11/30/2012,R,CAPITAL CARS                  
2012-DEC,CS -Oth Operating Inc & Expend,Trading A/c Surpluses/Deficits,Transport-Contract Hire                 ,J01374,Transport Related Expenditure ,Contract Hire and Op Leasing  ,CC64,Mini Cab Hire for Education,572,518,11/30/2012,R,CAPITAL CARS                  
2012-DEC,CS -Oth Operating Inc & Expend,Trading A/c Surpluses/Deficits,Transport-Contract Hire                 ,J01374,Transport Related Expenditure ,Contract Hire and Op Leasing  ,CC64,Mini Cab Hire for Education,573,780,11/30/2012,R,CAPITAL CARS                  
2012-DEC,CS -Oth Operating Inc & Expend,Trading A/c Surpluses/Deficits,Transport-Contract Hire                 ,J01374,Transport Related Expenditure ,Contract Hire and Op Leasing  ,CC64,Mini Cab Hire for Education,574,660,11/30/2012,R,CAPITAL CARS                  
2012-DEC,CS -Oth Operating Inc & Expend,Trading A/c Surpluses/Deficits,Transport-Contract Hire                 ,J01374,Transport Related Expenditure ,Contract Hire and Op Leasing  ,CC64,Mini Cab Hire for Education,575,666,11/30/2012,R,CAPITAL CARS                  
2012-DEC,CS -Oth Operating Inc & Expend,Trading A/c Surpluses/Deficits,Transport-Contract Hire                 ,J01374,Transport Related Expenditure ,Contract Hire and Op Leasing  ,CC64,Mini Cab Hire for Education,576,"1,020.00",11/30/2012,R,CAPITAL CARS                  
2012-DEC,CS -Oth Operating Inc & Expend,Trading A/c Surpluses/Deficits,Transport-Contract Hire                 ,J01374,Transport Related Expenditure ,Contract Hire and Op Leasing  ,CC64,Mini Cab Hire for Education,577,"1,209.00",11/30/2012,R,A STAR TRANSPORT LIMITED      
2012-DEC,CS -Oth Operating Inc & Expend,Trading A/c Surpluses/Deficits,Transport-Contract Hire                 ,J01374,Transport Related Expenditure ,Contract Hire and Op Leasing  ,CC64,Mini Cab Hire for Education,578,672,11/30/2012,R,A STAR TRANSPORT LIMITED      
2012-DEC,CS -Oth Operating Inc & Expend,Trading A/c Surpluses/Deficits,Transport-Contract Hire                 ,J01374,Transport Related Expenditure ,Contract Hire and Op Leasing  ,CC64,Mini Cab Hire for Education,579,960,11/30/2012,R,BARCLAYS ASSET & SALES FINANCE
2012-DEC,CS -Oth Operating Inc & Expend,Trading A/c Surpluses/Deficits,Transport-Contract Hire                 ,J01374,Transport Related Expenditure ,Contract Hire and Op Leasing  ,CC64,Mini Cab Hire for Education,580,"3,070.66",11/30/2012,R,BARCLAYS ASSET & SALES FINANCE
2012-DEC,CS -Oth Operating Inc & Expend,Trading A/c Surpluses/Deficits,Transport-Contract Hire                 ,J01374,Transport Related Expenditure ,Contract Hire and Op Leasing  ,CC64,Mini Cab Hire for Education,581,"3,920.00",11/30/2012,R,BARCLAYS ASSET & SALES FINANCE
2012-DEC,CS -Oth Operating Inc & Expend,Trading A/c Surpluses/Deficits,Transport-Contract Hire                 ,J01374,Transport Related Expenditure ,Contract Hire and Op Leasing  ,CC64,Mini Cab Hire for Education,582,"3,800.00",11/30/2012,R,BARCLAYS ASSET & SALES FINANCE
2012-DEC,CS -Oth Operating Inc & Expend,Trading A/c Surpluses/Deficits,Transport-Contract Hire                 ,J01374,Transport Related Expenditure ,Contract Hire and Op Leasing  ,CC64,Mini Cab Hire for Education,583,"2,884.00",11/30/2012,R,BARCLAYS ASSET & SALES FINANCE
2012-DEC,CS -Oth Operating Inc & Expend,Trading A/c Surpluses/Deficits,Transport-Contract Hire                 ,J01374,Transport Related Expenditure ,Contract Hire and Op Leasing  ,CC64,Mini Cab Hire for Education,584,"1,872.00",11/30/2012,R,BARCLAYS ASSET & SALES FINANCE
2012-DEC,CS -Oth Operating Inc & Expend,Trading A/c Surpluses/Deficits,Transport-Contract Hire                 ,J01374,Transport Related Expenditure ,Contract Hire and Op Leasing  ,CC64,Mini Cab Hire for Education,585,"1,824.00",11/30/2012,R,BARCLAYS ASSET & SALES FINANCE
2012-DEC,CS -Oth Operating Inc & Expend,Trading A/c Surpluses/Deficits,Transport-Contract Hire                 ,J01374,Transport Related Expenditure ,Contract Hire and Op Leasing  ,CC64,Mini Cab Hire for Education,586,"1,520.00",11/30/2012,R,BARCLAYS ASSET & SALES FINANCE
2012-DEC,CS -Oth Operating Inc & Expend,Trading A/c Surpluses/Deficits,Transport-Contract Hire                 ,J01374,Transport Related Expenditure ,Contract Hire and Op Leasing  ,CC64,Mini Cab Hire for Education,587,"1,360.00",11/30/2012,R,BRUNSWICK CARS LTD            
2012-DEC,CS -Oth Operating Inc & Expend,Trading A/c Surpluses/Deficits,Transport-Contract Hire                 ,J01374,Transport Related Expenditure ,Contract Hire and Op Leasing  ,CC64,Mini Cab Hire for Education,588,810,11/30/2012,R,CAPITAL CARS                  
2012-DEC,CS -Oth Operating Inc & Expend,Trading A/c Surpluses/Deficits,Transport-Contract Hire                 ,J01374,Transport Related Expenditure ,Contract Hire and Op Leasing  ,CC64,Mini Cab Hire for Education,589,675,11/30/2012,R,CAPITAL CARS                  
2012-DEC,CS -Oth Operating Inc & Expend,Trading A/c Surpluses/Deficits,Transport-Contract Hire                 ,J01374,Transport Related Expenditure ,Contract Hire and Op Leasing  ,CC64,Mini Cab Hire for Education,590,528,11/30/2012,R,CAPITAL CARS                  
2012-DEC,CS -Oth Operating Inc & Expend,Trading A/c Surpluses/Deficits,Transport-Contract Hire                 ,J01374,Transport Related Expenditure ,Contract Hire and Op Leasing  ,CC64,Mini Cab Hire for Education,591,"1,440.00",11/30/2012,R,SILVERBURN FINANCE (UK) LTD   
2012-DEC,CS -Oth Operating Inc & Expend,Trading A/c Surpluses/Deficits,Transport-Contract Hire                 ,J01374,Transport Related Expenditure ,Contract Hire and Op Leasing  ,CC64,Mini Cab Hire for Education,592,818,11/30/2012,R,SILVERBURN FINANCE (UK) LTD   
2012-DEC,CS -Oth Operating Inc & Expend,Trading A/c Surpluses/Deficits,Transport-Contract Hire                 ,J01374,Transport Related Expenditure ,Contract Hire and Op Leasing  ,CC64,Mini Cab Hire for Education,593,"1,430.00",11/30/2012,R,SILVERBURN FINANCE (UK) LTD   
2012-DEC,CS -Oth Operating Inc & Expend,Trading A/c Surpluses/Deficits,Transport-Contract Hire                 ,J01374,Transport Related Expenditure ,Contract Hire and Op Leasing  ,CC64,Mini Cab Hire for Education,594,800,11/30/2012,R,SILVERBURN FINANCE (UK) LTD   
2012-DEC,CS -Oth Operating Inc & Expend,Trading A/c Surpluses/Deficits,Transport-Contract Hire                 ,J01374,Transport Related Expenditure ,Contract Hire and Op Leasing  ,CC64,Mini Cab Hire for Education,595,"1,120.00",11/30/2012,R,SILVERBURN FINANCE (UK) LTD   
2012-DEC,CS -Oth Operating Inc & Expend,Trading A/c Surpluses/Deficits,Transport-Contract Hire                 ,J01374,Transport Related Expenditure ,Contract Hire and Op Leasing  ,CC64,Mini Cab Hire for Education,596,720,11/30/2012,R,SILVERBURN FINANCE (UK) LTD   
2012-DEC,CS -Oth Operating Inc & Expend,Trading A/c Surpluses/Deficits,Transport-Contract Hire                 ,J01374,Transport Related Expenditure ,Contract Hire and Op Leasing  ,CC64,Mini Cab Hire for Education,597,960,11/30/2012,R,SILVERBURN FINANCE (UK) LTD   
2012-DEC,CS -Oth Operating Inc & Expend,Trading A/c Surpluses/Deficits,Transport-Contract Hire                 ,J01374,Transport Related Expenditure ,Contract Hire and Op Leasing  ,CC64,Mini Cab Hire for Education,598,"1,200.00",11/30/2012,R,SILVERBURN FINANCE (UK) LTD   
2012-DEC,CS -Oth Operating Inc & Expend,Trading A/c Surpluses/Deficits,Transport-Contract Hire                 ,J01374,Transport Related Expenditure ,Contract Hire and Op Leasing  ,CC64,Mini Cab Hire for Education,599,"1,026.00",11/30/2012,R,A STAR TRANSPORT LIMITED      
2012-DEC,CS -Oth Operating Inc & Expend,Trading A/c Surpluses/Deficits,Transport-Contract Hire                 ,J01374,Transport Related Expenditure ,Contract Hire and Op Leasing  ,CC64,Mini Cab Hire for Education,600,816,11/30/2012,R,BARCLAYS ASSET & SALES FINANCE
2012-DEC,CS -Oth Operating Inc & Expend,Trading A/c Surpluses/Deficits,Transport-Contract Hire                 ,J01374,Transport Related Expenditure ,Contract Hire and Op Leasing  ,CC64,Mini Cab Hire for Education,601,"1,638.00",11/30/2012,R,BARCLAYS ASSET & SALES FINANCE
2012-DEC,CS -Oth Operating Inc & Expend,Trading A/c Surpluses/Deficits,Transport-Contract Hire                 ,J01374,Transport Related Expenditure ,Contract Hire and Op Leasing  ,CC64,Mini Cab Hire for Education,602,634,11/30/2012,R,BARCLAYS ASSET & SALES FINANCE
2012-DEC,CS -Oth Operating Inc & Expend,Trading A/c Surpluses/Deficits,Transport-Contract Hire                 ,J01374,Transport Related Expenditure ,Contract Hire and Op Leasing  ,CC64,Mini Cab Hire for Education,603,840,11/30/2012,R,BARCLAYS ASSET & SALES FINANCE
2012-DEC,CS -Oth Operating Inc & Expend,Trading A/c Surpluses/Deficits,Transport-Contract Hire                 ,J01374,Transport Related Expenditure ,Contract Hire and Op Leasing  ,CC64,Mini Cab Hire for Education,604,"1,176.00",11/30/2012,R,BARCLAYS ASSET & SALES FINANCE
2012-DEC,CS -Oth Operating Inc & Expend,Trading A/c Surpluses/Deficits,Transport-Contract Hire                 ,J01374,Transport Related Expenditure ,Contract Hire and Op Leasing  ,CC64,Mini Cab Hire for Education,605,528,11/30/2012,R,CAPITAL CARS                  
2012-DEC,CS -Oth Operating Inc & Expend,Trading A/c Surpluses/Deficits,Transport-Contract Hire                 ,J01374,Transport Related Expenditure ,Contract Hire and Op Leasing  ,CC64,Mini Cab Hire for Education,606,"1,100.00",11/30/2012,R,CAPITAL CARS                  
2012-DEC,CS -Oth Operating Inc & Expend,Trading A/c Surpluses/Deficits,Transport-Contract Hire                 ,J01374,Transport Related Expenditure ,Contract Hire and Op Leasing  ,CC64,Mini Cab Hire for Education,607,855,11/30/2012,R,CAPITAL CARS                  
2012-DEC,CS -Oth Operating Inc & Expend,Trading A/c Surpluses/Deficits,Transport-Contract Hire                 ,J01374,Transport Related Expenditure ,Contract Hire and Op Leasing  ,CC64,Mini Cab Hire for Education,608,"1,428.00",11/30/2012,R,CAPITAL CARS                  
2012-DEC,CS -Oth Operating Inc & Expend,Trading A/c Surpluses/Deficits,Transport-Contract Hire                 ,J01374,Transport Related Expenditure ,Contract Hire and Op Leasing  ,CC64,Mini Cab Hire for Education,609,"1,944.00",11/30/2012,R,CAPITAL CARS                  
2012-DEC,CS -Oth Operating Inc & Expend,Trading A/c Surpluses/Deficits,Transport-Contract Hire                 ,J01374,Transport Related Expenditure ,Contract Hire and Op Leasing  ,CC64,Mini Cab Hire for Education,610,"1,309.00",11/30/2012,R,CAPITAL CARS                  
2012-DEC,CS -Oth Operating Inc & Expend,Trading A/c Surpluses/Deficits,Transport-Contract Hire                 ,J01374,Transport Related Expenditure ,Contract Hire and Op Leasing  ,CC64,Mini Cab Hire for Education,611,"3,080.00",11/30/2012,R,CAPITAL CARS                  
2012-DEC,CS -Oth Operating Inc & Expend,Trading A/c Surpluses/Deficits,Transport-Contract Hire                 ,J01374,Transport Related Expenditure ,Contract Hire and Op Leasing  ,CC64,Mini Cab Hire for Education,612,"2,068.00",11/30/2012,R,CAPITAL CARS                  
2012-DEC,CS -Oth Operating Inc & Expend,Trading A/c Surpluses/Deficits,Transport-Contract Hire                 ,J01374,Transport Related Expenditure ,Contract Hire and Op Leasing  ,CC64,Mini Cab Hire for Education,613,"3,400.00",11/30/2012,R,SILVERBURN FINANCE (UK) LTD   
2012-DEC,CS -Oth Operating Inc & Expend,Trading A/c Surpluses/Deficits,Transport-Contract Hire                 ,J01374,Transport Related Expenditure ,Contract Hire and Op Leasing  ,CC64,Mini Cab Hire for Education,614,"1,872.00",11/30/2012,R,SILVERBURN FINANCE (UK) LTD   
2012-DEC,CS -Oth Operating Inc & Expend,Trading A/c Surpluses/Deficits,Transport-Contract Hire                 ,J01374,Transport Related Expenditure ,Contract Hire and Op Leasing  ,CC64,Mini Cab Hire for Education,615,"1,920.00",11/30/2012,R,SILVERBURN FINANCE (UK) LTD   
2012-DEC,CS -Oth Operating Inc & Expend,Trading A/c Surpluses/Deficits,Transport-Contract Hire                 ,J01374,Transport Related Expenditure ,Contract Hire and Op Leasing  ,CC64,Mini Cab Hire for Education,616,680,11/30/2012,R,SILVERBURN FINANCE (UK) LTD   
2012-DEC,CS -Oth Operating Inc & Expend,Trading A/c Surpluses/Deficits,Transport-Contract Hire                 ,J01374,Transport Related Expenditure ,Contract Hire and Op Leasing  ,CC64,Mini Cab Hire for Education,617,"1,480.00",11/30/2012,R,SILVERBURN FINANCE (UK) LTD   
2012-DEC,CS -Oth Operating Inc & Expend,Trading A/c Surpluses/Deficits,Transport-Contract Hire                 ,J01374,Transport Related Expenditure ,Contract Hire and Op Leasing  ,CC64,Mini Cab Hire for Education,618,"1,920.00",11/30/2012,R,SILVERBURN FINANCE (UK) LTD   
2012-DEC,CS -Oth Operating Inc & Expend,Trading A/c Surpluses/Deficits,Transport-Contract Hire                 ,J01374,Transport Related Expenditure ,Contract Hire and Op Leasing  ,CC64,Mini Cab Hire for Education,619,"1,680.00",11/30/2012,R,SILVERBURN FINANCE (UK) LTD   
2012-DEC,CS -Oth Operating Inc & Expend,Trading A/c Surpluses/Deficits,Transport-Contract Hire                 ,J01374,Transport Related Expenditure ,Contract Hire and Op Leasing  ,CC64,Mini Cab Hire for Education,620,"1,320.00",11/30/2012,R,SILVERBURN FINANCE (UK) LTD   
2012-DEC,CS -Oth Operating Inc & Expend,Trading A/c Surpluses/Deficits,Transport-Contract Hire                 ,J01374,Transport Related Expenditure ,Contract Hire and Op Leasing  ,CC64,Mini Cab Hire for Education,621,608,11/30/2012,R,SILVERBURN FINANCE (UK) LTD   
2012-DEC,CS -Oth Operating Inc & Expend,Trading A/c Surpluses/Deficits,Transport-Contract Hire                 ,J01374,Transport Related Expenditure ,Contract Hire and Op Leasing  ,CC64,Mini Cab Hire for Education,622,"3,148.80",11/30/2012,R,SILVERBURN FINANCE (UK) LTD   
2012-DEC,CS -Oth Operating Inc & Expend,Trading A/c Surpluses/Deficits,Transport-Contract Hire                 ,J01374,Transport Related Expenditure ,Contract Hire and Op Leasing  ,CC64,Mini Cab Hire for Education,623,"1,294.00",11/30/2012,R,BARCLAYS ASSET & SALES FINANCE
2012-DEC,CS -Oth Operating Inc & Expend,Trading A/c Surpluses/Deficits,Transport-Contract Hire                 ,J01374,Transport Related Expenditure ,Contract Hire and Op Leasing  ,CC64,Mini Cab Hire for Education,624,810,11/30/2012,R,GALPINS SERVICE               
2012-DEC,CS -Oth Operating Inc & Expend,Trading A/c Surpluses/Deficits,Transport-Contract Hire                 ,J01374,Transport Related Expenditure ,Contract Hire and Op Leasing  ,CC64,Mini Cab Hire for Education,625,720,11/30/2012,R,GALPINS SERVICE               
2012-DEC,CS -Oth Operating Inc & Expend,Trading A/c Surpluses/Deficits,Transport-Contract Hire                 ,J01374,Transport Related Expenditure ,Contract Hire and Op Leasing  ,CC64,Mini Cab Hire for Education,626,740,11/30/2012,R,KENDALL CARS                  
2012-DEC,CS -Oth Operating Inc & Expend,Trading A/c Surpluses/Deficits,Transport-Contract Hire                 ,J01374,Transport Related Expenditure ,Contract Hire and Op Leasing  ,CC64,Mini Cab Hire for Education,627,"1,680.00",11/30/2012,R,NVCAR HIRE LTD                
2012-DEC,CS -Oth Operating Inc & Expend,Trading A/c Surpluses/Deficits,Transport-Contract Hire                 ,J01374,Transport Related Expenditure ,Contract Hire and Op Leasing  ,CC64,Mini Cab Hire for Education,628,"1,536.00",11/30/2012,R,BARCLAYS ASSET & SALES FINANCE
2012-DEC,CS -Oth Operating Inc & Expend,Trading A/c Surpluses/Deficits,Transport-Contract Hire                 ,J01374,Transport Related Expenditure ,Contract Hire and Op Leasing  ,CC64,Mini Cab Hire for Education,629,700,11/30/2012,R,GALPINS SERVICE               
2012-DEC,CS -Oth Operating Inc & Expend,Trading A/c Surpluses/Deficits,Transport-Contract Hire                 ,J01374,Transport Related Expenditure ,Contract Hire and Op Leasing  ,CC64,Mini Cab Hire for Education,630,"1,400.00",11/30/2012,R,NVCAR HIRE LTD                
2012-DEC,CS -Oth Operating Inc & Expend,Trading A/c Surpluses/Deficits,Transport-Contract Hire                 ,J01374,Transport Related Expenditure ,Contract Hire and Op Leasing  ,CC64,Mini Cab Hire for Education,631,600,11/30/2012,R,NVCAR HIRE LTD                
2012-DEC,CS -Oth Operating Inc & Expend,Trading A/c Surpluses/Deficits,Transport-Contract Hire                 ,J01374,Transport Related Expenditure ,Contract Hire and Op Leasing  ,CC64,Mini Cab Hire for Education,632,819,11/30/2012,R,NVCAR HIRE LTD                
2012-DEC,CS -Oth Operating Inc & Expend,Trading A/c Surpluses/Deficits,Transport-Contract Hire                 ,J01374,Transport Related Expenditure ,Contract Hire and Op Leasing  ,CC64,Mini Cab Hire for Education,633,"2,791.00",11/30/2012,R,NVCAR HIRE LTD                
2012-DEC,CS -Oth Operating Inc & Expend,Trading A/c Surpluses/Deficits,Transport-Contract Hire                 ,J01374,Transport Related Expenditure ,Contract Hire and Op Leasing  ,CC64,Mini Cab Hire for Education,634,"1,440.00",11/30/2012,R,NVCAR HIRE LTD                
2012-DEC,CS -Oth Operating Inc & Expend,Trading A/c Surpluses/Deficits,Transport-Contract Hire                 ,J01374,Transport Related Expenditure ,Contract Hire and Op Leasing  ,CC64,Mini Cab Hire for Education,635,"2,603.00",11/30/2012,R,NVCAR HIRE LTD                
2012-DEC,CS -Oth Operating Inc & Expend,Trading A/c Surpluses/Deficits,Transport-Contract Hire                 ,J01374,Transport Related Expenditure ,Contract Hire and Op Leasing  ,CC64,Mini Cab Hire for Education,636,908,11/30/2012,R,NVCAR HIRE LTD                
2012-DEC,CS -Oth Operating Inc & Expend,Trading A/c Surpluses/Deficits,Transport-Contract Hire                 ,J01374,Transport Related Expenditure ,Contract Hire and Op Leasing  ,CC64,Mini Cab Hire for Education,637,"1,200.00",11/30/2012,R,CHEAM STATION CARS            
2012-DEC,CS -Oth Operating Inc & Expend,Trading A/c Surpluses/Deficits,Transport-Contract Hire                 ,J01374,Transport Related Expenditure ,Contract Hire and Op Leasing  ,CC64,Mini Cab Hire for Education,638,594,11/30/2012,R,CHEAM STATION CARS            
2012-DEC,CS -Oth Operating Inc & Expend,Trading A/c Surpluses/Deficits,Transport-Contract Hire                 ,J01374,Transport Related Expenditure ,Contract Hire and Op Leasing  ,CC64,Mini Cab Hire for Education,639,820,11/30/2012,R,KENDALL CARS                  
2012-DEC,CS -Oth Operating Inc & Expend,Trading A/c Surpluses/Deficits,Transport-Contract Hire                 ,J01374,Transport Related Expenditure ,Contract Hire and Op Leasing  ,CC64,Mini Cab Hire for Education,640,880,11/30/2012,R,AERIAL CAR SERVICES LTD       
2012-DEC,CS -Oth Operating Inc & Expend,Trading A/c Surpluses/Deficits,Transport-Contract Hire                 ,J01374,Transport Related Expenditure ,Contract Hire and Op Leasing  ,CC64,Mini Cab Hire for Education,641,"1,760.00",12/10/2012,R,OLYMPIA TRANSPORT LIMITED     
2012-DEC,CS -Oth Operating Inc & Expend,Trading A/c Surpluses/Deficits,Transport-Contract Hire                 ,J01374,Transport Related Expenditure ,Contract Hire and Op Leasing  ,CC64,Mini Cab Hire for Education,642,525,11/30/2012,R,AERIAL CAR SERVICES LTD       
2012-DEC,CS -Oth Operating Inc & Expend,Trading A/c Surpluses/Deficits,Transport-Contract Hire                 ,J01374,Transport Related Expenditure ,Contract Hire and Op Leasing  ,CC64,Mini Cab Hire for Education,643,700,11/30/2012,R,AERIAL CAR SERVICES LTD       
2012-DEC,CS -Oth Operating Inc & Expend,Trading A/c Surpluses/Deficits,Transport-Contract Hire                 ,J01374,Transport Related Expenditure ,Contract Hire and Op Leasing  ,CC64,Mini Cab Hire for Education,644,"2,250.00",11/25/2012,R,WALLINGTON CARS & COURIERS LTD
2012-DEC,CS -Oth Operating Inc & Expend,Trading A/c Surpluses/Deficits,Transport-Contract Hire                 ,J01374,Transport Related Expenditure ,Contract Hire and Op Leasing  ,CC64,Mini Cab Hire for Education,645,"10,797.91",12/9/2012,R,KINGSTON ACCESSIBILITY TRAN LT
2012-DEC,CS -Oth Operating Inc & Expend,Trading A/c Surpluses/Deficits,Transport-Contract Hire                 ,J01374,Transport Related Expenditure ,Contract Hire and Op Leasing  ,CC64,Mini Cab Hire for Education,646,"1,633.50",12/7/2012,R,SHERWOOD TRANSPORT GROUP      
2012-DEC,CS -Oth Operating Inc & Expend,Trading A/c Surpluses/Deficits,Transport-Contract Hire                 ,J01374,Transport Related Expenditure ,Contract Hire and Op Leasing  ,CC64,Mini Cab Hire for Education,647,"2,301.00",12/7/2012,R,SHERWOOD TRANSPORT GROUP      
2012-DEC,CS -Oth Operating Inc & Expend,Trading A/c Surpluses/Deficits,Transport-Contract Hire                 ,J01374,Transport Related Expenditure ,Contract Hire and Op Leasing  ,CC64,Mini Cab Hire for Education,648,"1,298.00",12/7/2012,R,SHERWOOD TRANSPORT GROUP      
2012-DEC,CS -Oth Operating Inc & Expend,Trading A/c Surpluses/Deficits,Transport-Contract Hire                 ,J01374,Transport Related Expenditure ,Contract Hire and Op Leasing  ,CC64,Mini Cab Hire for Education,649,"1,837.50",11/7/2012,R,SHERWOOD TRANSPORT GROUP      
2012-DEC,CS -Oth Operating Inc & Expend,Trading A/c Surpluses/Deficits,Transport-Contract Hire                 ,J01374,Transport Related Expenditure ,Contract Hire and Op Leasing  ,CC64,Mini Cab Hire for Education,650,770,12/7/2012,R,SHERWOOD TRANSPORT GROUP      
2012-DEC,CS -Oth Operating Inc & Expend,Trading A/c Surpluses/Deficits,Transport-Contract Hire                 ,J01374,Transport Related Expenditure ,Contract Hire and Op Leasing  ,CC64,Mini Cab Hire for Education,651,"1,400.00",12/7/2012,R,SHERWOOD TRANSPORT GROUP      
2012-DEC,CS -Oth Operating Inc & Expend,Trading A/c Surpluses/Deficits,Transport-Contract Hire                 ,J01374,Transport Related Expenditure ,Contract Hire and Op Leasing  ,CC64,Mini Cab Hire for Education,652,580,12/7/2012,R,SHERWOOD TRANSPORT GROUP      
2012-DEC,CS -Oth Operating Inc & Expend,Trading A/c Surpluses/Deficits,Transport-Contract Hire                 ,J01374,Transport Related Expenditure ,Contract Hire and Op Leasing  ,CC64,Mini Cab Hire for Education,653,"1,024.10",12/7/2012,R,SHERWOOD TRANSPORT GROUP      
2012-DEC,CS -Oth Operating Inc & Expend,Trading A/c Surpluses/Deficits,Transport-Contract Hire                 ,J01374,Transport Related Expenditure ,Contract Hire and Op Leasing  ,CC64,Mini Cab Hire for Education,654,"2,380.00",12/7/2012,R,SHERWOOD TRANSPORT GROUP      
2012-DEC,CS -Oth Operating Inc & Expend,Trading A/c Surpluses/Deficits,Transport-Contract Hire                 ,J01374,Transport Related Expenditure ,Contract Hire and Op Leasing  ,CC64,Mini Cab Hire for Education,655,"1,790.80",12/7/2012,R,SHERWOOD TRANSPORT GROUP      
2012-DEC,CS -Oth Operating Inc & Expend,Trading A/c Surpluses/Deficits,Transport-Contract Hire                 ,J01374,Transport Related Expenditure ,Contract Hire and Op Leasing  ,CC64,Mini Cab Hire for Education,656,"1,400.00",12/7/2012,R,SHERWOOD TRANSPORT GROUP      
2012-DEC,CS -Oth Operating Inc & Expend,Trading A/c Surpluses/Deficits,Transport-Contract Hire                 ,J01374,Transport Related Expenditure ,Contract Hire and Op Leasing  ,CC64,Mini Cab Hire for Education,657,"2,941.50",12/7/2012,R,SHERWOOD TRANSPORT GROUP      
2012-DEC,CS -Oth Operating Inc & Expend,Trading A/c Surpluses/Deficits,Transport-Contract Hire                 ,J01374,Transport Related Expenditure ,Contract Hire and Op Leasing  ,CC64,Mini Cab Hire for Education,658,"10,838.94",12/16/2012,R,KINGSTON ACCESSIBILITY TRAN LT
2012-DEC,CS -Oth Operating Inc & Expend,Trading A/c Surpluses/Deficits,Transport-Contract Hire                 ,J01374,Transport Related Expenditure ,Contract Hire and Op Leasing  ,CC66,Mini Cab Hire -Soc Serv -Child,659,"1,927.90",12/2/2012,R,KINGSTON ACCESSIBILITY TRAN LT
2012-DEC,CS -Oth Operating Inc & Expend,Trading A/c Surpluses/Deficits,Transport-Contract Hire                 ,J01374,Transport Related Expenditure ,Contract Hire and Op Leasing  ,CC66,Mini Cab Hire -Soc Serv -Child,660,720,11/30/2012,R,CAPITAL CARS                  
2012-DEC,CS -Oth Operating Inc & Expend,Trading A/c Surpluses/Deficits,Transport-Contract Hire                 ,J01374,Transport Related Expenditure ,Contract Hire and Op Leasing  ,CC66,Mini Cab Hire -Soc Serv -Child,661,780,11/30/2012,R,GALPINS SERVICE               
2012-DEC,CS -Oth Operating Inc & Expend,Trading A/c Surpluses/Deficits,Transport-Contract Hire                 ,J01374,Transport Related Expenditure ,Contract Hire and Op Leasing  ,CC66,Mini Cab Hire -Soc Serv -Child,662,975,11/30/2012,R,CHEAM STATION CARS            
2012-DEC,CS -Oth Operating Inc & Expend,Trading A/c Surpluses/Deficits,Transport-Contract Hire                 ,J01374,Transport Related Expenditure ,Contract Hire and Op Leasing  ,CC66,Mini Cab Hire -Soc Serv -Child,663,774,11/30/2012,R,GALPINS SERVICE               
2012-DEC,CS -Oth Operating Inc & Expend,Trading A/c Surpluses/Deficits,Transport-Contract Hire                 ,J01374,Transport Related Expenditure ,Contract Hire and Op Leasing  ,CC66,Mini Cab Hire -Soc Serv -Child,664,"1,837.90",12/9/2012,R,KINGSTON ACCESSIBILITY TRAN LT
2012-DEC,CS -Oth Operating Inc & Expend,Trading A/c Surpluses/Deficits,Transport-Contract Hire                 ,J01374,Transport Related Expenditure ,Contract Hire and Op Leasing  ,CC66,Mini Cab Hire -Soc Serv -Child,665,540,11/30/2012,R,CHEAM STATION CARS            
2012-DEC,CS -Oth Operating Inc & Expend,Trading A/c Surpluses/Deficits,Transport-Contract Hire                 ,J01374,Transport Related Expenditure ,Contract Hire and Op Leasing  ,CC66,Mini Cab Hire -Soc Serv -Child,666,534,11/30/2012,R,CHEAM STATION CARS            
2012-DEC,CS -Oth Operating Inc & Expend,Trading A/c Surpluses/Deficits,Transport-Contract Hire                 ,J01374,Transport Related Expenditure ,Contract Hire and Op Leasing  ,CC66,Mini Cab Hire -Soc Serv -Child,667,"1,852.90",12/16/2012,R,KINGSTON ACCESSIBILITY TRAN LT
2012-DEC,CS -Oth Operating Inc & Expend,Trading A/c Surpluses/Deficits,Transport-Contract Hire                 ,J01374,Transport Related Expenditure ,Contract Hire and Op Leasing  ,CC67,Mini Cab Hire -Soc Serv -Adult,668,"1,882.52",12/2/2012,R,KINGSTON ACCESSIBILITY TRAN LT
2012-DEC,CS -Oth Operating Inc & Expend,Trading A/c Surpluses/Deficits,Transport-Contract Hire                 ,J01374,Transport Related Expenditure ,Contract Hire and Op Leasing  ,CC67,Mini Cab Hire -Soc Serv -Adult,669,512,11/30/2012,R,BARCLAYS ASSET & SALES FINANCE
2012-DEC,CS -Oth Operating Inc & Expend,Trading A/c Surpluses/Deficits,Transport-Contract Hire                 ,J01374,Transport Related Expenditure ,Contract Hire and Op Leasing  ,CC67,Mini Cab Hire -Soc Serv -Adult,670,784,11/30/2012,R,CAPITAL CARS                  
2012-DEC,CS -Oth Operating Inc & Expend,Trading A/c Surpluses/Deficits,Transport-Contract Hire                 ,J01374,Transport Related Expenditure ,Contract Hire and Op Leasing  ,CC67,Mini Cab Hire -Soc Serv -Adult,671,"1,840.00",11/30/2012,R,CAPITAL CARS                  
2012-DEC,CS -Oth Operating Inc & Expend,Trading A/c Surpluses/Deficits,Transport-Contract Hire                 ,J01374,Transport Related Expenditure ,Contract Hire and Op Leasing  ,CC67,Mini Cab Hire -Soc Serv -Adult,672,"1,128.00",11/30/2012,R,CAPITAL CARS                  
2012-DEC,CS -Oth Operating Inc & Expend,Trading A/c Surpluses/Deficits,Transport-Contract Hire                 ,J01374,Transport Related Expenditure ,Contract Hire and Op Leasing  ,CC67,Mini Cab Hire -Soc Serv -Adult,673,"1,152.00",11/30/2012,R,A STAR TRANSPORT LIMITED      
2012-DEC,CS -Oth Operating Inc & Expend,Trading A/c Surpluses/Deficits,Transport-Contract Hire                 ,J01374,Transport Related Expenditure ,Contract Hire and Op Leasing  ,CC67,Mini Cab Hire -Soc Serv -Adult,674,580.96,11/30/2012,R,SILVERBURN FINANCE (UK) LTD   
2012-DEC,CS -Oth Operating Inc & Expend,Trading A/c Surpluses/Deficits,Transport-Contract Hire                 ,J01374,Transport Related Expenditure ,Contract Hire and Op Leasing  ,CC67,Mini Cab Hire -Soc Serv -Adult,675,"1,280.00",11/30/2012,R,BARCLAYS ASSET & SALES FINANCE
2012-DEC,CS -Oth Operating Inc & Expend,Trading A/c Surpluses/Deficits,Transport-Contract Hire                 ,J01374,Transport Related Expenditure ,Contract Hire and Op Leasing  ,CC67,Mini Cab Hire -Soc Serv -Adult,676,624,11/30/2012,R,BARCLAYS ASSET & SALES FINANCE
2012-DEC,CS -Oth Operating Inc & Expend,Trading A/c Surpluses/Deficits,Transport-Contract Hire                 ,J01374,Transport Related Expenditure ,Contract Hire and Op Leasing  ,CC67,Mini Cab Hire -Soc Serv -Adult,677,616,11/30/2012,R,BARCLAYS ASSET & SALES FINANCE
2012-DEC,CS -Oth Operating Inc & Expend,Trading A/c Surpluses/Deficits,Transport-Contract Hire                 ,J01374,Transport Related Expenditure ,Contract Hire and Op Leasing  ,CC67,Mini Cab Hire -Soc Serv -Adult,678,904,11/30/2012,R,BARCLAYS ASSET & SALES FINANCE
2012-DEC,CS -Oth Operating Inc & Expend,Trading A/c Surpluses/Deficits,Transport-Contract Hire                 ,J01374,Transport Related Expenditure ,Contract Hire and Op Leasing  ,CC67,Mini Cab Hire -Soc Serv -Adult,679,664,11/30/2012,R,GALPINS SERVICE               
2012-DEC,CS -Oth Operating Inc & Expend,Trading A/c Surpluses/Deficits,Transport-Contract Hire                 ,J01374,Transport Related Expenditure ,Contract Hire and Op Leasing  ,CC67,Mini Cab Hire -Soc Serv -Adult,680,"1,680.00",11/30/2012,R,NVCAR HIRE LTD                
2012-DEC,CS -Oth Operating Inc & Expend,Trading A/c Surpluses/Deficits,Transport-Contract Hire                 ,J01374,Transport Related Expenditure ,Contract Hire and Op Leasing  ,CC67,Mini Cab Hire -Soc Serv -Adult,681,"1,412.00",11/30/2012,R,NVCAR HIRE LTD                
2012-DEC,CS -Oth Operating Inc & Expend,Trading A/c Surpluses/Deficits,Transport-Contract Hire                 ,J01374,Transport Related Expenditure ,Contract Hire and Op Leasing  ,CC67,Mini Cab Hire -Soc Serv -Adult,682,880,11/30/2012,R,AERIAL CAR SERVICES LTD       
2012-DEC,CS -Oth Operating Inc & Expend,Trading A/c Surpluses/Deficits,Transport-Contract Hire                 ,J01374,Transport Related Expenditure ,Contract Hire and Op Leasing  ,CC67,Mini Cab Hire -Soc Serv -Adult,683,962,11/30/2012,R,AERIAL CAR SERVICES LTD       
2012-DEC,CS -Oth Operating Inc & Expend,Trading A/c Surpluses/Deficits,Transport-Contract Hire                 ,J01374,Transport Related Expenditure ,Contract Hire and Op Leasing  ,CC67,Mini Cab Hire -Soc Serv -Adult,684,"1,882.52",12/9/2012,R,KINGSTON ACCESSIBILITY TRAN LT
2012-DEC,CS -Oth Operating Inc & Expend,Trading A/c Surpluses/Deficits,Transport-Contract Hire                 ,J01374,Transport Related Expenditure ,Contract Hire and Op Leasing  ,CC67,Mini Cab Hire -Soc Serv -Adult,685,"1,522.42",12/16/2012,R,KINGSTON ACCESSIBILITY TRAN LT
2012-DEC,CS -Oth Operating Inc & Expend,Trading A/c Surpluses/Deficits,Transport-Contract Hire                 ,J01374,Transport Related Expenditure ,Contract Hire and Op Leasing  ,CC68,Vehicle Hire Special Projects,686,"1,260.00",12/2/2012,R,KINGSTON ACCESSIBILITY TRAN LT
2012-DEC,CS -Oth Operating Inc & Expend,Trading A/c Surpluses/Deficits,Transport-Contract Hire                 ,J01374,Transport Related Expenditure ,Contract Hire and Op Leasing  ,CC68,Vehicle Hire Special Projects,687,"3,160.00",11/30/2012,R,BARCLAYS ASSET & SALES FINANCE
2012-DEC,CS -Oth Operating Inc & Expend,Trading A/c Surpluses/Deficits,Transport-Contract Hire                 ,J01374,Transport Related Expenditure ,Contract Hire and Op Leasing  ,CC68,Vehicle Hire Special Projects,688,660,11/30/2012,R,CAPITAL CARS                  
2012-DEC,CS -Oth Operating Inc & Expend,Trading A/c Surpluses/Deficits,Transport-Contract Hire                 ,J01374,Transport Related Expenditure ,Contract Hire and Op Leasing  ,CC68,Vehicle Hire Special Projects,689,"1,360.00",11/30/2012,R,SILVERBURN FINANCE (UK) LTD   
2012-DEC,CS -Oth Operating Inc & Expend,Trading A/c Surpluses/Deficits,Transport-Contract Hire                 ,J01374,Transport Related Expenditure ,Contract Hire and Op Leasing  ,CC68,Vehicle Hire Special Projects,690,663.33,11/30/2012,R,GALPINS SERVICE               
2012-DEC,CS -Oth Operating Inc & Expend,Trading A/c Surpluses/Deficits,Transport-Contract Hire                 ,J01374,Transport Related Expenditure ,Contract Hire and Op Leasing  ,CC68,Vehicle Hire Special Projects,691,"1,008.00",11/30/2012,R,BARCLAYS ASSET & SALES FINANCE
2012-DEC,CS -Oth Operating Inc & Expend,Trading A/c Surpluses/Deficits,Transport-Contract Hire                 ,J01374,Transport Related Expenditure ,Contract Hire and Op Leasing  ,CC68,Vehicle Hire Special Projects,692,640,11/30/2012,R,BARCLAYS ASSET & SALES FINANCE
2012-DEC,CS -Oth Operating Inc & Expend,Trading A/c Surpluses/Deficits,Transport-Contract Hire                 ,J01374,Transport Related Expenditure ,Contract Hire and Op Leasing  ,CC68,Vehicle Hire Special Projects,693,945,11/30/2012,R,GALPINS SERVICE               
2012-DEC,CS -Oth Operating Inc & Expend,Trading A/c Surpluses/Deficits,Transport-Contract Hire                 ,J01374,Transport Related Expenditure ,Contract Hire and Op Leasing  ,CC68,Vehicle Hire Special Projects,694,608,11/30/2012,R,GALPINS SERVICE               
2012-DEC,CS -Oth Operating Inc & Expend,Trading A/c Surpluses/Deficits,Transport-Contract Hire                 ,J01374,Transport Related Expenditure ,Contract Hire and Op Leasing  ,CC68,Vehicle Hire Special Projects,695,"1,260.00",12/9/2012,R,KINGSTON ACCESSIBILITY TRAN LT
2012-DEC,CS -Oth Operating Inc & Expend,Trading A/c Surpluses/Deficits,Transport-Contract Hire                 ,J01374,Transport Related Expenditure ,Contract Hire and Op Leasing  ,CC68,Vehicle Hire Special Projects,696,"2,160.00",12/7/2012,R,SHERWOOD TRANSPORT GROUP      
2012-DEC,CS -Oth Operating Inc & Expend,Trading A/c Surpluses/Deficits,Transport-Contract Hire                 ,J01374,Transport Related Expenditure ,Contract Hire and Op Leasing  ,CC68,Vehicle Hire Special Projects,697,"1,260.00",12/16/2012,R,KINGSTON ACCESSIBILITY TRAN LT
2012-DEC,CS -Oth Operating Inc & Expend,Trading A/c Surpluses/Deficits,Transport-Workshop                      ,J01376,Premises Related Expenditure  ,RepairsAlterations&MtceOfBldgs,BA03,DDM - Mechanical,698,501.37,11/22/2012,R,COFELY LIMITED                
2012-DEC,CS -Oth Operating Inc & Expend,Trading A/c Surpluses/Deficits,Transport-Workshop                      ,J01376,Transport Related Expenditure ,Direct Transport Costs        ,CA02,Tyres,699,"1,005.00",11/22/2012,R,MORDEN TYRE SERVICES LTD      
2012-DEC,CS -Oth Operating Inc & Expend,Trading A/c Surpluses/Deficits,Transport-Workshop                      ,J01376,Transport Related Expenditure ,Direct Transport Costs        ,CA02,Tyres,700,820,11/23/2012,R,MORDEN TYRE SERVICES LTD      
2012-DEC,CS -Oth Operating Inc & Expend,Trading A/c Surpluses/Deficits,Transport-Workshop                      ,J01376,Transport Related Expenditure ,Direct Transport Costs        ,CA02,Tyres,701,990,12/6/2012,R,MORDEN TYRE SERVICES LTD      
2012-DEC,CS -Oth Operating Inc & Expend,Trading A/c Surpluses/Deficits,Transport-Workshop                      ,J01376,Transport Related Expenditure ,Direct Transport Costs        ,CA02,Tyres,702,935,12/6/2012,R,MORDEN TYRE SERVICES LTD      
2012-DEC,CS -Oth Operating Inc & Expend,Trading A/c Surpluses/Deficits,Transport-Workshop                      ,J01376,Transport Related Expenditure ,Direct Transport Costs        ,CA55,Specialist Maint. (Off Site),703,997.59,11/30/2012,R,KINGSLEY COMM COMPONENTS LTD  
2012-DEC,CS -Oth Operating Inc & Expend,Trading A/c Surpluses/Deficits,Transport-Workshop                      ,J01376,Transport Related Expenditure ,Direct Transport Costs        ,CA55,Specialist Maint. (Off Site),704,969.54,11/30/2012,R,KINGSLEY COMM COMPONENTS LTD  
2012-DEC,CS -Oth Operating Inc & Expend,Trading A/c Surpluses/Deficits,Transport-Workshop                      ,J01376,Transport Related Expenditure ,Direct Transport Costs        ,CA55,Specialist Maint. (Off Site),705,589,11/30/2012,R,KINGSLEY COMM COMPONENTS LTD  
2012-DEC,CS -Oth Operating Inc & Expend,Trading A/c Surpluses/Deficits,Transport-Workshop                      ,J01376,Transport Related Expenditure ,Direct Transport Costs        ,CA56,Specialist Maint. (On Site),706,835.5,11/6/2012,R,TENNANT UK CLEANING SOLUTIONS 
2012-DEC,CS -Oth Operating Inc & Expend,Trading A/c Surpluses/Deficits,Transport-Workshop                      ,J01376,Transport Related Expenditure ,Direct Transport Costs        ,CA56,Specialist Maint. (On Site),707,835.5,11/6/2012,R,TENNANT UK CLEANING SOLUTIONS 
2012-DEC,CS -Oth Operating Inc & Expend,Trading A/c Surpluses/Deficits,Transport-Workshop                      ,J01376,Transport Related Expenditure ,Direct Transport Costs        ,CA56,Specialist Maint. (On Site),708,566.48,11/14/2012,R,T H WHITE LTD                 
2012-DEC,CS -Oth Operating Inc & Expend,Trading A/c Surpluses/Deficits,Transport-Workshop                      ,J01376,Transport Related Expenditure ,Direct Transport Costs        ,CA56,Specialist Maint. (On Site),709,-901.67,11/21/2012,R,JOHNSTON SWEEPERS LIMITED     
2012-DEC,CS -Oth Operating Inc & Expend,Trading A/c Surpluses/Deficits,Transport-Workshop                      ,J01376,Transport Related Expenditure ,Direct Transport Costs        ,CA72,Vehicle Parts,710,"1,846.93",11/21/2012,R,GEESINK NORBA                 
2012-DEC,CS -Oth Operating Inc & Expend,Trading A/c Surpluses/Deficits,Transport-Workshop                      ,J01376,Transport Related Expenditure ,Direct Transport Costs        ,CA72,Vehicle Parts,711,723.5,11/20/2012,R,GEESINK NORBA                 
2012-DEC,CS -Oth Operating Inc & Expend,Trading A/c Surpluses/Deficits,Transport-Workshop                      ,J01376,Transport Related Expenditure ,Direct Transport Costs        ,CA72,Vehicle Parts,712,728.43,11/26/2012,R,COMMERCIAL & PLANT LTD        
2012-DEC,CS -Oth Operating Inc & Expend,Trading A/c Surpluses/Deficits,Transport-Workshop                      ,J01376,Transport Related Expenditure ,Direct Transport Costs        ,CA72,Vehicle Parts,713,680.32,11/29/2012,R,DENNIS EAGLE LIMITED          
2012-DEC,CS -Oth Operating Inc & Expend,Trading A/c Surpluses/Deficits,Transport-Workshop                      ,J01376,Transport Related Expenditure ,Direct Transport Costs        ,CA72,Vehicle Parts,714,"1,147.10",11/29/2012,R,GRAYS TRUCK CENTRE LIMITED    
2012-DEC,CS -Oth Operating Inc & Expend,Trading A/c Surpluses/Deficits,Transport-Workshop                      ,J01376,Transport Related Expenditure ,Direct Transport Costs        ,CA72,Vehicle Parts,715,805,12/1/2012,R,REDACTED
2012-DEC,CS -Oth Operating Inc & Expend,Trading A/c Surpluses/Deficits,Transport-Workshop                      ,J01376,Transport Related Expenditure ,Contract Hire and Op Leasing  ,CC60,Vehicle Hire for LB Sutton,716,814,11/30/2012,R,CAPITAL CARS                  
2012-DEC,CS -Oth Operating Inc & Expend,Trading A/c Surpluses/Deficits,Transport-Workshop                      ,J01376,Transport Related Expenditure ,Contract Hire and Op Leasing  ,CC60,Vehicle Hire for LB Sutton,717,"4,356.00",11/30/2012,R,BARCLAYS ASSET & SALES FINANCE
2012-DEC,CS -Oth Operating Inc & Expend,Trading A/c Surpluses/Deficits,Transport-Workshop                      ,J01376,Transport Related Expenditure ,Contract Hire and Op Leasing  ,CC60,Vehicle Hire for LB Sutton,718,960,11/30/2012,R,BARCLAYS ASSET & SALES FINANCE
2012-DEC,CS -Oth Operating Inc & Expend,Trading A/c Surpluses/Deficits,Transport-Workshop                      ,J01376,Transport Related Expenditure ,Contract Hire and Op Leasing  ,CC60,Vehicle Hire for LB Sutton,719,"2,060.00",11/30/2012,R,BRUNSWICK CARS LTD            
2012-DEC,CS -Oth Operating Inc & Expend,Trading A/c Surpluses/Deficits,Transport-Workshop                      ,J01376,Transport Related Expenditure ,Contract Hire and Op Leasing  ,CC60,Vehicle Hire for LB Sutton,720,"2,800.00",11/30/2012,R,BRUNSWICK CARS LTD            
2012-DEC,CS -Oth Operating Inc & Expend,Trading A/c Surpluses/Deficits,Transport-Workshop                      ,J01376,Transport Related Expenditure ,Contract Hire and Op Leasing  ,CC60,Vehicle Hire for LB Sutton,721,"1,677.00",11/30/2012,R,BARCLAYS ASSET & SALES FINANCE
2012-DEC,CS -Oth Operating Inc & Expend,Trading A/c Surpluses/Deficits,Transport-Workshop                      ,J01376,Transport Related Expenditure ,Contract Hire and Op Leasing  ,CC60,Vehicle Hire for LB Sutton,722,"2,380.00",11/30/2012,R,BRUNSWICK CARS LTD            
2012-DEC,CS -Oth Operating Inc & Expend,Trading A/c Surpluses/Deficits,Transport-Workshop                      ,J01376,Transport Related Expenditure ,Contract Hire and Op Leasing  ,CC60,Vehicle Hire for LB Sutton,723,960,11/29/2012,R,CALVERTON FACTORS LTD         
2012-DEC,CS -Oth Operating Inc & Expend,Trading A/c Surpluses/Deficits,Transport-Workshop                      ,J01376,Transport Related Expenditure ,Contract Hire and Op Leasing  ,CC60,Vehicle Hire for LB Sutton,724,"1,444.00",11/29/2012,R,CALVERTON FACTORS LTD         
2012-DEC,CS -Oth Operating Inc & Expend,Trading A/c Surpluses/Deficits,Transport-Workshop                      ,J01376,Transport Related Expenditure ,Contract Hire and Op Leasing  ,CC60,Vehicle Hire for LB Sutton,725,"1,800.00",11/29/2012,R,CALVERTON FACTORS LTD         
2012-DEC,CS -Oth Operating Inc & Expend,Trading A/c Surpluses/Deficits,Transport-Workshop                      ,J01376,Transport Related Expenditure ,Contract Hire and Op Leasing  ,CC60,Vehicle Hire for LB Sutton,726,"2,070.00",11/29/2012,R,CALVERTON FACTORS LTD         
2012-DEC,CS -Oth Operating Inc & Expend,Trading A/c Surpluses/Deficits,Transport-Workshop                      ,J01376,Supplies & Services           ,Equip Furniture/Materials     ,DA01,Equipment - R & M,727,568.64,11/24/2012,R,SUNLIGHT SERVICE GROUP LTD    
2012-DEC,Cultural Env Reg&Plan Services,SMSS (Env),Estates Mgt                             ,J01420,Supplies & Services           ,Grants and Subscriptions      ,DJ04,Subscriptions,728,595,12/6/2012,R,RICS                          
2012-DEC,Cultural Env Reg&Plan Services,SMSS (Env),Estates Mgt                             ,J01420,Third Party Payments          ,Private Contractors           ,EH02,Miscellaneous Hired Services,729,"9,945.00",11/29/2012,R,DANBRO LIMITED                
2012-DEC,CS -Oth Operating Inc & Expend,INVESTMENT PROPERTIES,Housing Shops                           ,J01533,Premises Related Expenditure  ,RepairsAlterations&MtceOfBldgs,BA79,Security of Premises,730,"5,892.80",9/3/2012,R,SIGHT & SOUND                 
2012-DEC,CS -Oth Operating Inc & Expend,INVESTMENT PROPERTIES,Housing Shops                           ,J01533,Premises Related Expenditure  ,RepairsAlterations&MtceOfBldgs,BA79,Security of Premises,731,"4,200.00",9/3/2012,R,SIGHT & SOUND                 
2012-DEC,CS -Oth Operating Inc & Expend,INVESTMENT PROPERTIES,Housing Shops                           ,J01533,Premises Related Expenditure  ,RepairsAlterations&MtceOfBldgs,BA79,Security of Premises,732,"7,488.00",10/1/2012,R,SIGHT & SOUND                 
2012-DEC,CS -Oth Operating Inc & Expend,INVESTMENT PROPERTIES,Housing Shops                           ,J01533,Premises Related Expenditure  ,RepairsAlterations&MtceOfBldgs,BA79,Security of Premises,733,"7,488.00",12/3/2012,R,SIGHT & SOUND                 
2012-DEC,CS -Oth Operating Inc & Expend,INVESTMENT PROPERTIES,Housing Shops                           ,J01533,Premises Related Expenditure  ,RepairsAlterations&MtceOfBldgs,BA79,Security of Premises,734,"7,748.00",11/1/2012,R,SIGHT & SOUND                 
2012-DEC,CS -Oth Operating Inc & Expend,INVESTMENT PROPERTIES,Housing Shops                           ,J01533,Premises Related Expenditure  ,RepairsAlterations&MtceOfBldgs,BA79,Security of Premises,735,962,11/30/2012,R,OM METROPOLITAN TOTAL SEC.LTD 
2012-DEC,CS -Oth Operating Inc & Expend,INVESTMENT PROPERTIES,Housing Shops                           ,J01533,Premises Related Expenditure  ,RepairsAlterations&MtceOfBldgs,BA79,Security of Premises,736,962,10/31/2012,R,OM METROPOLITAN TOTAL SEC.LTD 
2012-DEC,Central Services,Unused Share - Other Assets,Montgomery Close                        ,J02044,Premises Related Expenditure  ,RepairsAlterations&MtceOfBldgs,BA03,DDM - Mechanical,737,617.24,11/22/2012,R,COFELY LIMITED                
2012-DEC,CS -Oth Operating Inc & Expend,INVESTMENT PROPERTIES,Pollards Hill Comm Cntre                ,J08074,Premises Related Expenditure  ,RepairsAlterations&MtceOfBldgs,BA03,DDM - Mechanical,738,692.01,11/22/2012,R,COFELY LIMITED                
2012-DEC,Childrens & Education Services,Schools Strategic Management,Senior Mngt & Support Services          ,K01005,Employees                     ,Indirect Employee Expenses    ,AB02,Recruitment Adverts,739,"4,666.00",11/30/2012,R,PENNA COMMUNICATIONS (NO 2 A/C
2012-DEC,Childrens & Education Services,Schools Strategic Management,Senior Mngt & Support Services          ,K01005,Employees                     ,Indirect Employee Expenses    ,AB57,External Training Costs,740,"5,141.20",12/10/2012,R,THE DIVERSITY PRACTICE        
2012-DEC,Childrens & Education Services,Schools Strategic Management,Senior Mngt & Support Services          ,K01005,Supplies & Services           ,Services                      ,DF11,Counsel's fees,741,"5,619.05",12/5/2012,R,"STEFFAS & ASSOCIATES, P.C.    "
2012-DEC,Childrens & Education Services,Schools Strategic Management,Senior Mngt & Support Services          ,K01005,Supplies & Services           ,Services                      ,DF11,Counsel's fees,742,800,11/23/2012,R,REDACTED
2012-DEC,Childrens & Education Services,Schools Strategic Management,Senior Mngt & Support Services          ,K01005,Supplies & Services           ,Services                      ,DF11,Counsel's fees,743,790,11/22/2012,R,REDACTED
2012-DEC,Childrens & Education Services,Schools Strategic Management,Senior Mngt & Support Services          ,K01005,Supplies & Services           ,Services                      ,DF11,Counsel's fees,744,600,9/11/2012,R,REDACTED
2012-DEC,Childrens & Education Services,Schools Strategic Management,Senior Mngt & Support Services          ,K01005,Supplies & Services           ,Services                      ,DF11,Counsel's fees,745,780,10/26/2012,R,REDACTED
2012-DEC,Childrens & Education Services,Schools Strategic Management,Senior Mngt & Support Services          ,K01005,Supplies & Services           ,Services                      ,DF11,Counsel's fees,746,725,11/21/2012,R,REDACTED
2012-DEC,Childrens & Education Services,Schools Strategic Management,Senior Mngt & Support Services          ,K01005,Supplies & Services           ,Services                      ,DF11,Counsel's fees,747,500,11/30/2012,R,REDACTED
2012-DEC,Childrens & Education Services,Schools Strategic Management,Senior Mngt & Support Services          ,K01005,Supplies & Services           ,Services                      ,DF95,Services from Provider,748,"1,220.00",6/22/2012,R,DUNDONS SOLICITORS            
2012-DEC,Childrens & Education Services,Schools Strategic Management,Central Administration                  ,K01008,Supplies & Services           ,Comms and Computing           ,DG04,Postage - General,749,600,11/28/2012,R,TRAVELCARE                    
2012-DEC,Childrens & Education Services,Schools Strategic Management,Central Administration                  ,K01008,Supplies & Services           ,Grants and Subscriptions      ,DJ04,Subscriptions,750,"2,000.00",12/3/2012,R,L. B. OF HAMMERSMITH & FULHAM 
2012-DEC,Childrens & Education Services,Assuring Access To Schools,PFI Unitary Charges                     ,K03023,Third Party Payments          ,Private Contractors           ,EH02,Miscellaneous Hired Services,751,884.8,8/15/2012,R,NEWSCHOOLS (MERTON) LIMITED   
2012-DEC,Childrens & Education Services,Assuring Access To Schools,PFI Unitary Charges                     ,K03023,Third Party Payments          ,Private Contractors           ,EH02,Miscellaneous Hired Services,752,"1,535.02",10/31/2012,R,NEWSCHOOLS (MERTON) LIMITED   
2012-DEC,Childrens & Education Services,Assuring Access To Schools,PFI Unitary Charges                     ,K03023,Third Party Payments          ,Private Contractors           ,EH02,Miscellaneous Hired Services,753,"1,273.50",10/30/2012,R,NEWSCHOOLS (MERTON) LIMITED   
2012-DEC,Childrens & Education Services,Assuring Access To Schools,PFI Unitary Charges                     ,K03023,Third Party Payments          ,Private Contractors           ,EH02,Miscellaneous Hired Services,754,"1,795.37",8/31/2012,R,NEWSCHOOLS (MERTON) LIMITED   
2012-DEC,Childrens & Education Services,Assuring Access To Schools,PFI Unitary Charges                     ,K03023,Third Party Payments          ,Private Contractors           ,EH02,Miscellaneous Hired Services,755,"7,849.50",9/28/2012,R,NEWSCHOOLS (MERTON) LIMITED   
2012-DEC,Childrens & Education Services,Assuring Access To Schools,PFI Unitary Charges                     ,K03023,Third Party Payments          ,Private Contractors           ,EH02,Miscellaneous Hired Services,756,717.72,6/30/2012,R,NEWSCHOOLS (MERTON) LIMITED   
2012-DEC,Childrens & Education Services,Assuring Access To Schools,PFI Unitary Charges                     ,K03023,Third Party Payments          ,Private Contractors           ,EH02,Miscellaneous Hired Services,757,859.1,11/30/2012,R,NEWSCHOOLS (MERTON) LIMITED   
2012-DEC,Childrens & Education Services,Assuring Access To Schools,PFI Unitary Charges                     ,K03023,Third Party Payments          ,Private Contractors           ,EH10,Contract Payments,758,"798,908.15",12/6/2012,R,NEWSCHOOLS (MERTON) LIMITED   
2012-DEC,Childrens & Education Services,GENERATED ACCOUNT,SEN Transitions Team                    ,K04016,Employees                     ,Direct Employee Expenses      ,AA17,Agency Staff & Casual Paymts,759,"3,600.00",12/1/2012,R,PERMANENT FUTURES             
2012-DEC,Childrens & Education Services,Supporting SEN,Education Psychology.                   ,K04018,Employees                     ,Direct Employee Expenses      ,AA17,Agency Staff & Casual Paymts,760,"1,125.00",12/5/2012,R,REDACTED
2012-DEC,Childrens & Education Services,Supporting SEN,Education Psychology.                   ,K04018,Supplies & Services           ,Equip Furniture/Materials     ,DA09,Equip-Purchases,761,"2,008.75",10/23/2012,R,GRANADA LEARNING LTD          
2012-DEC,Childrens & Education Services,Supporting SEN,Statement Support Team                  ,K04034,Employees                     ,Direct Employee Expenses      ,AA17,Agency Staff & Casual Paymts,762,"6,000.00",11/24/2012,R,PERMANENT FUTURES             
2012-DEC,Childrens & Education Services,Supporting SEN,Statement Support Team                  ,K04034,Employees                     ,Direct Employee Expenses      ,AA17,Agency Staff & Casual Paymts,763,"4,000.00",12/8/2012,R,PERMANENT FUTURES             
2012-DEC,Childrens & Education Services,Supporting SEN,Expanded Pupil Referral Unit            ,K05099,Third Party Payments          ,Private Contractors           ,EH01,Miscellaneous Contrct Services,764,"4,865.14",11/28/2012,R,SW LONDON ST GEORGES NHS TRUST
2012-DEC,Childrens & Education Services,Pre-School Ed (inc Nursery),GSSG Workforce Development              ,K05111,Employees                     ,Indirect Employee Expenses    ,AB56,Internal Training Costs,765,"1,000.00",12/3/2012,R,REDACTED
2012-DEC,Childrens & Education Services,Pre-School Ed (inc Nursery),GSSG Workforce Development              ,K05111,Employees                     ,Indirect Employee Expenses    ,AB56,Internal Training Costs,766,500,12/15/2012,R,REDACTED
2012-DEC,Childrens & Education Services,Pre-School Ed (inc Nursery),GSSG Workforce Development              ,K05111,Employees                     ,Indirect Employee Expenses    ,AB56,Internal Training Costs,767,600,12/17/2012,R,ACTUAL FIRST AID LTD          
2012-DEC,Childrens & Education Services,Pre-School Ed (inc Nursery),GSSG Workforce Development              ,K05111,Employees                     ,Indirect Employee Expenses    ,AB56,Internal Training Costs,768,920,12/17/2012,R,ACTUAL FIRST AID LTD          
2012-DEC,Childrens & Education Services,Pre-School Ed (inc Nursery),GSSG Workforce Development              ,K05111,Employees                     ,Indirect Employee Expenses    ,AB57,External Training Costs,769,650,12/14/2012,R,REDACTED
2012-DEC,Childrens & Education Services,Pre-School Ed (inc Nursery),GSSG Workforce Development              ,K05111,Employees                     ,Indirect Employee Expenses    ,AB57,External Training Costs,770,650,12/14/2012,R,REDACTED
2012-DEC,Childrens & Education Services,Pre-School Ed (inc Nursery),GSSG Workforce Development              ,K05111,Supplies & Services           ,Services                      ,DF03,Consultants,771,"2,600.00",12/1/2012,R,REDACTED
2012-DEC,Childrens & Education Services,Pre-School Ed (inc Nursery),Children's centres                      ,K05137,Supplies & Services           ,Grants and Subscriptions      ,DJ01,Grants,772,"7,750.00",11/30/2012,R,THE ROYAL MARSDEN NHS FTRUST  
2012-DEC,Childrens & Education Services,Pre-School Ed (inc Nursery),Children's centres                      ,K05137,Supplies & Services           ,Grants and Subscriptions      ,DJ01,Grants,773,"7,750.00",11/30/2012,R,THE ROYAL MARSDEN NHS FTRUST  
2012-DEC,Childrens & Education Services,Pre-School Ed (inc Nursery),Children's centres                      ,K05137,Supplies & Services           ,Grants and Subscriptions      ,DJ01,Grants,774,"7,750.00",11/30/2012,R,THE ROYAL MARSDEN NHS FTRUST  
2012-DEC,Childrens & Education Services,Pre-School Ed (inc Nursery),EY Business Support                     ,K05400,Employees                     ,Indirect Employee Expenses    ,AB57,External Training Costs,775,"1,200.60",12/19/2012,R,TRIANGLE CONSULTING SOCIAL ENT
2012-DEC,Childrens & Education Services,Pre-School Ed (inc Nursery),EY Business Support                     ,K05400,Premises Related Expenditure  ,Rents                         ,BC03,Room/venue rental hire,776,825,11/26/2012,R,GRENFELL HOUSING & TRAINING   
2012-DEC,Childrens & Education Services,Pre-School Ed (inc Nursery),EY Business Support                     ,K05400,Supplies & Services           ,Catering                      ,DB50,Refreshments,777,897,11/26/2012,R,GRENFELL HOUSING & TRAINING   
2012-DEC,Childrens & Education Services,Pre-School Ed (inc Nursery),EY Business Support                     ,K05400,Supplies & Services           ,Services                      ,DF03,Consultants,778,"1,000.00",12/1/2012,R,MOORE INSIGHT LIMITED         
2012-DEC,Childrens & Education Services,Pre-School Ed (inc Nursery),Home Grown Graduate Incentive           ,K05402,Supplies & Services           ,Grants and Subscriptions      ,DJ01,Grants,779,"3,000.00",12/5/2012,R,BUTTERFLIES CHILDCARE LIMITED 
2012-DEC,Childrens & Education Services,Pre-School Ed (inc Nursery),Home Grown Graduate Incentive           ,K05402,Supplies & Services           ,Grants and Subscriptions      ,DJ01,Grants,780,"3,000.00",12/5/2012,R,CROWN KINDERGARTEN            
2012-DEC,Childrens & Education Services,Pre-School Ed (inc Nursery),Home Grown Graduate Incentive           ,K05402,Supplies & Services           ,Grants and Subscriptions      ,DJ01,Grants,781,"3,000.00",12/5/2012,R,PLAYDAYS DAY NURSERY          
2012-DEC,Childrens & Education Services,Pre-School Ed (inc Nursery),Home Grown Graduate Incentive           ,K05402,Supplies & Services           ,Grants and Subscriptions      ,DJ01,Grants,782,"3,000.00",12/5/2012,R,PLAYDAYS DAY NURSERY          
2012-DEC,Childrens & Education Services,Pre-School Ed (inc Nursery),Home Grown Graduate Incentive           ,K05402,Supplies & Services           ,Grants and Subscriptions      ,DJ01,Grants,783,"3,000.00",12/6/2012,R,CHERUBS @ ST THOMAS           
2012-DEC,Childrens & Education Services,Pre-School Ed (inc Nursery),Home Grown Graduate Incentive           ,K05402,Supplies & Services           ,Grants and Subscriptions      ,DJ01,Grants,784,"3,000.00",12/6/2012,R,CHERUBS @ ST THOMAS           
2012-DEC,Childrens & Education Services,Pre-School Ed (inc Nursery),Home Grown Graduate Incentive           ,K05402,Supplies & Services           ,Grants and Subscriptions      ,DJ01,Grants,785,"3,000.00",12/7/2012,R,HASLEMERE HOUSE DAY NURSERY   
2012-DEC,Childrens & Education Services,Pre-School Ed (inc Nursery),Home Grown Graduate Incentive           ,K05402,Supplies & Services           ,Grants and Subscriptions      ,DJ01,Grants,786,"3,000.00",12/18/2012,R,THE GARDEN ROOM               
2012-DEC,Childrens & Education Services,Pre-School Ed (inc Nursery),Home Grown Graduate Incentive           ,K05402,Supplies & Services           ,Grants and Subscriptions      ,DJ01,Grants,787,"3,000.00",12/18/2012,R,CAROUSEL LTD                  
2012-DEC,Childrens & Education Services,Pre-School Ed (inc Nursery),Home Grown Graduate Incentive           ,K05402,Supplies & Services           ,Grants and Subscriptions      ,DJ01,Grants,788,"3,000.00",12/18/2012,R,CAROUSEL DAY NURSERY          
2012-DEC,Childrens & Education Services,Pre-School Ed (inc Nursery),Nursery Grant payment-2 yr old          ,K05408,Supplies & Services           ,Grants and Subscriptions      ,DJ01,Grants,789,"1,440.00",12/3/2012,R,CHERUBS @ ST THOMAS           
2012-DEC,Childrens & Education Services,Pre-School Ed (inc Nursery),Nursery Grant payment-2 yr old          ,K05408,Supplies & Services           ,Grants and Subscriptions      ,DJ01,Grants,790,"1,314.00",12/3/2012,R,CHERUBS @ ST THOMAS           
2012-DEC,Childrens & Education Services,Pre-School Ed (inc Nursery),Nursery Grant payment-2 yr old          ,K05408,Supplies & Services           ,Grants and Subscriptions      ,DJ01,Grants,791,"1,440.00",12/3/2012,R,CHERUBS @ ST THOMAS           
2012-DEC,Childrens & Education Services,Pre-School Ed (inc Nursery),Nursery Grant payment-2 yr old          ,K05408,Supplies & Services           ,Grants and Subscriptions      ,DJ01,Grants,792,960,12/3/2012,R,CHERUBS @ ST THOMAS           
2012-DEC,Childrens & Education Services,Pre-School Ed (inc Nursery),Nursery Grant payment-2 yr old          ,K05408,Supplies & Services           ,Grants and Subscriptions      ,DJ01,Grants,793,810,12/3/2012,R,CHERUBS @ ST THOMAS           
2012-DEC,Childrens & Education Services,Pre-School Ed (inc Nursery),Nursery Grant payment-2 yr old          ,K05408,Supplies & Services           ,Grants and Subscriptions      ,DJ01,Grants,794,810,12/3/2012,R,CHERUBS @ ST THOMAS           
2012-DEC,Childrens & Education Services,Pre-School Ed (inc Nursery),Nursery Grant payment-2 yr old          ,K05408,Supplies & Services           ,Grants and Subscriptions      ,DJ01,Grants,795,"1,080.00",12/3/2012,R,CHERUBS @ ST THOMAS           
2012-DEC,Childrens & Education Services,Pre-School Ed (inc Nursery),Nursery Grant payment-2 yr old          ,K05408,Supplies & Services           ,Grants and Subscriptions      ,DJ01,Grants,796,504,12/5/2012,R,SACRED HEART FUN CLUB         
2012-DEC,Childrens & Education Services,Pre-School Ed (inc Nursery),Nursery Grant payment-2 yr old          ,K05408,Supplies & Services           ,Grants and Subscriptions      ,DJ01,Grants,797,540,12/5/2012,R,SACRED HEART FUN CLUB         
2012-DEC,Childrens & Education Services,Pre-School Ed (inc Nursery),Nursery Grant payment-2 yr old          ,K05408,Supplies & Services           ,Grants and Subscriptions      ,DJ01,Grants,798,"1,350.00",12/7/2012,R,MINI TREASURES DAY NURSERY    
2012-DEC,Childrens & Education Services,Pre-School Ed (inc Nursery),Nursery Grant payment-2 yr old          ,K05408,Supplies & Services           ,Grants and Subscriptions      ,DJ01,Grants,799,"1,314.00",12/7/2012,R,MINI TREASURES DAY NURSERY    
2012-DEC,Childrens & Education Services,Pre-School Ed (inc Nursery),Nursery Grant payment-2 yr old          ,K05408,Supplies & Services           ,Grants and Subscriptions      ,DJ01,Grants,800,954,12/7/2012,R,MINI TREASURES DAY NURSERY    
2012-DEC,Childrens & Education Services,Pre-School Ed (inc Nursery),Nursery Grant payment-2 yr old          ,K05408,Supplies & Services           ,Grants and Subscriptions      ,DJ01,Grants,801,990,12/7/2012,R,MINI TREASURES DAY NURSERY    
2012-DEC,Childrens & Education Services,Pre-School Ed (inc Nursery),Nursery Grant payment-2 yr old          ,K05408,Supplies & Services           ,Grants and Subscriptions      ,DJ01,Grants,802,522,12/18/2012,R,CHERUBS @ NEWMINSTER          
2012-DEC,Childrens & Education Services,Pre-School Ed (inc Nursery),Nursery Grant payment-2 yr old          ,K05408,Supplies & Services           ,Grants and Subscriptions      ,DJ01,Grants,803,"1,080.00",12/18/2012,R,CHERUBS @ NEWMINSTER          
2012-DEC,Childrens & Education Services,Pre-School Ed (inc Nursery),Nursery Grant payment-2 yr old          ,K05408,Supplies & Services           ,Grants and Subscriptions      ,DJ01,Grants,804,626.34,12/21/2012,R,HASLEMERE HOUSE DAY NURSERY   
2012-DEC,Childrens & Education Services,Pre-School Ed (inc Nursery),Lavender Children's Centre              ,K05410,Premises Related Expenditure  ,Cleaning and Domestic Supplies,BH03,Cleaning Services,805,574.52,12/5/2012,R,RE MCS CLEANING SERVICES LTD  
2012-DEC,Childrens & Education Services,Pre-School Ed (inc Nursery),Lavender Children's Centre              ,K05410,Supplies & Services           ,Equip Furniture/Materials     ,DA09,Equip-Purchases,806,661.77,12/3/2012,R,THE CONSORTIUM                
2012-DEC,Childrens & Education Services,Pre-School Ed (inc Nursery),Lavender Children's Centre              ,K05410,Supplies & Services           ,Equip Furniture/Materials     ,DA09,Equip-Purchases,807,751.79,12/6/2012,R,TTS LTD                       
2012-DEC,Childrens & Education Services,Pre-School Ed (inc Nursery),Mitcham MAT (Premises)                  ,K05412,Premises Related Expenditure  ,RepairsAlterations&MtceOfBldgs,BA01,DDM - General Building,808,580,12/10/2012,R,GILLETT FLOORING CONTRACTORS  
2012-DEC,Childrens & Education Services,Pre-School Ed (inc Nursery),Mitcham MAT (Premises)                  ,K05412,Premises Related Expenditure  ,Cleaning and Domestic Supplies,BH03,Cleaning Services,809,"1,191.70",11/18/2012,R,RE MCS CLEANING SERVICES LTD  
2012-DEC,Childrens & Education Services,Pre-School Ed (inc Nursery),Mitcham MAT (Premises)                  ,K05412,Premises Related Expenditure  ,Cleaning and Domestic Supplies,BH03,Cleaning Services,810,"1,145.30",12/18/2012,R,RE MCS CLEANING SERVICES LTD  
2012-DEC,Childrens & Education Services,Pre-School Ed (inc Nursery),Lavender CC Non Childcare               ,K05415,Premises Related Expenditure  ,Cleaning and Domestic Supplies,BH03,Cleaning Services,811,574.52,12/5/2012,R,RE MCS CLEANING SERVICES LTD  
2012-DEC,Childrens & Education Services,Pre-School Ed (inc Nursery),E.Years-Intergenerational Cntr          ,K05416,Premises Related Expenditure  ,RepairsAlterations&MtceOfBldgs,BA06,Repairs & Maintenance General,812,"2,302.53",12/10/2012,R,LITTLEWOOD FENCING            
2012-DEC,Childrens & Education Services,Pre-School Ed (inc Nursery),E.Years-Intergenerational Cntr          ,K05416,Premises Related Expenditure  ,Cleaning and Domestic Supplies,BH03,Cleaning Services,813,964.45,10/25/2012,R,JULIUS RUTHERFOORD & CO LTD   
2012-DEC,Childrens & Education Services,Pre-School Ed (inc Nursery),E.Years-Intergenerational Cntr          ,K05416,Premises Related Expenditure  ,Cleaning and Domestic Supplies,BH03,Cleaning Services,814,964.45,11/25/2012,R,JULIUS RUTHERFOORD & CO LTD   
2012-DEC,Childrens & Education Services,Pre-School Ed (inc Nursery),Acacia Pre School                       ,K05420,Supplies & Services           ,Equip Furniture/Materials     ,DA04,Materials,815,762.3,8/28/2012,R,EARLY YEARS RESOURCES         
2012-DEC,Childrens & Education Services,Adult Education,AE-Familiy Learning                     ,K06041,Supplies & Services           ,Services                      ,DF30,Activities Programme,816,870,10/16/2012,R,HARRIS ACADEMY MERTON         
2012-DEC,Childrens & Education Services,Adult Education,MAE-Bldgs Repairs & Maintenanc          ,K06048,Premises Related Expenditure  ,RepairsAlterations&MtceOfBldgs,BA03,DDM - Mechanical,817,930,9/18/2012,R,COFELY LIMITED                
2012-DEC,Childrens & Education Services,Adult Education,AE-Adult Education Main                 ,K06049,Premises Related Expenditure  ,Energy Costs                  ,BB03,Gas (incl. Butane),818,"1,044.12",11/9/2012,R,KENT COUNTY COUNCIL           
2012-DEC,Childrens & Education Services,Adult Education,AE-Adult Education Main                 ,K06049,Premises Related Expenditure  ,Fixtures and Fittings         ,BF01,Fixtures and Fittings,819,525,11/28/2012,R,TIME SIGNS LTD                
2012-DEC,Childrens & Education Services,Adult Education,AE-Adult Education Main                 ,K06049,Premises Related Expenditure  ,Cleaning and Domestic Supplies,BH03,Cleaning Services,820,"2,699.35",10/25/2012,R,JULIUS RUTHERFOORD & CO LTD   
2012-DEC,Childrens & Education Services,Adult Education,AE-Adult Education Main                 ,K06049,Supplies & Services           ,Services                      ,DF03,Consultants,821,"3,184.00",12/1/2012,R,TCMD LTD                      
2012-DEC,Childrens & Education Services,Adult Education,AE-Adult Education Main                 ,K06049,Supplies & Services           ,Services                      ,DF27,Examination Fees,822,812.2,11/20/2012,R,EDEXCEL                       
2012-DEC,Childrens & Education Services,Adult Education,AE-Adult Education Main                 ,K06049,Supplies & Services           ,Services                      ,DF27,Examination Fees,823,710,11/20/2012,R,EDEXCEL                       
2012-DEC,Childrens & Education Services,Adult Education,AE-Adult Education Main                 ,K06049,Supplies & Services           ,Services                      ,DF27,Examination Fees,824,720,11/20/2012,R,CITY & GUILDS                 
2012-DEC,Childrens & Education Services,Adult Education,AE-Adult Education Main                 ,K06049,Supplies & Services           ,Services                      ,DF27,Examination Fees,825,"1,528.15",11/20/2012,R,EDEXCEL                       
2012-DEC,Childrens & Education Services,Adult Education,AE-Adult Education Main                 ,K06049,Supplies & Services           ,Services                      ,DF27,Examination Fees,826,"1,524.00",11/20/2012,R,UCLES                         
2012-DEC,Childrens & Education Services,Adult Education,AE-Adult Education Main                 ,K06049,Supplies & Services           ,Services                      ,DF27,Examination Fees,827,888,11/27/2012,R,ITEC                          
2012-DEC,Childrens & Education Services,Adult Education,AE-Adult Education Main                 ,K06049,Supplies & Services           ,Services                      ,DF27,Examination Fees,828,"1,699.20",11/28/2012,R,CITY & GUILDS                 
2012-DEC,Childrens & Education Services,Adult Education,AE-Adult Education Main                 ,K06049,Supplies & Services           ,Services                      ,DF27,Examination Fees,829,"1,672.00",11/22/2012,R,CACHE                         
2012-DEC,Childrens & Education Services,Adult Education,AE-Adult Education Main                 ,K06049,Supplies & Services           ,Services                      ,DF27,Examination Fees,830,"1,496.00",11/22/2012,R,CACHE                         
2012-DEC,Childrens & Education Services,Adult Education,AE-Adult Education Main                 ,K06049,Supplies & Services           ,Services                      ,DF27,Examination Fees,831,"2,024.00",11/22/2012,R,CACHE                         
2012-DEC,Childrens & Education Services,Adult Education,AE-Adult Education Main                 ,K06049,Supplies & Services           ,Services                      ,DF27,Examination Fees,832,"2,610.00",12/3/2012,R,CACHE                         
